Workbook

Sheet UploadData
A1: Calculator Type | B1: Sector | C1: Version | D1: ML | E1: projcost | F1: busbr sav | G1: wattred | H1: totcred | I1: bc ratio | J1: bldgtype | K1: bldg | L1: Unique Site ID | M1: zip | N1: Company Name | O1: state | P1: projname | Q1: street | R1: city | S1: Fedbldg | T1: Serving Utility | U1: Completion Date | V1: BPA Max WTP | W1: Funding Source | X1: NS Measures Approved | Y1: Trade Ally Company | Z1: Trade Ally Individual | AA1: NWTAN Member | AB1: NEEA NXT Level 1 | AC1: NEEA NXT Level 2
A2: Retrofit | C2: 5.X2 | D2: 12 | F2: 0 | G2: 0 | H2: 0 | I2: 0.252 | J2: Assembly | K2: [FIELD NOT USED] | M2: 98402 | N2: Owner / Company Name | O2: WA | P2: Project Name | Q2: Project Address | R2: Project Address | S2: No | T2: 10370 | U2: , | V2: 0 | X2: YES | Y2: =user_TradeAlly!L8 -> Company | Z2: =user_TradeAlly!L5 -> Person Submitting Project | AA2: =user_TradeAlly!L12 -> No | AB2: =user_TradeAlly!L13 -> No | AC2: =user_TradeAlly!L14 -> No

Sheet ProjectUpload
A1: Calculator Type | B1: Sector | C1: Version | D1: ML | E1: projcost | F1: busbr sav | G1: wattred | H1: totcred | I1: bc ratio | J1: bldgtype | K1: bldg | L1: Unique Site ID | M1: zip | N1: Company Name | O1: state | P1: projname | Q1: street | R1: city | S1: Fedbldg | T1: Serving Utility | U1: Completion Date | V1: BPA Max WTP | W1: Funding Source | X1: NS Measures Approved | Y1: Trade Ally Company | Z1: Trade Ally Individual | AA1: NWTAN Member | AB1: NEEA NXT Level 1 | AC1: NEEA NXT Level 2
A2: =IF(ISBLANK(UploadData!A2),"",UploadData!A2) -> Retrofit | B2: =IF(ISBLANK(UploadData!B2),"",UploadData!B2) ->  | C2: =IF(ISBLANK(UploadData!C2),"",UploadData!C2) -> 5.X2 | D2: =IF(ISBLANK(UploadData!D2),"",UploadData!D2) -> 12 | E2: =IF(ISBLANK(UploadData!E2),"",UploadData!E2) ->  | F2: =IF(ISBLANK(UploadData!F2),"",UploadData!F2) -> 0 | G2: =IF(ISBLANK(UploadData!G2),"",UploadData!G2) -> 0 | H2: =IF(ISBLANK(UploadData!H2),"",UploadData!H2) -> 0 | I2: =IF(ISBLANK(UploadData!I2),"",UploadData!I2) -> 0.252 | J2: =IF(ISBLANK(UploadData!J2),"",UploadData!J2) -> Assembly | K2: =IF(ISBLANK(UploadData!K2),"",UploadData!K2) -> [FIELD NOT USED] | L2: =IF(ISBLANK(UploadData!L2),"",UploadData!L2) ->  | M2: =IF(ISBLANK(UploadData!M2),"",UploadData!M2) -> 98402 | N2: =IF(ISBLANK(UploadData!N2),"",UploadData!N2) -> Owner / Company Name | O2: =IF(ISBLANK(UploadData!O2),"",UploadData!O2) -> WA | P2: =IF(ISBLANK(UploadData!P2),"",UploadData!P2) -> Project Name | Q2: =IF(ISBLANK(UploadData!Q2),"",UploadData!Q2) -> Project Address | R2: =IF(ISBLANK(UploadData!R2),"",UploadData!R2) -> Project Address | S2: =IF(ISBLANK(UploadData!S2),"",UploadData!S2) -> No | T2: =IF(ISBLANK(UploadData!T2),"",UploadData!T2) -> 10370 | U2: =IF(ISBLANK(UploadData!U2),"",UploadData!U2) -> , | V2: =IF(ISBLANK(UploadData!V2),"",UploadData!V2) -> 0 | W2: =IF(ISBLANK(UploadData!W2),"",UploadData!W2) ->  | X2: =IF(ISBLANK(UploadData!X2),"",UploadData!X2) -> YES | Y2: =IF(ISBLANK(UploadData!Y2),"",UploadData!Y2) -> Company | Z2: =IF(ISBLANK(UploadData!Z2),"",UploadData!Z2) -> Person Submitting Project | AA2: =IF(ISBLANK(UploadData!AA2),"",UploadData!AA2) -> No | AB2: =IF(ISBLANK(UploadData!AB2),"",UploadData!AB2) -> No | AC2: =IF(ISBLANK(UploadData!AC2),"",UploadData!AC2) -> No

Sheet MeasureUpload
A1: Space Use Type | B1: Annual Hours of Operation | C1: Existing Equipment Classification | D1: Efficient Equipment Category | E1: Efficient Equipment Sub Category | F1: Fixture Count | G1: Efficient Lamp Count | H1: Lamp Wattage | I1: Controls Category | J1: Controls Count | K1: Equipment Savings Unadjusted | L1: Equipment Savings Fully Adj | M1: Controls Savings | N1: Total Measure Savings kWh | O1: Equip_Incentive | P1: Control_Incentive | Q1: Total Measure Incentive | R1: REFNO | S1: Measure Name
A2: ='user_Lighting Details'!M22 -> 0 | B2: ='user_Lighting Details'!N22 -> 0 | C2: ='user_Lighting Details'!AB22 -> 0 | D2: ='user_Lighting Details'!AJ22 -> 0 | E2: ='user_Lighting Details'!AK22 -> 0 | F2: ='user_Lighting Details'!AH22 -> 0 | G2: =('user_Lighting Details'!AM22)*('user_Lighting Details'!AH22) -> 0 | H2: ='user_Lighting Details'!AL22 -> 0 | I2: ='user_Lighting Details'!AR22 -> 0 | J2: ='user_Lighting Details'!AQ22 -> 0 | K2: ='user_Lighting Details'!BO22 -> 0 | L2: ='user_Lighting Details'!DE22 -> 0 | M2: ='user_Lighting Details'!DC22 -> 0 | N2: ='user_Lighting Details'!DG22 -> 0 | O2: =IF(OR(('user_Lighting Details'!AG22="Non-standard"),('user_Lighting Details'!AJ22="Refrigerated Case"),('user_Lighting Details'!AJ22="Linear Strip"),('user_Lighting Details'!AI22="Signage"),('user_Lighting Details'!AA22<>'user_Lighting Details'!AH22)),'user_Lighting Details'!EB22+'user_Lighting Details'!EE22,'user_Lighting Details'!EE22) -> 0 | P2: ='user_Lighting Details'!DT22 -> 0 | Q2: ='user_Lighting Details'!ER22 -> 0 | R2: ='user_Lighting Details'!FD22 -> 0 | S2: ='user_Lighting Details'!FF22 -> 0 | T2: =IF(LEN(TRIM('user_Lighting Details'!K22))>0,1,0) -> 1

Sheet zzMeasureUploadTemplate
A1: Space Use Type | B1: Annual Hours of Operation | C1: Existing Equipment Classification | D1: Efficient Equipment Category | E1: Efficient Equipment Sub Category | F1: Fixture Count | G1: Efficient Lamp Count | H1: Lamp Wattage | I1: Controls Category | J1: Controls Count | K1: Equipment Savings Unadjusted | L1: Equipment Savings Fully Adj | M1: Controls Savings | N1: Total Measure Savings kWh | O1: Equip_Incentive | P1: Control_Incentive | Q1: Total Measure Incentive | R1: REFNO | S1: Measure Name | T1: DataFlag | U1: Utility Name
A2: zzTempzz'user_Lighting Details'!M22 | B2: zzTempzz'user_Lighting Details'!N22 | C2: zzTempzz'user_Lighting Details'!AB22 | D2: zzTempzz'user_Lighting Details'!AJ22 | E2: zzTempzz'user_Lighting Details'!AK22 | F2: zzTempzz'user_Lighting Details'!AH22 | G2: zzTempzz('user_Lighting Details'!AM22)*('user_Lighting Details'!AH22) | H2: zzTempzz'user_Lighting Details'!AL22 | I2: zzTempzz'user_Lighting Details'!AR22 | J2: zzTempzz'user_Lighting Details'!AQ22 | K2: zzTempzz'user_Lighting Details'!BO22 | L2: zzTempzz'user_Lighting Details'!DE22 | M2: zzTempzz'user_Lighting Details'!DC22 | N2: zzTempzz'user_Lighting Details'!DG22 | O2: zzTempzzIF(OR(('user_Lighting Details'!AG22zzTempzz"Non-standard"),('user_Lighting Details'!AJ22zzTempzz"Refrigerated Case"),('user_Lighting Details'!AJ22zzTempzz"Linear Strip"),('user_Lighting Details'!AI22zzTempzz"Signage"),('user_Lighting Details'!AA22<>'user_Lighting Details'!AH22)),'user_Lighting Details'!EB22+'user_Lighting Details'!EE22,'user_Lighting Details'!EE22) | P2: zzTempzz'user_Lighting Details'!DT22 | Q2: zzTempzz'user_Lighting Details'!ER22 | R2: zzTempzz'user_Lighting Details'!FD22 | S2: zzTempzz'user_Lighting Details'!FF22 | T2: zzTempzzIF(LEN(TRIM('user_Lighting Details'!K22))>0,1,0) | U2: zzTempzzitemized_Utility_Organization
A3: zzTempzz'user_Lighting Details'!M23 | B3: zzTempzz'user_Lighting Details'!N23 | C3: zzTempzz'user_Lighting Details'!AB23 | D3: zzTempzz'user_Lighting Details'!AJ23 | E3: zzTempzz'user_Lighting Details'!AK23 | F3: zzTempzz'user_Lighting Details'!AH23 | G3: zzTempzz('user_Lighting Details'!AM22)*('user_Lighting Details'!AH23) | H3: zzTempzz'user_Lighting Details'!AL23 | I3: zzTempzz'user_Lighting Details'!AR23 | J3: zzTempzz'user_Lighting Details'!AQ23 | K3: zzTempzz'user_Lighting Details'!BO23 | L3: zzTempzz'user_Lighting Details'!DE23 | M3: zzTempzz'user_Lighting Details'!DC23 | N3: zzTempzz'user_Lighting Details'!DG23 | O3: zzTempzzIF(OR(('user_Lighting Details'!AG23zzTempzz"Non-standard"),('user_Lighting Details'!AJ23zzTempzz"Refrigerated Case"),('user_Lighting Details'!AJ23zzTempzz"Linear Strip"),('user_Lighting Details'!AI23zzTempzz"Signage"),('user_Lighting Details'!AA23<>'user_Lighting Details'!AH23)),'user_Lighting Details'!EB23+'user_Lighting Details'!EE23,'user_Lighting Details'!EE23) | P3: zzTempzz'user_Lighting Details'!DT23 | Q3: zzTempzz'user_Lighting Details'!ER23 | R3: zzTempzz'user_Lighting Details'!FD23 | S3: zzTempzz'user_Lighting Details'!FF23 | T3: zzTempzzIF(LEN(TRIM('user_Lighting Details'!K23))>0,1,0) | U3: zzTempzzitemized_Utility_Organization

Sheet TempStaging
A22: Decommissioning : [none] Equipment No matching equipment Controls M1: 1 control(s) @ $30/control ($30)
A23: Decommissioning : [none] Equipment H-90%: 10 fixture(s) at $40/fixture ($400) Controls M2: 1 control(s) @ $15/control ($15)
A24: Decommissioning : [none] Equipment No matching equipment Controls M1: 1 control(s) @ $30/control ($30)
A25: Decommissioning : [none] Equipment No matching equipment Controls M2: 1 control(s) @ $40/control ($40)
A26: Decommissioning : [none] Equipment E2-70%: 10 fixture(s) at $100/fixture ($1,000) Controls M4: 2 control(s) @ $30/control ($60)
A27: Decommissioning : [none] Equipment E2-70%: 10 fixture(s) at $100/fixture ($1,000) Controls: [no controls specified]
A28: Decommissioning : [none] Equipment E2-70%: 10 fixture(s) at $100/fixture ($1,000) Controls: [no controls specified]
A29: Decommissioning : [none] Equipment E2-70%: 10 fixture(s) at $100/fixture ($1,000) Controls: [no controls specified]
A30: Decommissioning : [none] Equipment E2-70%: 10 fixture(s) at $100/fixture ($1,000) Controls: [no controls specified]
A31: Decommissioning : [none] Equipment E2-70%: 10 fixture(s) at $100/fixture ($1,000) Controls: [no controls specified]
A32: Decommissioning : [none] Equipment E2-70%: 10 fixture(s) at $100/fixture ($1,000) Controls: [no controls specified]
A33: Decommissioning : [none] Equipment E2-70%: 10 fixture(s) at $100/fixture ($1,000) Controls: [no controls specified]
A34: Decommissioning : [none] Equipment E2-70%: 10 fixture(s) at $100/fixture ($1,000) Controls: [no controls specified]
A35: Decommissioning : [none] Equipment E2-70%: 10 fixture(s) at $100/fixture ($1,000) Controls: [no controls specified]
A36: Decommissioning : [none] Equipment E2-70%: 10 fixture(s) at $100/fixture ($1,000) Controls: [no controls specified]

Sheet REFNOLogic
A1: Current Record Row For REFNO
A2: 27

Sheet Welcome
L3: Welcome to the Lighting Calculator v5.X2 | Q3: Note:
L4: For this lighting calclator to function properly, you must have macros enabled in Microsoft Excel. | Q4: Once you have enabled macros (left) the
L5: To enable macros, follow the instructions below based on your version of Excel. | Q5: calculator should automatically launch.
L7: Enabling Macros in Microsoft Excel 2003: | Q7: To launch the calculator manually, click
L8: 1) Go to Tools > Options. | Q8: the button below.
L9: 2) Go to the Security tab and click on Macro Security…
L10: 3) Select Medium..
L11: 4) Close Excel and re-open the lighting calculator.
L12: 5) When prompted whether to enable macros or not, click Enable Macros
L14: Enabling Macros in Microsoft Excel 2007:
L15: 1) Click the Office button in the upper left corner of the screen. At the bottom of the menu select Excel Options.
L16: 2) Select the Trust Center tab on the left, followed by Trust Center Settings... in the bottom right corner.
L17: 3) In the new window that appears, choose Macro Settings.
L18: 4) You can select Enable all macros, in which case you will not have to enable macros every time you open the
L19: calculator, or you can select Disable all macros with notification, in which case you will have to enable macros
L20: every time the calculator is opened.
L21: 5) Close the calculator and re-open it. If a security warning appears the next time you open the calculator, select
L22: Options… > Enable this content.
L24: Enabling Macros in Microsoft Excel 2010 or 2013:
L25: 1) In the upper left corner, go to File > Options.
L26: 2) Follow steps 2 through 5 above for "Enabling Macros in Microsoft Excel 2007."

Sheet user_Project
N2: ContactLastName | O2: ContactPhoneAreaCode | P2: ContactPhoneFirstThree | Q2: ContactPhoneLastFour | R2: ContactPhoneExtension | S2: ContactEmail | T2: CustomerCompany | U2: CustomerStreet | V2: CustomerCity | W2: CustomerState | X2: CustomerZip | Y2: ProjectName | Z2: UseCustomerAddress | AA2: ProjectStreet | AB2: ProjectCity | AC2: ProjectState | AD2: ProjectZip | AE2: ProjectBuildingType | AF2: ProjectType | AG2: UtilityRateClass | AH2: UtilityEnergyRate | AI2: UtilityDemandRate | AL2: Show itemized table
N3: Person Signing Contract | O3: 253 | P3: 123 | Q3: 4567 | S3: theiremail@email.com | T3: Owner / Company Name | U3: Company Address | V3: Tacoma | W3: WA | X3: 98402 | Y3: Project Name | Z3: FALSE | AA3: Project Address | AB3: Project Address | AC3: WA | AD3: 98402 | AE3: Assembly | AF3: Retrofit | AG3: (B) Small General | AH3: 0.0798 | AI3: 0 | AJ3: 1 | AK3: FALSE | AL3: TRUE
L5: Person Signing Contract
L6: (253) 123-4567
L7: theiremail@email.com
L9: Owner / Company Name
L10: Company Address
L11: Tacoma, WA 98402
L13: Project Name
L14: Project Address
L15: Project Address, WA 98402
L17: Retrofit
L18: Assembly
L20: (B) Small General
L21: 0.0798
L22: 0

Sheet user_Customer
K2: ENTER CUSTOMER AND PROJECT INFORMATION
K4: Welcome to the Trade Ally Portal. This portal will allow users to define lighting projects as retrofit or new construction, review project incentives, and print project documents. Throughout the lighting calculator, data must be entered using the forms to the left. On the right, additional information or tables are provided to enhance the usability of the calculator.
K6: Users should work through the following tabs, starting with the "Customer" tab and moving through the rest in this order:
K7: - Customer
K8: On the ”Customer” tab, complete all of the required fields shown to the left, including: Customer Information, Utility Information, Basic Project and Building Information, and Customer Contact Information. Once all of the required fields have been completed, click on the “Trade Ally” tab.
K10: - Trade Ally
K11: Trade Allies may enter their contact information by completing the optional “Trade Ally” tab. This tab also includes contact information for the appropriate utility lighting calculator representative.
K13: - Spaces (Retrofit Projects Only)
K14: Once the “Customer” and “Trade Ally” tabs have been completed, move on to the “Spaces” tab. Here users can define operating schedules and HVAC configurations for each of the retrofit project's space types. The defined spaces in this tab will be carried on to the "Measures" tab, where lighting measures can be assigned to each space.
K16: - Measures (Retrofit Projects Only)
K17: After defining the retrofit project's spaces, assign measure details to each space on the "Measures" tab. Define the existing equipment in a space, followed by the proposed equipment and any controls (if applicable). Proposed measures can be "deemed" or "non-standard" (which require BPA approval). In addition, if the proposed fixture quantity is less than the existing quantity, and it results in net system savings, it may be eligible to receive a decommissioning credit.
K19: - Project Input (New Construction Projects Only)
K20: On the ”Project Input” tab, the project’s kWh savings and incentive will be calculated by entering the Lighting Power Allowance and Proposed Lighting Power for the project. Both the Lighting Power Allowance and Proposed Lighting Power should be obtained from COMcheck or the Washington Code Compliance Form.
K22: - Project Reports
K23: Here users can find documents that are formatted and ready to print, including the Customer Proposal and the Project Summary.
K25: - Save and Close
K26: The calculator MUST be saved and closed using the "Save and Close" tab. Here users can save the calculator file and rename the file if desired.
K28: - Links
K29: Access calculator updates, help, and training videos using the provided links.

Sheet user_TradeAlly2
K2: ENTER TRADE ALLY INFORMATION
K4: Using the form to the left, continue on by completing the trade ally information fields shown. Trade Ally contact name and company name are optional but strongly encouraged.
K6: Retrofit Projects: When the trade ally information has been completed, move on to the "Spaces" and "Measures" tabs. To the right of the Spaces and Measures input forms, tables are provided to show the overall progress. The input forms can be minimized to view a full screen of the tables.
K8: New Construction Projects: When the trade ally information has been completed, move on to the "Project Input" tab.

Sheet user_TradeAlly
N2: TA Name | O2: TA Area | P2: TA PhoneFirstThree | Q2: TA PhoneLastFour | R2: TA PhoneExtension | S2: TA Email | T2: TA CompanyName | U2: TA StreetAddress | V2: TA City | W2: TA State | X2: TA ZipCode | Y2: NW TAN Member? | Z2: NEAA NXT Level 1? | AA2: NEAA NXT Level 2?
N3: Person Submitting Project | T3: Company | Y3: 0 | Z3: 0 | AA3: 0
K4: Trade Ally Information
K5: Contact Name | L5: Person Submitting Project
K6: Phone Number | L6: () -
K7: Email Address
K8: Company Name | L8: Company
K9: Street Address
K10: City, State Zip | L10: ,
K11: NWTAN Membership & NXT Level Training Designation
K12: NW TAN Member | L12: No
K13: NEEA NXT Level 1 Training Completed? | L13: No
K14: NEEA NXT Level 2 Training Completed? | L14: No
K15: Utility Contact Information
K16: Utility | L16: Tacoma Power
K17: Website | L17: Save with Lighting - Tacoma Public Utilities (mytpu.org)
K18: Contact Name | L18: Kerry Cameron
K19: Phone Number | L19: (253) 279-6181
K20: Email Address | L20: kcameron@cityoftacoma.org

Sheet user_Measures
K2: ENTER LIGHTING MEASURE DETAILS
K4: Fill out the user-input form to the left to create new measure rows and select existing and proposed equipment. To show the ‘Itemized Project Summary’ form users must select the ‘Show Itemized Measures’ option on the user-form. (upper right hand corner) Note: Showing the ‘Itemized Project Summary’ may cause delays in loading the Measures Tab when users are navigating to it from another tab. This is particularly true for large projects.

Sheet user_NewConInputs
K2: ENTER NEW CONSTRUCTION PROJECT DETAILS
K4: Using the form to the left, continue on by completing all of the available fields.
K6: For a project consisting of only exterior lighting, enter appropriate information in the "Exterior Lighting" section. In the "Interior Lighting" section, enter "0" into the fields for Lighting Power Allowance and Proposed Lighting Power.
K7: Also, ensure the project cost specified on the "Customer" tab is the incremental cost for more efficient equipment, not the total project cost. The incremental cost is the difference between what was installed versus what is required by code.

Sheet user_Space Types
N4: Daily Hours of Lighting Usage | V4: Space Conditioning
K5: ID | L5: Space Type | M5: Space Name | N5: Su | O5: M | P5: Tu | Q5: W | R5: Th | S5: F | T5: Sa | U5: Weeks Per Year | V5: Cooling Type | W5: Heating Type | X5: Notes | Y5: Hours Per Year | Z5: Primary Schedule? | AA5: Primary HVAC? | AB5: Full Space Name
K6: 0 | L6: [PRIMARY] | X6: - | Y6: 0 | Z6: FALSE | AA6: FALSE | AB6: [PRIMARY]
K7: 1 | L7: Exterior | N7: 12 | O7: 12 | P7: 12 | Q7: 12 | R7: 12 | S7: 12 | T7: 12 | U7: 52 | V7: No cooling | W7: No heating | Y7: 4380 | Z7: FALSE | AA7: FALSE | AB7: Exterior
K8: 2

Sheet user_Lighting Details
A1: x | N1: CUSTOMER/MAILING INFORMATION | S1: PROJECT/SITE INFORMATION | AD1: Standard
N2: Project Name
O3: Company Name
N4: Mailing Address | S4: Project/Site Address
N5: City/State/Zip Code | P5: , | S5: City/State/Zip Code | U5: ,
N6: Contact Phone Number | P6: () -
N7: Contact Email
N8: UTILITY AND TRADE ALLY INFORMATION
P9: Utility | S9: Trade Ally | V9: Utility Rate Schedule
N10: Organization | P10: Tacoma Power | V10: Class:
N11: Contact Name | P11: Kerry Cameron | V11: Energy Rate ($/kWh): $
N12: Contact Phone Number | P12: (253) 279-6181 | S12: () - | V12: Energy Rate ($/kW): $
N13: Contact email | P13: kcameron@cityoftacoma.org
N14: ESTIMATED PROJECT SUMMARY
O15: Estimated Annual Energy Savings | Q15: 4540.02184 | R15: This project is pending utility approval. All figures should be considered estimates.
O16: Estimated Energy Savings (Percentage) | Q16: 0.857
O17: Estimated Annual Utility Bill Savings | Q17: 420.630824
O18: Estimated Install Costs | Q18: 15000
O19: Estimated Incentive | Q19: 56
N20: ITEMIZED PROJECT SUMMARY
K21: Measure # | L21: Status | M21: Space | N21: Annual Hours | O21: Measure # Space Status | P21: Existing | Q21: Proposed | R21: Controls | S21: Savings | T21: kWh/year | U21: Watts per Fixture | V21: Incentives | W21: Notes | X21: BLANKCOLUMN | Y21: KWForTable | Z21: Space | AA21: ExistingQuantity | AB21: ExistingClass | AC21: ExistingType | AD21: ExistingSubtype | AE21: ExistingLampWattage | AF21: ExistingLampsPerFixture | AG21: ProposedMeasureType | AH21: ProposedQuantity | AI21: ProposedClass | AJ21: ProposedType | AK21: ProposedSubtype | AL21: ProposedLampWattage | AM21: ProposedLampsPerFixture | AN21: ProposedLampModelNumber | AO21: ProposedBallastModelNumber | AP21: NoControls | AQ21: ControlsQuantity | AR21: ControlsClass | AS21: ControlsPercentReduction | AT21: Notes | AU21: NumberOfErrors | AV21: ExistingMMLRow | AW21: ProposedMMLRow | AX21: ExistingBallastFactor | AY21: ProposedBallastFactor | AZ21: ExistingFixtureWattage | BA21: ProposedFixtureWattage | BB21: ArithFixtureWattage | BC21: ElectricInteraction | BD21: GasInteraction | BE21: ExistingFixtureKWHBase | BF21: ArithExistingFixtureKWHBase | BG21: ProposedFixtureKWHBase | BH21: DecommissionedFixtures | BI21: PrecondDecomKWHSavings | BJ21: ArithDecomKWHSavings | BK21: PrecondEquipKWHSavings | BL21: ArithEquipKWHSavings | BM21: PrecondControlsKWHSavings | BN21: ArithControlsKWHSavings | BO21: PrecondDecomAndEquipKWHSavings | BP21: ArithDecomAndEquipKWHSavings | BQ21: PrecondTotalKWHSavings | BR21: ArithTotalKWHSavings | BS21: PrecondEquipAndControlsKWHSavings | BT21: ArithEquipAndControlsKWHSavings | BU21: PrecondEquipAndControlsPercentSavings | BV21: ArithEquipAndControlsPercentSavings | BW21: PrecondMeasurePercentSavings | BX21: ArithMeasurePercentSavings | BY21: PrecondMeasureKW | BZ21: ArithMeasureKW | CA21: ProposedMeasureKW | CB21: PrecondKWSavings | CC21: ArithKWSavings | CD21: ExistingFixtureKWHwithHVAC | CE21: ArithExistingFixtureKWHwithHVAC | CF21: ProposedFixtureKWHwithHVAC | CG21: PrecondDecomKWHSavingswithHVAC | CH21: ArithDecomKWHSavingswithHVAC | CI21: PrecondEquipKWHSavingswithHVAC | CJ21: ArithEquipKWHSavingswithHVAC | CK21: PrecondEquipAndControlsKWHSavingswithHVAC | CL21: ArithEquipAndControlsKWHSavingswithHVAC | CM21: PrecondControlsKWHSavingswithHVAC | CN21: ArithControlsKWHSavingswithHVAC | CO21: PrecondDecomAndEquipKWHSavingswithHVAC | CP21: ArithDecomAndEquipKWHSavingswithHVAC | CQ21: PrecondTotalKWHSavingswithHVAC | CR21: ArithTotalKWHSavingswithHVAC | CS21: ExistingFixtureKWHwithHVAC_Busbar | CT21: ArithExistingFixtureKWHwithHVAC_Busbar | CU21: ProposedFixtureKWHwithHVAC_Busbar | CV21: PrecondDecomKWHSavingswithHVAC_Busbar | CW21: ArithDecomKWHSavingswithHVAC_Busbar | CX21: PrecondEquipKWHSavingswithHVAC_Busbar | CY21: ArithEquipKWHSavingswithHVAC_Busbar | CZ21: PrecondEquipAndControlsKWHSavingswithHVAC_Busbar | DA21: ArithEquipAndControlsKWHSavingswithHVAC_Busbar | DB21: PrecondControlsKWHSavingswithHVAC_Busbar | DC21: ArithControlsKWHSavingswithHVAC_Busbar | DD21: PrecondDecomAndEquipKWHSavingswithHVAC_Busbar | DE21: ArithDecomAndEquipKWHSavingswithHVAC_Busbar | DF21: PrecondTotalKWHSavingswithHVAC_Busbar | DG21: ArithTotalKWHSavingswithHVAC_Busbar | DH21: PrecondTotalMeasureKWHwithHVAC_Busbar | DI21: ArithTotalMeasureKWHwithHVAC_Busbar | DJ21: ProposedTotalMeasureKWHwithHVAC_Busbar | DK21: Therms_Increase_Precond | DL21: Therms_Increase_Arith | DM21: DecomIncentiveRates | DN21: UtilityDecomIncentiveRate | DO21: BPADecomIncentiveRate | DP21: NonstandardIncentiveRates | DQ21: UtilityNonstandardIncentiveRate | DR21: BPANonstandardIncentiveRate | DS21: ControlsIncentiveQuantity | DT21: ControlsIncentiveUtility | DU21: ControlsIncentiveBPA | DV21: ControlsText | DW21: ControlsIncentiveVector | DX21: ControlsIncentive | DY21: BPAControlsIncentiveRate | DZ21: UtilityControlsIncentiveRate | EA21: DecomIncentiveQuantity | EB21: DecomIncentiveUtility | EC21: DecomIncentiveBPA | ED21: EquipmentIncentiveQuantity | EE21: EquipmentIncentiveUtility | EF21: EquipmentIncentiveBPA | EG21: MeasureText | EH21: DecommissioningAndEquipmentResultsText | EI21: ControlsResultsText | EJ21: PrecondTotalMeasureKWH | EK21: ArithTotalMeasureKWH | EL21: ProposedTotalMeasureKWH | EM21: PrecondTotalMeasureKWHwithHVAC | EN21: ArithTotalMeasureKWHwithHVAC | EO21: ProposedTotalMeasureKWHwithHVAC | EP21: PrecondKWPercentSavings | EQ21: ArithKWPercentSavings | ER21: TotalUtilityIncentive | ES21: TotalBPAIncentive | ET21: NonStandardStatus | EU21: StatusNotes | EV21: ControlkWhSavings 'NOTE THAT THIS IS ACTUALLY A PERCENT SAVINGS (0 TO 100)" | EW21: UtilityEquipmentIncentiveRate | EX21: DecomAndEquipmentIncentiveName | EY21: DecomAndEquipmentIncentiveDescription | EZ21: ControlsIncentiveName | FA21: ControlsIncentiveDescription | FB21: ApprovedNonStandardUserFieldConcat | FC21: SpaceType | FD21: RefNo | FF21: RetrofitMeasureDescription | FG21: NotificationMessage
K22: 1

Sheet user_UtilityInformation
K2: ENTER UTILITY INFORMATION
K4: Welcome to the Utility Customization Portal. Here, the lighting calculator can be customized for individual utilities. Throughout the lighting calculator, data must be entered using the forms to the left. On the right, additional information or tables are provided to enhance the usability of the calculator.
K6: Using the form to the left, enter all utility information requested, including:
K7: - Utility Name
K9: - Utility ID
K10: This field will be auto-populated.
K12: - Unique Utility Name
K13: This name will appear as the utility name throughout the lighting calculator.
K15: - Calculator Name
K16: This name will appear as a title throughout the lighting calculator.
K18: - Utility Logo
K19: Here, users can browse for their utility logo and upload to the calculator. Files must be valid picture file types (i.e. jpg, gif, or bmp) to upload correctly. Make sure that your logo file size does not exceed 500KB in order to minimize the overall size of the lighting calculator file.
K21: - Utility Website
K22: This website will be provided to trade allies when they use the calculator.
K24: - Utility Contact Information
K25: Users should provide contact information for the lighting calculator point person at their utility who can be contacted by trade allies or BPA.
K27: Once the "Utility Information" tab has been completed, move on to the "Rates" and "Incentives" tabs where users can customize utility rate schedules ($/kWh,$/kW) and utility incentives. After completing the first three tabs, you can view and print calculator documents ("Project Reports"), save and close the calculator ("Save and Close") or access calculator help links ("Links").
K29: Note that the calculator MUST be saved using the save buttons provided on the "Save and Close" tab.

Sheet user_UtilityRates
K2: ENTER UTILITY RATES
K4: Using the form provided to the left, enter rate information for each rate class to be used in the lighting calculator. Each rate must have an associated name, $/kWh and $/kW. Add, delete, and navigate through rates using the buttons on the form. The calculator comes pre-loaded with a "Calculator default" rate; however, this default can be changed.
K6: Rate ID # | L6: Rate Name | M6: $ / kWh | N6: $ / kW | O6: Notes
K7: 1 | L7: (B) Small General | M7: 0.08102 | N7: 0 | O7: Small General
K8: 1 | L8: (G) General | M8: 0.050707 | N8: 8.64 | O8: General
K9: 1 | L9: (HVG) High Voltage | M9: 0.0448 | N9: 5.11 | O9: High Voltage General

Sheet user_PrintReady
K2: SELECT FORMS TO VIEW AND PRINT
K4: Using the drop-down box in the form to the left, select from a list of documents that are formatted and ready to print.
K6: Once you select "Project Reports," the data input form to the left will resize for easier viewing. Project report documents include:
K8: - Utility Summary
K9: The utility summary form provides a high-level summary of project details, including energy savings, estimated utility incentives, and estimated project payback. In addition, the form provides the project's completion date, funding source, and more.
K11: - Customer Proposal
K12: The customer proposal form provides a high-level summary of project details, including: energy savings, O&M savings (if applicable), estimated utility incentives, and estimated project payback.
K14: - Project Summary
K15: The itemized project summary provides additional detail beyond what is available in the customer proposal, including measure savings and incentives for each line item.
K18: Once a document has been selected, click on "Print this document" to launch the printing properties window. (Note: if the Print Preview option is utilized, it may be necessary to press Esc to exit Print Preview mode.)

Sheet user_PrintReadyTA
K2: SELECT FORMS TO VIEW AND PRINT
K4: Using the drop-down box in the form to the left, select from a list of documents that are formatted and ready to print.
K6: Once you select "Project Reports," the data input form to the left will resize for easier viewing. Project report documents include:
K8: - Customer Proposal
K9: The customer proposal form provides a high-level summary of project details, including energy savings, O&M savings (if applicable), estimated utility incentives, and estimated project payback.
K11: - Project Summary
K12: The itemized project summary provides additional detail beyond what is available in the customer proposal, including measure savings and incentives for each line item.
K15: Once a document has been selected, click on "Print this document" to launch the printing properties window. (Note: if the Print Preview option is utilized, it may be necessary to press Esc to exit Print Preview mode.)

Sheet user_SaveAndClose
K2: SAVE OR CLOSE THIS WORKBOOK
K4: Use the form to the left to save and/or close your current workbook session. Note that you MUST use the form to the left to save and close the calculator as the application ribbon and toolbar may not be accessible.
K6: The "Save and Close" tab provides the following options:
K7: - Save
K8: This saves the workbook as it is currently named.
K10: - Save As
K11: This launches the "Save As" properties box, where the current file can be renamed and saved. Do NOT change the file type when saving. The file must be saved as an "Excel 97-2003 Workbook," which is set by default as the selected option.
K13: - Save and Close
K14: This saves the workbook as it is currently named and closes your workbook session.
K16: - Close Without Saving
K17: This closes the calculator without saving it.

Sheet user_Links
K2: SELECT LINK(S) TO ACCESS CALCULATOR HELP
K4: The form to the left provides one or more links which take users to the help and information pages for the BPA lighting calculator. The help page will include lighting calculator updates, latest versions of the calculator, and training videos.
K6: Clicking the link(s) to the left should automatically open the default web browser and connect to the selected site. If the web browser does not open automatically, click near the web link until the flashing cursor appears. Then use Shift+Arrow Key (left arrow or right arrow, depending) to copy the web link and paste into the browser.

Sheet user_RequiredProjectInfo
K2: REQUIRED PROJECT INFORMATION
K4: Welcome to the Utility Review Portal. This portal allows users to review a lighting project that has been entered by a trade ally. Here and throughout the lighting calculator, data must be entered using the forms to the left. On the right, additional information or tables are provided to enhance the usability of the calculator.
K6: The first tab has two sections: "General Project Information" and the "User Defined Fields."
K7: - General Project Information
K8: All fields in the "General Project Information" section are REQUIRED and must be completed by the utility. All projects must be assigned a: unique site ID, sector, completion date, funding source, and invoice amount. Utilities have the option of invoicing BPA for either 1) the full BPA incentive amount or 2) the utility pass-through amount. The utility pass-through amount can be adjusted on a measure-by-measure level in the “Incentives” tab in the utility customize section. After selecting the invoice amount, please indicate whether the project was completed at a federal site.
K10: - User Defined Fields
K11: Here, utilities are able to create two user-defined fields with custom content. This content is generated on the second page of the "Utility Summary" project report. Utilities are free to customize both the titles and content within the user defined fields.
K13: Once this tab has been completed, move on to the "Add O&M" and "Review Project" tabs. The "Add O&M" tab allows users to add additional O&M savings to a project (note: this is OPTIONAL, not required). The "Review Project" tab allows users to review lighting measure details line by line. Note: The “Review Project” tab is only available for retrofit projects.
K15: Finally, use the form to the left to access formatted, print-ready documents ("Project Reports"), save and close the calculator ("Save & Close") and access help links ("Links") for more information on the lighting calculator.

Sheet user_O&M
K2: ADD PROJECT-LEVEL O&M COSTS (OPTIONAL)
K4: Using the form to the left, additional savings due to reduced project-level operations and maintenance (O&M) costs can be added. Note that this step is OPTIONAL; it is not required for project submittal. Enter periodic O&M costs (i.e. the total cost incurred each time O&M is performed) and the O&M period (i.e. how frequent O&M is performed) for the existing and proposed lighting systems. Total costs include both material AND labor costs, as indicated in the form on the left. To assist in O&M labor cost estimation, additional guidance is provided below.
L6: Estimated Labor Costs
L7: O&M Estimated Costs | M7: Approximate Hourly Rate | N7: Approximate Billing Rate
L8: Custodial Engineer (CE) | M8: $18 - $25 | N8: ~$36 - $50
L9: In-house Labor (electrician / technician) | M9: $20 - $30 | N9: ~$40 - $60
L10: General Labor | M10: $15 - $18 | N10: ~$30 - $40
L11: Maintenance Electrician | M11: $20 - $30 | N11: ~$40 - $60
L12: Construction Electrician Apprentice | M12: $20 - $30 | N12: ~$40 - $60
L13: Construction Electrician Journeyman | M13: $35 - $40 | N13: ~$50 - $100
L15: Estimated Project Completion Times
L16: Projects | N16: Est. Average Time
L17: Time to change a lamp | N17: 5 minutes
L18: Time to change a lamp and ballast | N18: 10 minutes
L19: Time to change a lamp from a ladder | N19: 10 minutes
L20: Time to change a lamp and ballast from a ladder | N20: 15 minutes
L21: Time to change a lamp from a lift | N21: 15 minutes
L22: Time to change a lamp and ballast from a lift | N22: 20 minutes
L23: Time to change a retrofit kit | N23: 15 minutes
L24: Time to change a retrofit kit from a ladder | N24: 20 minutes
L25: Time to change a retro fit kit from a lift | N25: 25 minutes
L26: Time to change a fixture | N26: 15 minutes
L27: Time to change a fixture from a ladder | N27: 30 minutes
L28: Time to change a fixture from a lift | N28: 45 minutes
L29: Time to clean a fixture | N29: 5 minutes
L30: Time to clean a fixture on a ladder | N30: 10 minutes
L31: Time to clean a fixture on a lift | N31: 15 minutes

Sheet user_ProgramOffering
K2: ENTER UTILITY INCENTIVES
K4: Using the form to the left, users can customize utility incentives in three ways: 1) Enter the Maximum % of Project Cost the utility is willing to rebate; 2) Enter the Maximum $ / kWh / Project the utility is willing to pay; and 3) Enter the rebate dollars per measure the utility is willing to pay for each lighting measure. Utilities may customize the B/C ratio required for each project. The dollars per measure incentives can be changed by adjusting the "% Utility Pass-through" of each measure incentive. A 100% pass-through is equal to the BPA incentive for the measure. Navigate through the measure incentives by using the "Measure Series" drop-down box and the navigation arrows (<<,<,>,>>). Calculated project incentives will consider all three of the above mechanisms. The final calculated incentive will be equal to the lowest of the three incentive values.
K7: Program Offerings for Lighting Calculator v5.X2
K9: Measure Series A: LED Small Lamp / Fixture
K11: Measure Series A is intended for interior and exterior LED small lamps and fixtures. This measure series includes: reflectors, PAR, BR, A-lamps, MR-16s, CFLEDs, recessed cans (retrofit included), and other similar medium base LED screw-in and small fixture variations.
K17: Row ID | L17: Measure | N17: Watt Baseline | O17: Required Wattage Reduction | Q17: BPA Incentive | R17: % Utility Pass through | S17: Utility Incentive
K18: 1 | L18: A1-40% | N18: =VLOOKUP(L18,inp_Incentives!$B$6:$E$164,3,FALSE) -> ≤100 | O18: =CONCATENATE("≥ ",TEXT(VLOOKUP(L18,inp_Incentives!$B$6:$E$164,4,FALSE),"0%")) -> ≥ 40% | Q18: =VLOOKUP(L18,inp_Incentives!$B$6:$G$486,6,FALSE) -> 2 | R18: =VLOOKUP(L18,inp_Incentives!$B$6:$H$486,7,FALSE)/100 -> 1 | S18: =VLOOKUP(L18,inp_Incentives!$B$6:$I$486,8,FALSE) -> 0
K19: 2 | L19: A2-40% | N19: =VLOOKUP(L19,inp_Incentives!$B$6:$E$164,3,FALSE) -> ≥101 | O19: =CONCATENATE("≥ ",TEXT(VLOOKUP(L19,inp_Incentives!$B$6:$E$164,4,FALSE),"0%")) -> ≥ 40% | Q19: =VLOOKUP(L19,inp_Incentives!$B$6:$G$486,6,FALSE) -> 5 | R19: =VLOOKUP(L19,inp_Incentives!$B$6:$H$486,7,FALSE)/100 -> 1 | S19: =VLOOKUP(L19,inp_Incentives!$B$6:$I$486,8,FALSE) -> 0
K21: Note: • Please refer to Measure Series F for screw-in LEDs replacing HIDs.
K22: Measure Series B: LED Tubes
K24: Measure Series B covers all sizes, shapes, and configurations (Types A, B, C) of LED Tubes (TLEDs), including, 4’, 8’, irregular lengths, and U-bend.
K28: Row ID | L28: Measure | N28: Watt Baseline | O28: Required Wattage Reduction | Q28: BPA Incentive | R28: % Utility Pass through | S28: Utility Incentive
G29: . | K29: 1 | L29: B1-30% | N29: ="≥ 1" -> ≥ 1 | O29: =CONCATENATE("≥ ",TEXT(VLOOKUP(L29,inp_Incentives!$B$6:$E$164,4,FALSE),"0%")) -> ≥ 30% | Q29: =VLOOKUP(L29,inp_Incentives!$B$6:$G$486,6,FALSE) -> 2 | R29: =VLOOKUP(L29,inp_Incentives!$B$6:$H$486,7,FALSE)/100 -> 1 | S29: =VLOOKUP(L29,inp_Incentives!$B$6:$I$486,8,FALSE) -> 2
K34: Measure Series C: LED General Indoor / Outdoor
K36: The General Indoor / Outdoor category includes a variety of fixtures typically installed under 15’ including recessed troffers, surface mounted wraps, vapor tights, and a wide assortment of other general service lamps fixtures.
K42: Row ID | L42: Measure | N42: Watt Baseline | O42: Required Wattage Reduction | Q42: BPA Incentive Standard | R42: % Utility Passthru | S42: Utility Incent.
K43: 1 | L43: C1-40% | N43: =VLOOKUP(L43,inp_Incentives!$B$6:$E$164,3,FALSE) -> ≤100 | O43: =CONCATENATE("≥ ",TEXT(VLOOKUP(L43,inp_Incentives!$B$6:$E$164,4,FALSE),"0%")) -> ≥ 40% | Q43: =VLOOKUP(L43,inp_Incentives!$B$6:$G$486,6,FALSE) -> 20 | R43: =VLOOKUP(L43,inp_Incentives!$B$6:$H$486,7,FALSE)/100 -> 1 | S43: =VLOOKUP(L43,inp_Incentives!$B$6:$I$486,8,FALSE) -> 20
K44: 2 | L44: C1-40% w/Networked Cont | N44: =VLOOKUP(L44,inp_Incentives!$B$6:$E$164,3,FALSE) -> ≤100 | O44: =CONCATENATE("≥ ",TEXT(VLOOKUP(L44,inp_Incentives!$B$6:$E$164,4,FALSE),"0%")) -> ≥ 40% | Q44: =VLOOKUP(L44,inp_Incentives!$B$6:$G$486,6,FALSE) -> 60 | R44: =VLOOKUP(L44,inp_Incentives!$B$6:$H$486,7,FALSE)/100 -> 1 | S44: =VLOOKUP(L44,inp_Incentives!$B$6:$I$486,8,FALSE) -> 60
K45: 3 | L45: C1-50% | N45: =VLOOKUP(L45,inp_Incentives!$B$6:$E$164,3,FALSE) -> ≤100 | O45: =CONCATENATE("≥ ",TEXT(VLOOKUP(L45,inp_Incentives!$B$6:$E$164,4,FALSE),"0%")) -> ≥ 50% | Q45: =VLOOKUP(L45,inp_Incentives!$B$6:$G$486,6,FALSE) -> 30 | R45: =VLOOKUP(L45,inp_Incentives!$B$6:$H$486,7,FALSE)/100 -> 1 | S45: =VLOOKUP(L45,inp_Incentives!$B$6:$I$486,8,FALSE) -> 30
K46: 4 | L46: C1-50% w/Networked Cont | N46: =VLOOKUP(L46,inp_Incentives!$B$6:$E$164,3,FALSE) -> ≤100 | O46: =CONCATENATE("≥ ",TEXT(VLOOKUP(L46,inp_Incentives!$B$6:$E$164,4,FALSE),"0%")) -> ≥ 50% | Q46: =VLOOKUP(L46,inp_Incentives!$B$6:$G$486,6,FALSE) -> 70 | R46: =VLOOKUP(L46,inp_Incentives!$B$6:$H$486,7,FALSE)/100 -> 1 | S46: =VLOOKUP(L46,inp_Incentives!$B$6:$I$486,8,FALSE) -> 70
K47: 5 | L47: C1-60% | N47: =VLOOKUP(L47,inp_Incentives!$B$6:$E$164,3,FALSE) -> ≤100 | O47: =CONCATENATE("≥ ",TEXT(VLOOKUP(L47,inp_Incentives!$B$6:$E$164,4,FALSE),"0%")) -> ≥ 60% | Q47: =VLOOKUP(L47,inp_Incentives!$B$6:$G$486,6,FALSE) -> 40 | R47: =VLOOKUP(L47,inp_Incentives!$B$6:$H$486,7,FALSE)/100 -> 1 | S47: =VLOOKUP(L47,inp_Incentives!$B$6:$I$486,8,FALSE) -> 40
K48: 6 | L48: C1-60% w/Networked Cont | N48: =VLOOKUP(L48,inp_Incentives!$B$6:$E$164,3,FALSE) -> ≤100 | O48: =CONCATENATE("≥ ",TEXT(VLOOKUP(L48,inp_Incentives!$B$6:$E$164,4,FALSE),"0%")) -> ≥ 60% | Q48: =VLOOKUP(L48,inp_Incentives!$B$6:$G$486,6,FALSE) -> 80 | R48: =VLOOKUP(L48,inp_Incentives!$B$6:$H$486,7,FALSE)/100 -> 1 | S48: =VLOOKUP(L48,inp_Incentives!$B$6:$I$486,8,FALSE) -> 80
K49: 7 | L49: C1-70% | N49: =VLOOKUP(L49,inp_Incentives!$B$6:$E$164,3,FALSE) -> ≤100 | O49: =CONCATENATE("≥ ",TEXT(VLOOKUP(L49,inp_Incentives!$B$6:$E$164,4,FALSE),"0%")) -> ≥ 70% | Q49: =VLOOKUP(L49,inp_Incentives!$B$6:$G$486,6,FALSE) -> 50 | R49: =VLOOKUP(L49,inp_Incentives!$B$6:$H$486,7,FALSE)/100 -> 1 | S49: =VLOOKUP(L49,inp_Incentives!$B$6:$I$486,8,FALSE) -> 50
K50: 8 | L50: C1-70% w/Networked Cont | N50: =VLOOKUP(L50,inp_Incentives!$B$6:$E$164,3,FALSE) -> ≤100 | O50: =CONCATENATE("≥ ",TEXT(VLOOKUP(L50,inp_Incentives!$B$6:$E$164,4,FALSE),"0%")) -> ≥ 70% | Q50: =VLOOKUP(L50,inp_Incentives!$B$6:$G$486,6,FALSE) -> 90 | R50: =VLOOKUP(L50,inp_Incentives!$B$6:$H$486,7,FALSE)/100 -> 1 | S50: =VLOOKUP(L50,inp_Incentives!$B$6:$I$486,8,FALSE) -> 90
K51: 9 | L51: C2-40% | N51: =VLOOKUP(L51,inp_Incentives!$B$6:$E$164,3,FALSE) -> 101-200 | O51: =CONCATENATE("≥ ",TEXT(VLOOKUP(L51,inp_Incentives!$B$6:$E$164,4,FALSE),"0%")) -> ≥ 40% | Q51: =VLOOKUP(L51,inp_Incentives!$B$6:$G$486,6,FALSE) -> 40 | R51: =VLOOKUP(L51,inp_Incentives!$B$6:$H$486,7,FALSE)/100 -> 1 | S51: =VLOOKUP(L51,inp_Incentives!$B$6:$I$486,8,FALSE) -> 40
K52: 10 | L52: C2-40% w/Networked Cont | N52: =VLOOKUP(L52,inp_Incentives!$B$6:$E$164,3,FALSE) -> 101-200 | O52: =CONCATENATE("≥ ",TEXT(VLOOKUP(L52,inp_Incentives!$B$6:$E$164,4,FALSE),"0%")) -> ≥ 40% | Q52: =VLOOKUP(L52,inp_Incentives!$B$6:$G$486,6,FALSE) -> 80 | R52: =VLOOKUP(L52,inp_Incentives!$B$6:$H$486,7,FALSE)/100 -> 1 | S52: =VLOOKUP(L52,inp_Incentives!$B$6:$I$486,8,FALSE) -> 80
K53: 11 | L53: C2-50% | N53: =VLOOKUP(L53,inp_Incentives!$B$6:$E$164,3,FALSE) -> 101-200 | O53: =CONCATENATE("≥ ",TEXT(VLOOKUP(L53,inp_Incentives!$B$6:$E$164,4,FALSE),"0%")) -> ≥ 50% | Q53: =VLOOKUP(L53,inp_Incentives!$B$6:$G$486,6,FALSE) -> 60 | R53: =VLOOKUP(L53,inp_Incentives!$B$6:$H$486,7,FALSE)/100 -> 1 | S53: =VLOOKUP(L53,inp_Incentives!$B$6:$I$486,8,FALSE) -> 60
K54: 12 | L54: C2-50% w/Networked Cont | N54: =VLOOKUP(L54,inp_Incentives!$B$6:$E$164,3,FALSE) -> 101-200 | O54: =CONCATENATE("≥ ",TEXT(VLOOKUP(L54,inp_Incentives!$B$6:$E$164,4,FALSE),"0%")) -> ≥ 50% | Q54: =VLOOKUP(L54,inp_Incentives!$B$6:$G$486,6,FALSE) -> 100 | R54: =VLOOKUP(L54,inp_Incentives!$B$6:$H$486,7,FALSE)/100 -> 1 | S54: =VLOOKUP(L54,inp_Incentives!$B$6:$I$486,8,FALSE) -> 100
K55: 13 | L55: C2-60% | N55: =VLOOKUP(L55,inp_Incentives!$B$6:$E$164,3,FALSE) -> 101-200 | O55: =CONCATENATE("≥ ",TEXT(VLOOKUP(L55,inp_Incentives!$B$6:$E$164,4,FALSE),"0%")) -> ≥ 60% | Q55: =VLOOKUP(L55,inp_Incentives!$B$6:$G$486,6,FALSE) -> 80 | R55: =VLOOKUP(L55,inp_Incentives!$B$6:$H$486,7,FALSE)/100 -> 1 | S55: =VLOOKUP(L55,inp_Incentives!$B$6:$I$486,8,FALSE) -> 80
K56: 14 | L56: C2-60% w/Networked Cont | N56: =VLOOKUP(L56,inp_Incentives!$B$6:$E$164,3,FALSE) -> 101-200 | O56: =CONCATENATE("≥ ",TEXT(VLOOKUP(L56,inp_Incentives!$B$6:$E$164,4,FALSE),"0%")) -> ≥ 60% | Q56: =VLOOKUP(L56,inp_Incentives!$B$6:$G$486,6,FALSE) -> 120 | R56: =VLOOKUP(L56,inp_Incentives!$B$6:$H$486,7,FALSE)/100 -> 1 | S56: =VLOOKUP(L56,inp_Incentives!$B$6:$I$486,8,FALSE) -> 120
K57: 15 | L57: C2-70% | N57: =VLOOKUP(L57,inp_Incentives!$B$6:$E$164,3,FALSE) -> 101-200 | O57: =CONCATENATE("≥ ",TEXT(VLOOKUP(L57,inp_Incentives!$B$6:$E$164,4,FALSE),"0%")) -> ≥ 70% | Q57: =VLOOKUP(L57,inp_Incentives!$B$6:$G$486,6,FALSE) -> 100 | R57: =VLOOKUP(L57,inp_Incentives!$B$6:$H$486,7,FALSE)/100 -> 1 | S57: =VLOOKUP(L57,inp_Incentives!$B$6:$I$486,8,FALSE) -> 100
K58: 16 | L58: C2-70% w/Networked Cont | N58: =VLOOKUP(L58,inp_Incentives!$B$6:$E$164,3,FALSE) -> 101-200 | O58: =CONCATENATE("≥ ",TEXT(VLOOKUP(L58,inp_Incentives!$B$6:$E$164,4,FALSE),"0%")) -> ≥ 70% | Q58: =VLOOKUP(L58,inp_Incentives!$B$6:$G$486,6,FALSE) -> 140 | R58: =VLOOKUP(L58,inp_Incentives!$B$6:$H$486,7,FALSE)/100 -> 1 | S58: =VLOOKUP(L58,inp_Incentives!$B$6:$I$486,8,FALSE) -> 140
K59: 17 | L59: C3-40% | N59: =VLOOKUP(L59,inp_Incentives!$B$6:$E$164,3,FALSE) -> ≥201 | O59: =CONCATENATE("≥ ",TEXT(VLOOKUP(L59,inp_Incentives!$B$6:$E$164,4,FALSE),"0%")) -> ≥ 40% | Q59: =VLOOKUP(L59,inp_Incentives!$B$6:$G$486,6,FALSE) -> 70 | R59: =VLOOKUP(L59,inp_Incentives!$B$6:$H$486,7,FALSE)/100 -> 1 | S59: =VLOOKUP(L59,inp_Incentives!$B$6:$I$486,8,FALSE) -> 70
K60: 18 | L60: C3-40% w/Networked Cont | N60: =VLOOKUP(L60,inp_Incentives!$B$6:$E$164,3,FALSE) -> ≥201 | O60: =CONCATENATE("≥ ",TEXT(VLOOKUP(L60,inp_Incentives!$B$6:$E$164,4,FALSE),"0%")) -> ≥ 40% | Q60: =VLOOKUP(L60,inp_Incentives!$B$6:$G$486,6,FALSE) -> 130 | R60: =VLOOKUP(L60,inp_Incentives!$B$6:$H$486,7,FALSE)/100 -> 1 | S60: =VLOOKUP(L60,inp_Incentives!$B$6:$I$486,8,FALSE) -> 130
K61: 19 | L61: C3-50% | N61: =VLOOKUP(L61,inp_Incentives!$B$6:$E$164,3,FALSE) -> ≥201 | O61: =CONCATENATE("≥ ",TEXT(VLOOKUP(L61,inp_Incentives!$B$6:$E$164,4,FALSE),"0%")) -> ≥ 50% | Q61: =VLOOKUP(L61,inp_Incentives!$B$6:$G$486,6,FALSE) -> 100 | R61: =VLOOKUP(L61,inp_Incentives!$B$6:$H$486,7,FALSE)/100 -> 1 | S61: =VLOOKUP(L61,inp_Incentives!$B$6:$I$486,8,FALSE) -> 100
K62: 20 | L62: C3-50% w/Networked Cont | N62: =VLOOKUP(L62,inp_Incentives!$B$6:$E$164,3,FALSE) -> ≥201 | O62: =CONCATENATE("≥ ",TEXT(VLOOKUP(L62,inp_Incentives!$B$6:$E$164,4,FALSE),"0%")) -> ≥ 50% | Q62: =VLOOKUP(L62,inp_Incentives!$B$6:$G$486,6,FALSE) -> 160 | R62: =VLOOKUP(L62,inp_Incentives!$B$6:$H$486,7,FALSE)/100 -> 1 | S62: =VLOOKUP(L62,inp_Incentives!$B$6:$I$486,8,FALSE) -> 160
K63: 21 | L63: C3-60% | N63: =VLOOKUP(L63,inp_Incentives!$B$6:$E$164,3,FALSE) -> ≥201 | O63: =CONCATENATE("≥ ",TEXT(VLOOKUP(L63,inp_Incentives!$B$6:$E$164,4,FALSE),"0%")) -> ≥ 60% | Q63: =VLOOKUP(L63,inp_Incentives!$B$6:$G$486,6,FALSE) -> 120 | R63: =VLOOKUP(L63,inp_Incentives!$B$6:$H$486,7,FALSE)/100 -> 1 | S63: =VLOOKUP(L63,inp_Incentives!$B$6:$I$486,8,FALSE) -> 120
K64: 22 | L64: C3-60% w/Networked Cont | N64: =VLOOKUP(L64,inp_Incentives!$B$6:$E$164,3,FALSE) -> ≥201 | O64: =CONCATENATE("≥ ",TEXT(VLOOKUP(L64,inp_Incentives!$B$6:$E$164,4,FALSE),"0%")) -> ≥ 60% | Q64: =VLOOKUP(L64,inp_Incentives!$B$6:$G$486,6,FALSE) -> 180 | R64: =VLOOKUP(L64,inp_Incentives!$B$6:$H$486,7,FALSE)/100 -> 1 | S64: =VLOOKUP(L64,inp_Incentives!$B$6:$I$486,8,FALSE) -> 180
K65: 23 | L65: C3-70% | N65: =VLOOKUP(L65,inp_Incentives!$B$6:$E$164,3,FALSE) -> ≥201 | O65: =CONCATENATE("≥ ",TEXT(VLOOKUP(L65,inp_Incentives!$B$6:$E$164,4,FALSE),"0%")) -> ≥ 70% | Q65: =VLOOKUP(L65,inp_Incentives!$B$6:$G$486,6,FALSE) -> 140 | R65: =VLOOKUP(L65,inp_Incentives!$B$6:$H$486,7,FALSE)/100 -> 1 | S65: =VLOOKUP(L65,inp_Incentives!$B$6:$I$486,8,FALSE) -> 140
K66: 24 | L66: C3-70% w/Networked Cont | N66: =VLOOKUP(L66,inp_Incentives!$B$6:$E$164,3,FALSE) -> ≥201 | O66: =CONCATENATE("≥ ",TEXT(VLOOKUP(L66,inp_Incentives!$B$6:$E$164,4,FALSE),"0%")) -> ≥ 70% | Q66: =VLOOKUP(L66,inp_Incentives!$B$6:$G$486,6,FALSE) -> 200 | R66: =VLOOKUP(L66,inp_Incentives!$B$6:$H$486,7,FALSE)/100 -> 1 | S66: =VLOOKUP(L66,inp_Incentives!$B$6:$I$486,8,FALSE) -> 200
K69: Measure Series D: LED High Bay
K71: Measure Series D is intended for interior LED High Bay fixtures
K75: Row ID | L75: Measure | N75: Watt Baseline | O75: Required Wattage Reduction | Q75: BPA Incentive Standard | R75: % Utility Pass through | S75: Utility Incent.
K76: 1 | L76: D1-40% | N76: =VLOOKUP(L76,inp_Incentives!$B$6:$E$164,3,FALSE) -> 140-299 | O76: =CONCATENATE("≥ ",TEXT(VLOOKUP(L76,inp_Incentives!$B$6:$E$164,4,FALSE),"0%")) -> ≥ 40% | Q76: =VLOOKUP(L76,inp_Incentives!$B$6:$G$486,6,FALSE) -> 80 | R76: =VLOOKUP(L76,inp_Incentives!$B$6:$H$486,7,FALSE)/100 -> 1 | S76: =VLOOKUP(L76,inp_Incentives!$B$6:$I$486,8,FALSE) -> 80
K77: 2 | L77: D1-40% w/ Networked Cont | N77: =VLOOKUP(L77,inp_Incentives!$B$6:$E$164,3,FALSE) -> 140-299 | O77: =CONCATENATE("≥ ",TEXT(VLOOKUP(L77,inp_Incentives!$B$6:$E$164,4,FALSE),"0%")) -> ≥ 40% | Q77: =VLOOKUP(L77,inp_Incentives!$B$6:$G$486,6,FALSE) -> 140 | R77: =VLOOKUP(L77,inp_Incentives!$B$6:$H$486,7,FALSE)/100 -> 1 | S77: =VLOOKUP(L77,inp_Incentives!$B$6:$I$486,8,FALSE) -> 140
K78: 3 | L78: D1-60% | N78: =VLOOKUP(L78,inp_Incentives!$B$6:$E$164,3,FALSE) -> 140-299 | O78: =CONCATENATE("≥ ",TEXT(VLOOKUP(L78,inp_Incentives!$B$6:$E$164,4,FALSE),"0%")) -> ≥ 60% | Q78: =VLOOKUP(L78,inp_Incentives!$B$6:$G$486,6,FALSE) -> 140 | R78: =VLOOKUP(L78,inp_Incentives!$B$6:$H$486,7,FALSE)/100 -> 1 | S78: =VLOOKUP(L78,inp_Incentives!$B$6:$I$486,8,FALSE) -> 140
K79: 4 | L79: D1-60% w/ Networked Cont | N79: =VLOOKUP(L79,inp_Incentives!$B$6:$E$164,3,FALSE) -> 140-299 | O79: =CONCATENATE("≥ ",TEXT(VLOOKUP(L79,inp_Incentives!$B$6:$E$164,4,FALSE),"0%")) -> ≥ 60% | Q79: =VLOOKUP(L79,inp_Incentives!$B$6:$G$486,6,FALSE) -> 200 | R79: =VLOOKUP(L79,inp_Incentives!$B$6:$H$486,7,FALSE)/100 -> 1 | S79: =VLOOKUP(L79,inp_Incentives!$B$6:$I$486,8,FALSE) -> 200
K80: 5 | L80: D1-70% | N80: =VLOOKUP(L80,inp_Incentives!$B$6:$E$164,3,FALSE) -> 140-299 | O80: =CONCATENATE("≥ ",TEXT(VLOOKUP(L80,inp_Incentives!$B$6:$E$164,4,FALSE),"0%")) -> ≥ 70% | Q80: =VLOOKUP(L80,inp_Incentives!$B$6:$G$486,6,FALSE) -> 200 | R80: =VLOOKUP(L80,inp_Incentives!$B$6:$H$486,7,FALSE)/100 -> 1 | S80: =VLOOKUP(L80,inp_Incentives!$B$6:$I$486,8,FALSE) -> 200
K81: 6 | L81: D1-70% w/ Networked Cont | N81: =VLOOKUP(L81,inp_Incentives!$B$6:$E$164,3,FALSE) -> 140-299 | O81: =CONCATENATE("≥ ",TEXT(VLOOKUP(L81,inp_Incentives!$B$6:$E$164,4,FALSE),"0%")) -> ≥ 70% | Q81: =VLOOKUP(L81,inp_Incentives!$B$6:$G$486,6,FALSE) -> 260 | R81: =VLOOKUP(L81,inp_Incentives!$B$6:$H$486,7,FALSE)/100 -> 1 | S81: =VLOOKUP(L81,inp_Incentives!$B$6:$I$486,8,FALSE) -> 260
K82: 7 | L82: D2-40% | N82: =VLOOKUP(L82,inp_Incentives!$B$6:$E$164,3,FALSE) -> 300-399 | O82: =CONCATENATE("≥ ",TEXT(VLOOKUP(L82,inp_Incentives!$B$6:$E$164,4,FALSE),"0%")) -> ≥ 40% | Q82: =VLOOKUP(L82,inp_Incentives!$B$6:$G$486,6,FALSE) -> 100 | R82: =VLOOKUP(L82,inp_Incentives!$B$6:$H$486,7,FALSE)/100 -> 1 | S82: =VLOOKUP(L82,inp_Incentives!$B$6:$I$486,8,FALSE) -> 100
K83: 8 | L83: D2-40% w/ Networked Cont | N83: =VLOOKUP(L83,inp_Incentives!$B$6:$E$164,3,FALSE) -> 300-399 | O83: =CONCATENATE("≥ ",TEXT(VLOOKUP(L83,inp_Incentives!$B$6:$E$164,4,FALSE),"0%")) -> ≥ 40% | Q83: =VLOOKUP(L83,inp_Incentives!$B$6:$G$486,6,FALSE) -> 160 | R83: =VLOOKUP(L83,inp_Incentives!$B$6:$H$486,7,FALSE)/100 -> 1 | S83: =VLOOKUP(L83,inp_Incentives!$B$6:$I$486,8,FALSE) -> 160
K84: 9 | L84: D2-60% | N84: =VLOOKUP(L84,inp_Incentives!$B$6:$E$164,3,FALSE) -> 300-399 | O84: =CONCATENATE("≥ ",TEXT(VLOOKUP(L84,inp_Incentives!$B$6:$E$164,4,FALSE),"0%")) -> ≥ 60% | Q84: =VLOOKUP(L84,inp_Incentives!$B$6:$G$486,6,FALSE) -> 180 | R84: =VLOOKUP(L84,inp_Incentives!$B$6:$H$486,7,FALSE)/100 -> 1 | S84: =VLOOKUP(L84,inp_Incentives!$B$6:$I$486,8,FALSE) -> 180
K85: 10 | L85: D2-60% w/ Networked Cont | N85: =VLOOKUP(L85,inp_Incentives!$B$6:$E$164,3,FALSE) -> 300-399 | O85: =CONCATENATE("≥ ",TEXT(VLOOKUP(L85,inp_Incentives!$B$6:$E$164,4,FALSE),"0%")) -> ≥ 60% | Q85: =VLOOKUP(L85,inp_Incentives!$B$6:$G$486,6,FALSE) -> 240 | R85: =VLOOKUP(L85,inp_Incentives!$B$6:$H$486,7,FALSE)/100 -> 1 | S85: =VLOOKUP(L85,inp_Incentives!$B$6:$I$486,8,FALSE) -> 240
K86: 11 | L86: D2-70% | N86: =VLOOKUP(L86,inp_Incentives!$B$6:$E$164,3,FALSE) -> 300-399 | O86: =CONCATENATE("≥ ",TEXT(VLOOKUP(L86,inp_Incentives!$B$6:$E$164,4,FALSE),"0%")) -> ≥ 70% | Q86: =VLOOKUP(L86,inp_Incentives!$B$6:$G$486,6,FALSE) -> 300 | R86: =VLOOKUP(L86,inp_Incentives!$B$6:$H$486,7,FALSE)/100 -> 1 | S86: =VLOOKUP(L86,inp_Incentives!$B$6:$I$486,8,FALSE) -> 300
K87: 12 | L87: D2-70% w/ Networked Cont | N87: =VLOOKUP(L87,inp_Incentives!$B$6:$E$164,3,FALSE) -> 300-399 | O87: =CONCATENATE("≥ ",TEXT(VLOOKUP(L87,inp_Incentives!$B$6:$E$164,4,FALSE),"0%")) -> ≥ 70% | Q87: =VLOOKUP(L87,inp_Incentives!$B$6:$G$486,6,FALSE) -> 360 | R87: =VLOOKUP(L87,inp_Incentives!$B$6:$H$486,7,FALSE)/100 -> 1 | S87: =VLOOKUP(L87,inp_Incentives!$B$6:$I$486,8,FALSE) -> 360
K88: 13 | L88: D3-40% | N88: =VLOOKUP(L88,inp_Incentives!$B$6:$E$164,3,FALSE) -> 400-499 | O88: =CONCATENATE("≥ ",TEXT(VLOOKUP(L88,inp_Incentives!$B$6:$E$164,4,FALSE),"0%")) -> ≥ 40% | Q88: =VLOOKUP(L88,inp_Incentives!$B$6:$G$486,6,FALSE) -> 140 | R88: =VLOOKUP(L88,inp_Incentives!$B$6:$H$486,7,FALSE)/100 -> 1 | S88: =VLOOKUP(L88,inp_Incentives!$B$6:$I$486,8,FALSE) -> 140
K89: 14 | L89: D3-40% w/ Networked Cont | N89: =VLOOKUP(L89,inp_Incentives!$B$6:$E$164,3,FALSE) -> 400-499 | O89: =CONCATENATE("≥ ",TEXT(VLOOKUP(L89,inp_Incentives!$B$6:$E$164,4,FALSE),"0%")) -> ≥ 40% | Q89: =VLOOKUP(L89,inp_Incentives!$B$6:$G$486,6,FALSE) -> 200 | R89: =VLOOKUP(L89,inp_Incentives!$B$6:$H$486,7,FALSE)/100 -> 1 | S89: =VLOOKUP(L89,inp_Incentives!$B$6:$I$486,8,FALSE) -> 200
K90: 15 | L90: D3-60% | N90: =VLOOKUP(L90,inp_Incentives!$B$6:$E$164,3,FALSE) -> 400-499 | O90: =CONCATENATE("≥ ",TEXT(VLOOKUP(L90,inp_Incentives!$B$6:$E$164,4,FALSE),"0%")) -> ≥ 60% | Q90: =VLOOKUP(L90,inp_Incentives!$B$6:$G$486,6,FALSE) -> 240 | R90: =VLOOKUP(L90,inp_Incentives!$B$6:$H$486,7,FALSE)/100 -> 1 | S90: =VLOOKUP(L90,inp_Incentives!$B$6:$I$486,8,FALSE) -> 240
K91: 16 | L91: D3-60% w/ Networked Cont | N91: =VLOOKUP(L91,inp_Incentives!$B$6:$E$164,3,FALSE) -> 400-499 | O91: =CONCATENATE("≥ ",TEXT(VLOOKUP(L91,inp_Incentives!$B$6:$E$164,4,FALSE),"0%")) -> ≥ 60% | Q91: =VLOOKUP(L91,inp_Incentives!$B$6:$G$486,6,FALSE) -> 300 | R91: =VLOOKUP(L91,inp_Incentives!$B$6:$H$486,7,FALSE)/100 -> 1 | S91: =VLOOKUP(L91,inp_Incentives!$B$6:$I$486,8,FALSE) -> 300
K92: 17 | L92: D3-70% | N92: =VLOOKUP(L92,inp_Incentives!$B$6:$E$164,3,FALSE) -> 400-499 | O92: =CONCATENATE("≥ ",TEXT(VLOOKUP(L92,inp_Incentives!$B$6:$E$164,4,FALSE),"0%")) -> ≥ 70% | Q92: =VLOOKUP(L92,inp_Incentives!$B$6:$G$486,6,FALSE) -> 360 | R92: =VLOOKUP(L92,inp_Incentives!$B$6:$H$486,7,FALSE)/100 -> 1 | S92: =VLOOKUP(L92,inp_Incentives!$B$6:$I$486,8,FALSE) -> 360
K93: 18 | L93: D3-70% w/ Networked Cont | N93: =VLOOKUP(L93,inp_Incentives!$B$6:$E$164,3,FALSE) -> 400-499 | O93: =CONCATENATE("≥ ",TEXT(VLOOKUP(L93,inp_Incentives!$B$6:$E$164,4,FALSE),"0%")) -> ≥ 70% | Q93: =VLOOKUP(L93,inp_Incentives!$B$6:$G$486,6,FALSE) -> 420 | R93: =VLOOKUP(L93,inp_Incentives!$B$6:$H$486,7,FALSE)/100 -> 1 | S93: =VLOOKUP(L93,inp_Incentives!$B$6:$I$486,8,FALSE) -> 420
K94: 19 | L94: D4-40% | N94: =VLOOKUP(L94,inp_Incentives!$B$6:$E$164,3,FALSE) -> ≥500 | O94: =CONCATENATE("≥ ",TEXT(VLOOKUP(L94,inp_Incentives!$B$6:$E$164,4,FALSE),"0%")) -> ≥ 40% | Q94: =VLOOKUP(L94,inp_Incentives!$B$6:$G$486,6,FALSE) -> 250 | R94: =VLOOKUP(L94,inp_Incentives!$B$6:$H$486,7,FALSE)/100 -> 1 | S94: =VLOOKUP(L94,inp_Incentives!$B$6:$I$486,8,FALSE) -> 250
K95: 20 | L95: D4-40% w/ Networked Cont | N95: =VLOOKUP(L95,inp_Incentives!$B$6:$E$164,3,FALSE) -> ≥500 | O95: =CONCATENATE("≥ ",TEXT(VLOOKUP(L95,inp_Incentives!$B$6:$E$164,4,FALSE),"0%")) -> ≥ 40% | Q95: =VLOOKUP(L95,inp_Incentives!$B$6:$G$486,6,FALSE) -> 350 | R95: =VLOOKUP(L95,inp_Incentives!$B$6:$H$486,7,FALSE)/100 -> 1 | S95: =VLOOKUP(L95,inp_Incentives!$B$6:$I$486,8,FALSE) -> 350
K96: 21 | L96: D4-60% | N96: =VLOOKUP(L96,inp_Incentives!$B$6:$E$164,3,FALSE) -> ≥500 | O96: =CONCATENATE("≥ ",TEXT(VLOOKUP(L96,inp_Incentives!$B$6:$E$164,4,FALSE),"0%")) -> ≥ 60% | Q96: =VLOOKUP(L96,inp_Incentives!$B$6:$G$486,6,FALSE) -> 400 | R96: =VLOOKUP(L96,inp_Incentives!$B$6:$H$486,7,FALSE)/100 -> 1 | S96: =VLOOKUP(L96,inp_Incentives!$B$6:$I$486,8,FALSE) -> 400
K97: 22 | L97: D4-60% w/ Networked Cont | N97: =VLOOKUP(L97,inp_Incentives!$B$6:$E$164,3,FALSE) -> ≥500 | O97: =CONCATENATE("≥ ",TEXT(VLOOKUP(L97,inp_Incentives!$B$6:$E$164,4,FALSE),"0%")) -> ≥ 60% | Q97: =VLOOKUP(L97,inp_Incentives!$B$6:$G$486,6,FALSE) -> 500 | R97: =VLOOKUP(L97,inp_Incentives!$B$6:$H$486,7,FALSE)/100 -> 1 | S97: =VLOOKUP(L97,inp_Incentives!$B$6:$I$486,8,FALSE) -> 500
K98: 23 | L98: D4-70% | N98: =VLOOKUP(L98,inp_Incentives!$B$6:$E$164,3,FALSE) -> ≥500 | O98: =CONCATENATE("≥ ",TEXT(VLOOKUP(L98,inp_Incentives!$B$6:$E$164,4,FALSE),"0%")) -> ≥ 70% | Q98: =VLOOKUP(L98,inp_Incentives!$B$6:$G$486,6,FALSE) -> 500 | R98: =VLOOKUP(L98,inp_Incentives!$B$6:$H$486,7,FALSE)/100 -> 1 | S98: =VLOOKUP(L98,inp_Incentives!$B$6:$I$486,8,FALSE) -> 500
K99: 24 | L99: D4-70% w/ Networked Cont | N99: =VLOOKUP(L99,inp_Incentives!$B$6:$E$164,3,FALSE) -> ≥500 | O99: =CONCATENATE("≥ ",TEXT(VLOOKUP(L99,inp_Incentives!$B$6:$E$164,4,FALSE),"0%")) -> ≥ 70% | Q99: =VLOOKUP(L99,inp_Incentives!$B$6:$G$486,6,FALSE) -> 600 | R99: =VLOOKUP(L99,inp_Incentives!$B$6:$H$486,7,FALSE)/100 -> 1 | S99: =VLOOKUP(L99,inp_Incentives!$B$6:$I$486,8,FALSE) -> 600
K102: Measure Series E: LED Exterior
K104: Measure Series E covers exterior LED applications including: parking lot, parking garage, roadway, wall packs, bollards, floods, barn/yard, pole lamps, canopy, and high mast. Screw-in LED products replacing HID lamps must use Measure Series F.
K108: Row ID | L108: Measure | N108: Watt Baseline | O108: Required Wattage Reduction | Q108: BPA Incentive | R108: % Utility Pass through | S108: Utility Incentive
K109: 1 | L109: E1-40% | N109: =VLOOKUP(L109,inp_Incentives!$B$6:$E$164,3,FALSE) -> 30-99 | O109: =CONCATENATE("≥ ",TEXT(VLOOKUP(L109,inp_Incentives!$B$6:$E$164,4,FALSE),"0%")) -> ≥ 40% | Q109: =VLOOKUP(L109,inp_Incentives!$B$6:$G$486,6,FALSE) -> 30 | R109: =VLOOKUP(L109,inp_Incentives!$B$6:$H$486,7,FALSE)/100 -> 1 | S109: =VLOOKUP(L109,inp_Incentives!$B$6:$I$486,8,FALSE) -> 30
K110: 2 | L110: E1-60% | N110: =VLOOKUP(L110,inp_Incentives!$B$6:$E$164,3,FALSE) -> 30-99 | O110: =CONCATENATE("≥ ",TEXT(VLOOKUP(L110,inp_Incentives!$B$6:$E$164,4,FALSE),"0%")) -> ≥ 60% | Q110: =VLOOKUP(L110,inp_Incentives!$B$6:$G$486,6,FALSE) -> 40 | R110: =VLOOKUP(L110,inp_Incentives!$B$6:$H$486,7,FALSE)/100 -> 1 | S110: =VLOOKUP(L110,inp_Incentives!$B$6:$I$486,8,FALSE) -> 40
K111: 3 | L111: E1-70% | N111: =VLOOKUP(L111,inp_Incentives!$B$6:$E$164,3,FALSE) -> 30-99 | O111: =CONCATENATE("≥ ",TEXT(VLOOKUP(L111,inp_Incentives!$B$6:$E$164,4,FALSE),"0%")) -> ≥ 70% | Q111: =VLOOKUP(L111,inp_Incentives!$B$6:$G$486,6,FALSE) -> 50 | R111: =VLOOKUP(L111,inp_Incentives!$B$6:$H$486,7,FALSE)/100 -> 1 | S111: =VLOOKUP(L111,inp_Incentives!$B$6:$I$486,8,FALSE) -> 50
K112: 4 | L112: E2-40% | N112: =VLOOKUP(L112,inp_Incentives!$B$6:$E$164,3,FALSE) -> 100-199 | O112: =CONCATENATE("≥ ",TEXT(VLOOKUP(L112,inp_Incentives!$B$6:$E$164,4,FALSE),"0%")) -> ≥ 40% | Q112: =VLOOKUP(L112,inp_Incentives!$B$6:$G$486,6,FALSE) -> 60 | R112: =VLOOKUP(L112,inp_Incentives!$B$6:$H$486,7,FALSE)/100 -> 1 | S112: =VLOOKUP(L112,inp_Incentives!$B$6:$I$486,8,FALSE) -> 60
K113: 5 | L113: E2-60% | N113: =VLOOKUP(L113,inp_Incentives!$B$6:$E$164,3,FALSE) -> 100-199 | O113: =CONCATENATE("≥ ",TEXT(VLOOKUP(L113,inp_Incentives!$B$6:$E$164,4,FALSE),"0%")) -> ≥ 60% | Q113: =VLOOKUP(L113,inp_Incentives!$B$6:$G$486,6,FALSE) -> 80 | R113: =VLOOKUP(L113,inp_Incentives!$B$6:$H$486,7,FALSE)/100 -> 1 | S113: =VLOOKUP(L113,inp_Incentives!$B$6:$I$486,8,FALSE) -> 80
K114: 6 | L114: E2-70% | N114: =VLOOKUP(L114,inp_Incentives!$B$6:$E$164,3,FALSE) -> 100-199 | O114: =CONCATENATE("≥ ",TEXT(VLOOKUP(L114,inp_Incentives!$B$6:$E$164,4,FALSE),"0%")) -> ≥ 70% | Q114: =VLOOKUP(L114,inp_Incentives!$B$6:$G$486,6,FALSE) -> 100 | R114: =VLOOKUP(L114,inp_Incentives!$B$6:$H$486,7,FALSE)/100 -> 1 | S114: =VLOOKUP(L114,inp_Incentives!$B$6:$I$486,8,FALSE) -> 100
K115: 7 | L115: E3-40% | N115: =VLOOKUP(L115,inp_Incentives!$B$6:$E$164,3,FALSE) -> 200-299 | O115: =CONCATENATE("≥ ",TEXT(VLOOKUP(L115,inp_Incentives!$B$6:$E$164,4,FALSE),"0%")) -> ≥ 40% | Q115: =VLOOKUP(L115,inp_Incentives!$B$6:$G$486,6,FALSE) -> 80 | R115: =VLOOKUP(L115,inp_Incentives!$B$6:$H$486,7,FALSE)/100 -> 1 | S115: =VLOOKUP(L115,inp_Incentives!$B$6:$I$486,8,FALSE) -> 80
K116: 8 | L116: E3-60% | N116: =VLOOKUP(L116,inp_Incentives!$B$6:$E$164,3,FALSE) -> 200-299 | O116: =CONCATENATE("≥ ",TEXT(VLOOKUP(L116,inp_Incentives!$B$6:$E$164,4,FALSE),"0%")) -> ≥ 60% | Q116: =VLOOKUP(L116,inp_Incentives!$B$6:$G$486,6,FALSE) -> 120 | R116: =VLOOKUP(L116,inp_Incentives!$B$6:$H$486,7,FALSE)/100 -> 1 | S116: =VLOOKUP(L116,inp_Incentives!$B$6:$I$486,8,FALSE) -> 120
K117: 9 | L117: E3-70% | N117: =VLOOKUP(L117,inp_Incentives!$B$6:$E$164,3,FALSE) -> 200-299 | O117: =CONCATENATE("≥ ",TEXT(VLOOKUP(L117,inp_Incentives!$B$6:$E$164,4,FALSE),"0%")) -> ≥ 70% | Q117: =VLOOKUP(L117,inp_Incentives!$B$6:$G$486,6,FALSE) -> 140 | R117: =VLOOKUP(L117,inp_Incentives!$B$6:$H$486,7,FALSE)/100 -> 1 | S117: =VLOOKUP(L117,inp_Incentives!$B$6:$I$486,8,FALSE) -> 140
K118: 10 | L118: E4-40% | N118: =VLOOKUP(L118,inp_Incentives!$B$6:$E$164,3,FALSE) -> 300-399 | O118: =CONCATENATE("≥ ",TEXT(VLOOKUP(L118,inp_Incentives!$B$6:$E$164,4,FALSE),"0%")) -> ≥ 40% | Q118: =VLOOKUP(L118,inp_Incentives!$B$6:$G$486,6,FALSE) -> 100 | R118: =VLOOKUP(L118,inp_Incentives!$B$6:$H$486,7,FALSE)/100 -> 1 | S118: =VLOOKUP(L118,inp_Incentives!$B$6:$I$486,8,FALSE) -> 100
K119: 11 | L119: E4-60% | N119: =VLOOKUP(L119,inp_Incentives!$B$6:$E$164,3,FALSE) -> 300-399 | O119: =CONCATENATE("≥ ",TEXT(VLOOKUP(L119,inp_Incentives!$B$6:$E$164,4,FALSE),"0%")) -> ≥ 60% | Q119: =VLOOKUP(L119,inp_Incentives!$B$6:$G$486,6,FALSE) -> 180 | R119: =VLOOKUP(L119,inp_Incentives!$B$6:$H$486,7,FALSE)/100 -> 1 | S119: =VLOOKUP(L119,inp_Incentives!$B$6:$I$486,8,FALSE) -> 180
K120: 12 | L120: E4-70% | N120: =VLOOKUP(L120,inp_Incentives!$B$6:$E$164,3,FALSE) -> 300-399 | O120: =CONCATENATE("≥ ",TEXT(VLOOKUP(L120,inp_Incentives!$B$6:$E$164,4,FALSE),"0%")) -> ≥ 70% | Q120: =VLOOKUP(L120,inp_Incentives!$B$6:$G$486,6,FALSE) -> 250 | R120: =VLOOKUP(L120,inp_Incentives!$B$6:$H$486,7,FALSE)/100 -> 1 | S120: =VLOOKUP(L120,inp_Incentives!$B$6:$I$486,8,FALSE) -> 250
K121: 13 | L121: E5-40% | N121: =VLOOKUP(L121,inp_Incentives!$B$6:$E$164,3,FALSE) -> 400-499 | O121: =CONCATENATE("≥ ",TEXT(VLOOKUP(L121,inp_Incentives!$B$6:$E$164,4,FALSE),"0%")) -> ≥ 40% | Q121: =VLOOKUP(L121,inp_Incentives!$B$6:$G$486,6,FALSE) -> 120 | R121: =VLOOKUP(L121,inp_Incentives!$B$6:$H$486,7,FALSE)/100 -> 1 | S121: =VLOOKUP(L121,inp_Incentives!$B$6:$I$486,8,FALSE) -> 120
K122: 14 | L122: E5-60% | N122: =VLOOKUP(L122,inp_Incentives!$B$6:$E$164,3,FALSE) -> 400-499 | O122: =CONCATENATE("≥ ",TEXT(VLOOKUP(L122,inp_Incentives!$B$6:$E$164,4,FALSE),"0%")) -> ≥ 60% | Q122: =VLOOKUP(L122,inp_Incentives!$B$6:$G$486,6,FALSE) -> 220 | R122: =VLOOKUP(L122,inp_Incentives!$B$6:$H$486,7,FALSE)/100 -> 1 | S122: =VLOOKUP(L122,inp_Incentives!$B$6:$I$486,8,FALSE) -> 220
K123: 15 | L123: E5-70% | N123: =VLOOKUP(L123,inp_Incentives!$B$6:$E$164,3,FALSE) -> 400-499 | O123: =CONCATENATE("≥ ",TEXT(VLOOKUP(L123,inp_Incentives!$B$6:$E$164,4,FALSE),"0%")) -> ≥ 70% | Q123: =VLOOKUP(L123,inp_Incentives!$B$6:$G$486,6,FALSE) -> 300 | R123: =VLOOKUP(L123,inp_Incentives!$B$6:$H$486,7,FALSE)/100 -> 1 | S123: =VLOOKUP(L123,inp_Incentives!$B$6:$I$486,8,FALSE) -> 300
K124: 16 | L124: E6-40% | N124: =VLOOKUP(L124,inp_Incentives!$B$6:$E$164,3,FALSE) -> ≥500 | O124: =CONCATENATE("≥ ",TEXT(VLOOKUP(L124,inp_Incentives!$B$6:$E$164,4,FALSE),"0%")) -> ≥ 40% | Q124: =VLOOKUP(L124,inp_Incentives!$B$6:$G$486,6,FALSE) -> 250 | R124: =VLOOKUP(L124,inp_Incentives!$B$6:$H$486,7,FALSE)/100 -> 1 | S124: =VLOOKUP(L124,inp_Incentives!$B$6:$I$486,8,FALSE) -> 250
K125: 17 | L125: E6-60% | N125: =VLOOKUP(L125,inp_Incentives!$B$6:$E$164,3,FALSE) -> ≥500 | O125: =CONCATENATE("≥ ",TEXT(VLOOKUP(L125,inp_Incentives!$B$6:$E$164,4,FALSE),"0%")) -> ≥ 60% | Q125: =VLOOKUP(L125,inp_Incentives!$B$6:$G$486,6,FALSE) -> 400 | R125: =VLOOKUP(L125,inp_Incentives!$B$6:$H$486,7,FALSE)/100 -> 1 | S125: =VLOOKUP(L125,inp_Incentives!$B$6:$I$486,8,FALSE) -> 400
K126: 18 | L126: E6-70% | N126: =VLOOKUP(L126,inp_Incentives!$B$6:$E$164,3,FALSE) -> ≥500 | O126: =CONCATENATE("≥ ",TEXT(VLOOKUP(L126,inp_Incentives!$B$6:$E$164,4,FALSE),"0%")) -> ≥ 70% | Q126: =VLOOKUP(L126,inp_Incentives!$B$6:$G$486,6,FALSE) -> 500 | R126: =VLOOKUP(L126,inp_Incentives!$B$6:$H$486,7,FALSE)/100 -> 1 | S126: =VLOOKUP(L126,inp_Incentives!$B$6:$I$486,8,FALSE) -> 500
K129: Measure Series F: HID Screw-in Replacements LEDs
K133: Measure Series F covers all mogul and medium base LED products replacing existing HID lamps in applications including: High Bay, Wall Pack, Parking Lot, Parking Garage, Roadway, Canopy, and Yard/Barn
K137: Row ID | L137: Measure | N137: Watt Baseline | O137: Required Wattage Reduction | Q137: BPA Incentive | R137: % Utility Pass through | S137: Utility Incentive
K138: 1 | L138: F1-40% | N138: =VLOOKUP(L138,inp_Incentives!$B$6:$E$164,3,FALSE) -> 40-200 | O138: =CONCATENATE("≥ ",TEXT(VLOOKUP(L138,inp_Incentives!$B$6:$E$164,4,FALSE),"0%")) -> ≥ 40% | Q138: =VLOOKUP(L138,inp_Incentives!$B$6:$G$486,6,FALSE) -> 20 | R138: =VLOOKUP(L138,inp_Incentives!$B$6:$H$486,7,FALSE)/100 -> 1 | S138: =VLOOKUP(L138,inp_Incentives!$B$6:$I$486,8,FALSE) -> 20
K139: 2 | L139: F2-40% | N139: =VLOOKUP(L139,inp_Incentives!$B$6:$E$164,3,FALSE) -> 201-300 | O139: =CONCATENATE("≥ ",TEXT(VLOOKUP(L139,inp_Incentives!$B$6:$E$164,4,FALSE),"0%")) -> ≥ 40% | Q139: =VLOOKUP(L139,inp_Incentives!$B$6:$G$486,6,FALSE) -> 40 | R139: =VLOOKUP(L139,inp_Incentives!$B$6:$H$486,7,FALSE)/100 -> 1 | S139: =VLOOKUP(L139,inp_Incentives!$B$6:$I$486,8,FALSE) -> 40
K140: 3 | L140: F3-40% | N140: =VLOOKUP(L140,inp_Incentives!$B$6:$E$164,3,FALSE) -> 301-400 | O140: =CONCATENATE("≥ ",TEXT(VLOOKUP(L140,inp_Incentives!$B$6:$E$164,4,FALSE),"0%")) -> ≥ 40% | Q140: =VLOOKUP(L140,inp_Incentives!$B$6:$G$486,6,FALSE) -> 60 | R140: =VLOOKUP(L140,inp_Incentives!$B$6:$H$486,7,FALSE)/100 -> 1 | S140: =VLOOKUP(L140,inp_Incentives!$B$6:$I$486,8,FALSE) -> 60
K141: 4 | L141: F4-40% | N141: =VLOOKUP(L141,inp_Incentives!$B$6:$E$164,3,FALSE) -> 401-999 | O141: =CONCATENATE("≥ ",TEXT(VLOOKUP(L141,inp_Incentives!$B$6:$E$164,4,FALSE),"0%")) -> ≥ 40% | Q141: =VLOOKUP(L141,inp_Incentives!$B$6:$G$486,6,FALSE) -> 80 | R141: =VLOOKUP(L141,inp_Incentives!$B$6:$H$486,7,FALSE)/100 -> 1 | S141: =VLOOKUP(L141,inp_Incentives!$B$6:$I$486,8,FALSE) -> 80
K142: 5 | L142: F5-40% | N142: =VLOOKUP(L142,inp_Incentives!$B$6:$E$164,3,FALSE) -> ≥1000 | O142: =CONCATENATE("≥ ",TEXT(VLOOKUP(L142,inp_Incentives!$B$6:$E$164,4,FALSE),"0%")) -> ≥ 40% | Q142: =VLOOKUP(L142,inp_Incentives!$B$6:$G$486,6,FALSE) -> 150 | R142: =VLOOKUP(L142,inp_Incentives!$B$6:$H$486,7,FALSE)/100 -> 1 | S142: =VLOOKUP(L142,inp_Incentives!$B$6:$I$486,8,FALSE) -> 150
K145: Measure Series G: LED Linear
K148: Measure Series G covers interior and exterior linear LED applications and includes: refrigerator case lights and accent/cove lighting applications.
K152: Row ID | L152: Measure | N152: Watt Baseline | O152: Required Wattage Reduction | Q152: BPA Incentive | R152: % Utility Pass through | S152: Utility Incentive
K153: 1 | L153: G1 | N153: =VLOOKUP(L153,inp_Incentives!$B$6:$E$164,3,FALSE) -> N/A | O153: =CONCATENATE("",TEXT(VLOOKUP(L153,inp_Incentives!$B$6:$E$164,4,FALSE),"0%")) -> N/A | Q153: =VLOOKUP(L153,inp_Incentives!$B$6:$G$486,6,FALSE) -> 0.17 | R153: =VLOOKUP(L153,inp_Incentives!$B$6:$H$486,7,FALSE)/100 -> 1 | S153: =VLOOKUP(L153,inp_Incentives!$B$6:$I$486,8,FALSE) -> 0.17
K155: Notes: • Measure Series G applies a calculated incentive and does not require review or pre approval • Please refer to Measure Series J for signage measures.
K157: Measure Series H: LED Exit Signs
K158: Measure Series H covers LED exit signs.
K160: Row ID | L160: Measure | N160: Watt Baseline | O160: Required Wattage Reduction | Q160: BPA Incentive | R160: % Utility Pass through | S160: Utility Incentive
K161: 1 | L161: H-90% | N161: =VLOOKUP(L161,inp_Incentives!$B$6:$E$164,3,FALSE) -> 10-100 | O161: =CONCATENATE("≥ ",TEXT(VLOOKUP(L161,inp_Incentives!$B$6:$E$164,4,FALSE),"0%")) -> ≥ 90% | Q161: =VLOOKUP(L161,inp_Incentives!$B$6:$G$486,6,FALSE) -> 20 | R161: =VLOOKUP(L161,inp_Incentives!$B$6:$H$486,7,FALSE)/100 -> 1 | S161: =VLOOKUP(L161,inp_Incentives!$B$6:$I$486,8,FALSE) -> 20
K164: Measure Series I: Linear Fluorescent
K165: Measure Series I covers all types and lengths of linear fluorescent high bay and low bay fixtures.
K167: Row ID | L167: Measure | N167: Watt Baseline | O167: Required Wattage Reduction | Q167: BPA Incentive | R167: % Utility Pass through | S167: Utility Incentive
K168: 1 | L168: I1-30% | N168: =VLOOKUP(L168,inp_Incentives!$B$6:$E$164,3,FALSE) ->  | O168: =CONCATENATE("≥ ",TEXT(VLOOKUP(L168,inp_Incentives!$B$6:$E$164,4,FALSE),"0%")) ->  | Q168: =VLOOKUP(L168,inp_Incentives!$B$6:$G$486,6,FALSE) ->  | R168: =VLOOKUP(L168,inp_Incentives!$B$6:$H$486,7,FALSE)/100 ->  | S168: =VLOOKUP(L168,inp_Incentives!$B$6:$I$486,8,FALSE) -> 
K169: 2 | L169: I1-40% | N169: =VLOOKUP(L169,inp_Incentives!$B$6:$E$164,3,FALSE) ->  | O169: =CONCATENATE("≥ ",TEXT(VLOOKUP(L169,inp_Incentives!$B$6:$E$164,4,FALSE),"0%")) ->  | Q169: =VLOOKUP(L169,inp_Incentives!$B$6:$G$486,6,FALSE) ->  | R169: =VLOOKUP(L169,inp_Incentives!$B$6:$H$486,7,FALSE)/100 ->  | S169: =VLOOKUP(L169,inp_Incentives!$B$6:$I$486,8,FALSE) -> 
K170: 3 | L170: I2-30% | N170: =VLOOKUP(L170,inp_Incentives!$B$6:$E$164,3,FALSE) ->  | O170: =CONCATENATE("≥ ",TEXT(VLOOKUP(L170,inp_Incentives!$B$6:$E$164,4,FALSE),"0%")) ->  | Q170: =VLOOKUP(L170,inp_Incentives!$B$6:$G$486,6,FALSE) ->  | R170: =VLOOKUP(L170,inp_Incentives!$B$6:$H$486,7,FALSE)/100 ->  | S170: =VLOOKUP(L170,inp_Incentives!$B$6:$I$486,8,FALSE) -> 
K171: 4 | L171: I2-40% | N171: =VLOOKUP(L171,inp_Incentives!$B$6:$E$164,3,FALSE) ->  | O171: =CONCATENATE("≥ ",TEXT(VLOOKUP(L171,inp_Incentives!$B$6:$E$164,4,FALSE),"0%")) ->  | Q171: =VLOOKUP(L171,inp_Incentives!$B$6:$G$486,6,FALSE) ->  | R171: =VLOOKUP(L171,inp_Incentives!$B$6:$H$486,7,FALSE)/100 ->  | S171: =VLOOKUP(L171,inp_Incentives!$B$6:$I$486,8,FALSE) -> 
K172: 5 | L172: I3-30% | N172: =VLOOKUP(L172,inp_Incentives!$B$6:$E$164,3,FALSE) ->  | O172: =CONCATENATE("≥ ",TEXT(VLOOKUP(L172,inp_Incentives!$B$6:$E$164,4,FALSE),"0%")) ->  | Q172: =VLOOKUP(L172,inp_Incentives!$B$6:$G$486,6,FALSE) ->  | R172: =VLOOKUP(L172,inp_Incentives!$B$6:$H$486,7,FALSE)/100 ->  | S172: =VLOOKUP(L172,inp_Incentives!$B$6:$I$486,8,FALSE) -> 
K173: 6 | L173: I3-40% | N173: =VLOOKUP(L173,inp_Incentives!$B$6:$E$164,3,FALSE) ->  | O173: =CONCATENATE("≥ ",TEXT(VLOOKUP(L173,inp_Incentives!$B$6:$E$164,4,FALSE),"0%")) ->  | Q173: =VLOOKUP(L173,inp_Incentives!$B$6:$G$486,6,FALSE) ->  | R173: =VLOOKUP(L173,inp_Incentives!$B$6:$H$486,7,FALSE)/100 ->  | S173: =VLOOKUP(L173,inp_Incentives!$B$6:$I$486,8,FALSE) -> 
K174: 7 | L174: I4-40% | N174: =VLOOKUP(L174,inp_Incentives!$B$6:$E$164,3,FALSE) ->  | O174: =CONCATENATE("≥ ",TEXT(VLOOKUP(L174,inp_Incentives!$B$6:$E$164,4,FALSE),"0%")) ->  | Q174: =VLOOKUP(L174,inp_Incentives!$B$6:$G$486,6,FALSE) ->  | R174: =VLOOKUP(L174,inp_Incentives!$B$6:$H$486,7,FALSE)/100 ->  | S174: =VLOOKUP(L174,inp_Incentives!$B$6:$I$486,8,FALSE) -> 
K175: 8 | L175: I5-40% | N175: =VLOOKUP(L175,inp_Incentives!$B$6:$E$164,3,FALSE) ->  | O175: =CONCATENATE("≥ ",TEXT(VLOOKUP(L175,inp_Incentives!$B$6:$E$164,4,FALSE),"0%")) ->  | Q175: =VLOOKUP(L175,inp_Incentives!$B$6:$G$486,6,FALSE) ->  | R175: =VLOOKUP(L175,inp_Incentives!$B$6:$H$486,7,FALSE)/100 ->  | S175: =VLOOKUP(L175,inp_Incentives!$B$6:$I$486,8,FALSE) -> 
K176: 9 | L176: I6-40% | N176: =VLOOKUP(L176,inp_Incentives!$B$6:$E$164,3,FALSE) ->  | O176: =CONCATENATE("≥ ",TEXT(VLOOKUP(L176,inp_Incentives!$B$6:$E$164,4,FALSE),"0%")) ->  | Q176: =VLOOKUP(L176,inp_Incentives!$B$6:$G$486,6,FALSE) ->  | R176: =VLOOKUP(L176,inp_Incentives!$B$6:$H$486,7,FALSE)/100 ->  | S176: =VLOOKUP(L176,inp_Incentives!$B$6:$I$486,8,FALSE) -> 
K178: Note: • This measure series excludes CFLs.
K179: Measure Series I: Signage
K180: Measure Series I covers sign lighting applications.
K182: Row ID | L182: Measure | N182: Watt Baseline | O182: Required Wattage Reduction | Q182: BPA Incentive (/kWh) | R182: % Utility Pass through | S182: Utility Incentive (/kWh)
K183: 1 | L183: I1 | N183: =VLOOKUP(L183,inp_Incentives!$B$6:$E$164,3,FALSE) -> N/A | O183: =CONCATENATE("",TEXT(VLOOKUP(L183,inp_Incentives!$B$6:$E$164,4,FALSE),"0%")) -> N/A | Q183: =VLOOKUP(L183,inp_Incentives!$B$6:$G$486,6,FALSE) -> 0.17 | R183: =VLOOKUP(L183,inp_Incentives!$B$6:$H$486,7,FALSE)/100 -> 1 | S183: =VLOOKUP(L183,inp_Incentives!$B$6:$I$486,8,FALSE) -> 0.17
K185: Notes: • Measure Series I applies a calculated incentive and does not require review or pre approval
K187: Measure Series J: Decommissioning
K189: The lighting calculator automatically recognizes decommissioning and applies a calculated incentive when there is a reduction in fixtures. Decommissioning measures must achieve a net energy savings of at least 10% and merit an incentive of at least $5.00 to be eligible for an incentive payout. To qualify for decommissioning, a fixture must be completely removed, not just disconnected. BPA will not require conduit leading up to the fixture to be removed.
K191: Row ID | L191: Measure | N191: Watt Baseline | O191: Required Wattage Reduction | Q191: BPA Incentive (/kWh) | R191: % Utility Pass through | S191: Utility Incentive (/kWh)
K192: 1 | L192: J1 | N192: =VLOOKUP(L192,inp_Incentives!$B$6:$E$164,3,FALSE) -> N/A | O192: =CONCATENATE("",TEXT(VLOOKUP(L192,inp_Incentives!$B$6:$E$164,4,FALSE),"0%")) -> N/A | Q192: =VLOOKUP(L192,inp_Incentives!$B$6:$G$486,6,FALSE) -> 0.17 | R192: =VLOOKUP(L192,inp_Incentives!$B$6:$H$486,7,FALSE)/100 -> 1 | S192: =VLOOKUP(L192,inp_Incentives!$B$6:$I$486,8,FALSE) -> 0.17
K194: Note: • Measure Series J applies a calculated incentive and does not require review or pre approval
K196: Measure Series K: Non-Standard Measures
K197: When lighting calculator users are not able to select the desired existing or proposed equipment from the available drop down options, or when otherwise prompted by the lighting calculator, users may enter the information as a non-standard measure to receive a calculated incentive. Non-standard measures must achieve a net energy savings of at least 10% and merit an incentive of at least $5.00 to be eligible for an incentive payout.
K199: Row ID | L199: Measure | N199: Watt Baseline | O199: Required Wattage Reduction | Q199: BPA Incentive (/kWh) | R199: % Utility Pass through | S199: Utility Incentive (/kWh)
K200: 1 | L200: K1 | N200: =VLOOKUP(L200,inp_Incentives!$B$6:$E$164,3,FALSE) -> N/A | O200: =CONCATENATE("",TEXT(VLOOKUP(L200,inp_Incentives!$B$6:$E$164,4,FALSE),"0%")) -> N/A | Q200: =VLOOKUP(L200,inp_Incentives!$B$6:$G$486,6,FALSE) -> 0.17 | R200: =VLOOKUP(L200,inp_Incentives!$B$6:$H$486,7,FALSE)/100 -> 1 | S200: =VLOOKUP(L200,inp_Incentives!$B$6:$I$486,8,FALSE) -> 0.17
K202: Required: • Non-standard measures apply a calculated incentive and must be submitted to the utility for approval
K204: Measure Series L: Controls
K205: Measure series L covers occupancy sensors and multi-functional controls.
K207: Row ID | L207: Measure | N207: Wattage Range | O207: Default Controls Savings Fraction | Q207: BPA Incentive | R207: % Utility Pass through | S207: Utility Incentive
K208: 1 | L208: L1- Occ. Sensor | N208: =INDEX(inp_Incentives!$B$6:$E$164,MATCH(K208&LEFT(L208,2),inp_Incentives!$A$6:$A$164 & inp_Incentives!$B$6:$B$164,0),3) -> 15-44 | O208: =CONCATENATE("≥ ",TEXT(INDEX(inp_Incentives!$B$6:$E$164,MATCH(K208&LEFT(L208,2),inp_Incentives!$A$6:$A$164 & inp_Incentives!$B$6:$B$164,0),4),"0%")) -> ≥ 25% | Q208: =inp_Incentives!G110 -> 10 | R208: =inp_Incentives!H110/100 -> 1 | S208: =inp_Incentives!I110 -> 10
K209: 2 | L209: L1- Occ. Sensor | N209: =INDEX(inp_Incentives!$B$6:$E$164,MATCH(K209&LEFT(L209,2),inp_Incentives!$A$6:$A$164 & inp_Incentives!$B$6:$B$164,0),3) -> 45-200 | O209: =CONCATENATE("≥ ",TEXT(INDEX(inp_Incentives!$B$6:$E$164,MATCH(K209&LEFT(L209,2),inp_Incentives!$A$6:$A$164 & inp_Incentives!$B$6:$B$164,0),4),"0%")) -> ≥ 25% | Q209: =inp_Incentives!G111 -> 30 | R209: =inp_Incentives!H111/100 -> 1 | S209: =inp_Incentives!I111 -> 30
K210: 3 | L210: L1- Occ. Sensor | N210: =INDEX(inp_Incentives!$B$6:$E$164,MATCH(K210&LEFT(L210,2),inp_Incentives!$A$6:$A$164 & inp_Incentives!$B$6:$B$164,0),3) -> ≥201 | O210: =CONCATENATE("≥ ",TEXT(INDEX(inp_Incentives!$B$6:$E$164,MATCH(K210&LEFT(L210,2),inp_Incentives!$A$6:$A$164 & inp_Incentives!$B$6:$B$164,0),4),"0%")) -> ≥ 25% | Q210: =inp_Incentives!G112 -> 50 | R210: =inp_Incentives!H112/100 -> 1 | S210: =inp_Incentives!I112 -> 50
K211: 4 | L211: L2- Dual TechControls | N211: =INDEX(inp_Incentives!$B$6:$E$164,MATCH(K211&LEFT(L211,2),inp_Incentives!$A$6:$A$164 & inp_Incentives!$B$6:$B$164,0),3) -> 15-44 | O211: =CONCATENATE("≥ ",TEXT(INDEX(inp_Incentives!$B$6:$E$164,MATCH(K211&LEFT(L211,2),inp_Incentives!$A$6:$A$164 & inp_Incentives!$B$6:$B$164,0),4),"0%")) -> ≥ 25% | Q211: =inp_Incentives!G113 -> 15 | R211: =inp_Incentives!H113/100 -> 1 | S211: =inp_Incentives!I113 -> 15
K212: 5 | L212: L2- Dual TechControls | N212: =INDEX(inp_Incentives!$B$6:$E$164,MATCH(K212&LEFT(L212,2),inp_Incentives!$A$6:$A$164 & inp_Incentives!$B$6:$B$164,0),3) -> 45-200 | O212: =CONCATENATE("≥ ",TEXT(INDEX(inp_Incentives!$B$6:$E$164,MATCH(K212&LEFT(L212,2),inp_Incentives!$A$6:$A$164 & inp_Incentives!$B$6:$B$164,0),4),"0%")) -> ≥ 25% | Q212: =inp_Incentives!G114 -> 40 | R212: =inp_Incentives!H114/100 -> 1 | S212: =inp_Incentives!I114 -> 40
K213: 6 | L213: L2- Dual TechControls | N213: =INDEX(inp_Incentives!$B$6:$E$164,MATCH(K213&LEFT(L213,2),inp_Incentives!$A$6:$A$164 & inp_Incentives!$B$6:$B$164,0),3) -> ≥201 | O213: =CONCATENATE("≥ ",TEXT(INDEX(inp_Incentives!$B$6:$E$164,MATCH(K213&LEFT(L213,2),inp_Incentives!$A$6:$A$164 & inp_Incentives!$B$6:$B$164,0),4),"0%")) -> ≥ 25% | Q213: =inp_Incentives!G115 -> 50 | R213: =inp_Incentives!H115/100 -> 1 | S213: =inp_Incentives!I115 -> 50
K214: 7 | L214: L3- Timer | N214: =INDEX(inp_Incentives!$B$6:$E$164,MATCH(K214&LEFT(L214,2),inp_Incentives!$A$6:$A$164 & inp_Incentives!$B$6:$B$164,0),3) -> 15-44 | O214: =CONCATENATE("≥ ",TEXT(INDEX(inp_Incentives!$B$6:$E$164,MATCH(K214&LEFT(L214,2),inp_Incentives!$A$6:$A$164 & inp_Incentives!$B$6:$B$164,0),4),"0%")) -> ≥ 25% | Q214: =inp_Incentives!G116 -> 10 | R214: =inp_Incentives!H116/100 -> 1 | S214: =inp_Incentives!I116 -> 10
K215: 8 | L215: L3- Timer | N215: =INDEX(inp_Incentives!$B$6:$E$164,MATCH(K215&LEFT(L215,2),inp_Incentives!$A$6:$A$164 & inp_Incentives!$B$6:$B$164,0),3) -> 45-200 | O215: =CONCATENATE("≥ ",TEXT(INDEX(inp_Incentives!$B$6:$E$164,MATCH(K215&LEFT(L215,2),inp_Incentives!$A$6:$A$164 & inp_Incentives!$B$6:$B$164,0),4),"0%")) -> ≥ 25% | Q215: =inp_Incentives!G117 -> 30 | R215: =inp_Incentives!H117/100 -> 1 | S215: =inp_Incentives!I117 -> 30
K216: 9 | L216: L3- Timer | N216: =INDEX(inp_Incentives!$B$6:$E$164,MATCH(K216&LEFT(L216,2),inp_Incentives!$A$6:$A$164 & inp_Incentives!$B$6:$B$164,0),3) -> ≥201 | O216: =CONCATENATE("≥ ",TEXT(INDEX(inp_Incentives!$B$6:$E$164,MATCH(K216&LEFT(L216,2),inp_Incentives!$A$6:$A$164 & inp_Incentives!$B$6:$B$164,0),4),"0%")) -> ≥ 25% | Q216: =inp_Incentives!G118 -> 40 | R216: =inp_Incentives!H118/100 -> 1 | S216: =inp_Incentives!I118 -> 40
K221: New Construction
K224: Row ID | L224: Measure | N224: Watt Baseline | O224: Required Wattage Reduction | Q224: BPA Incentive (/kWh) | R224: % Utility Pass through | S224: Utility Incentive (/kWh)
K225: 1 | L225: NC | N225: =VLOOKUP(L225,inp_Incentives!$B$6:$E$164,3,FALSE) -> N/A | O225: =CONCATENATE("",TEXT(VLOOKUP(L225,inp_Incentives!$B$6:$E$164,4,FALSE),"0%")) -> N/A | Q225: =VLOOKUP(L225,inp_Incentives!$B$6:$G$486,6,FALSE) -> 0.13 | R225: =VLOOKUP(L225,inp_Incentives!$B$6:$H$486,7,FALSE)/100 -> 1 | S225: =VLOOKUP(L225,inp_Incentives!$B$6:$I$486,8,FALSE) -> 0.13

Sheet inp_UtilityInfo
A2: Utility Official Name | B2: Utility Name | C2: Calculator Name | D2: Utility Website | E2: Unique Customer ID | F2: [Blank] | G2: Name | H2: [Blank] | I2: Phone1 | J2: Phone2 | K2: Phone3 | L2: Phone4 | M2: Email | N2: UseDefaultLogo? | O2: PromoMode - Standard | P2: PromoMode - Promotional
A3: Tacoma Power | B3: Tacoma Power | C3: Bright Rebates Calculator | D3: Save with Lighting - Tacoma Public Utilities (mytpu.org) | E3: 10370 | G3: Kerry Cameron | I3: 253 | J3: 279 | K3: 6181 | M3: kcameron@cityoftacoma.org | N3: 0 | O3: TRUE | P3: FALSE

Sheet inp_UtilityRates
A2: RecordNumber | B2: RateName | C2: kWhRate | D2: kWRate | E2: Notes
A3: 1 | B3: (B) Small General | C3: 0.08102 | D3: 0 | E3: Small General Service
A4: 2 | B4: (G) General | C4: 0.050707 | D4: 8.64 | E4: General Service
A5: 3 | B5: (HVG) High Voltage | C5: 0.04483 | D5: 5.11 | E5: High Voltage General Service

Sheet inp_UtilityReview
A1: 0 | B1: 1 | C1: 2 | D1: 3 | E1: 4 | F1: 5 | G1: 6 | H1: 7 | I1: 8 | J1: 9 | K1: 10 | L1: 11 | M1: 12 | N1: 13 | O1: 14
A2: SiteID | B2: Sector | C2: Month | D2: Day | E2: Year | F2: FundSource | G2: InvoiceFullAmount? | H2: FullAmount | I2: PassthruAmount | J2: Federal? | K2: NC1? | L2: NC2? | M2: NC3? | N2: NC4? | O2: ActualProjCost
K3: 0 | L3: 0 | M3: 0 | N3: 0
A5: 0 | B5: 1 | C5: 2 | D5: 3 | E5: 4 | F5: 5
A6: ExistingCost | B6: ProposedCost | C6: ExistingPeriod | D6: ProposedPeriod | E6: TotalOM | F6: OMSpecificationOption | G6: OMSpecificationOptionIndex
A7: N/A | B7: N/A | C7: N/A | D7: N/A | E7: 0.03 | F7: Default: Set to 3% of project costs | G7: 0
A9: IsCalcInDevelopment?
A10: 0
A12: Current Project Approval Status
A13: 0
A15: Field1Title | B15: Field1Content | C15: Field2Title | D15: Field2Content

Sheet inp_NewConstruction
A2: Q1 | B2: Q2 | C2: Q3 | D2: Q4 | E2: Allow? | F2: NC?
A3: 0 | B3: 0 | C3: 0 | D3: 0 | E3: 1 | F3: 0

Sheet inp_CustProposal
B9: Payback Period | C9: =prntrdy_Form1!N16/(prntrdy_Form1!S14+prntrdy_Form1!S15) -> 17.16456572 | D9: yrs
B10: Payback Period | C10: =C9*12 -> 205.9747887 | D10: months
B11: Annual savings | C11: =(prntrdy_Form1!S14+prntrdy_Form1!S15) -> 870.630824 | D11: dollars
B13: Year | C13: Month | D13: Month (if within payback period) | E13: Incremental Monthly Savings | F13: Cumulative Monthly Savings | G13: Cumulative Monthly Savings (if within payback period)
B14: 1 | C14: 1 | D14: =IF(C14<=($C$10+1),C14,"") -> 1 | E14: =$C$11/12 -> 72.55256867 | F14: =E14 -> 72.55256867 | G14: =IF(D14<=($C$10+1),F14,"") -> 72.55256867
B15: 1 | C15: 2 | D15: =IF(C15<=($C$10+1),C15,"") -> 2 | E15: =$C$11/12 -> 72.55256867 | F15: =E15+F14 -> 145.1051373 | G15: =IF(D15<=($C$10+1),F15,"") -> 145.1051373
B16: 1 | C16: 3 | D16: 3 | E16: 72.55256867 | F16: =E16+F15 -> 217.657706 | G16: 217.657706
B17: 1 | C17: 4 | D17: 4 | E17: 72.55256867 | F17: 290.2102747 | G17: 290.2102747
B18: 1 | C18: 5 | D18: 5 | E18: 72.55256867 | F18: 362.7628433 | G18: 362.7628433
B19: 1 | C19: 6 | D19: 6 | E19: 72.55256867 | F19: 435.315412 | G19: 435.315412
B20: 1 | C20: 7 | D20: 7 | E20: 72.55256867 | F20: 507.8679807 | G20: 507.8679807
B21: 1 | C21: 8 | D21: 8 | E21: 72.55256867 | F21: 580.4205493 | G21: 580.4205493
B22: 1 | C22: 9 | D22: 9 | E22: 72.55256867 | F22: 652.973118 | G22: 652.973118
B23: 1 | C23: 10 | D23: 10 | E23: 72.55256867 | F23: 725.5256867 | G23: 725.5256867
B24: 1 | C24: 11 | D24: 11 | E24: 72.55256867 | F24: 798.0782553 | G24: 798.0782553
B25: 1 | C25: 12 | D25: 12 | E25: 72.55256867 | F25: 870.630824 | G25: 870.630824
B26: 2 | C26: 13 | D26: 13 | E26: 72.55256867 | F26: 943.1833927 | G26: 943.1833927
B27: 2 | C27: 14 | D27: 14 | E27: 72.55256867 | F27: 1015.735961 | G27: 1015.735961
B28: 2 | C28: 15 | D28: 15 | E28: 72.55256867 | F28: 1088.28853 | G28: 1088.28853
B29: 2 | C29: 16 | D29: 16 | E29: 72.55256867 | F29: 1160.841099 | G29: 1160.841099
B30: 2 | C30: 17 | D30: 17 | E30: 72.55256867 | F30: 1233.393667 | G30: 1233.393667
B31: 2 | C31: 18 | D31: 18 | E31: 72.55256867 | F31: 1305.946236 | G31: 1305.946236
B32: 2 | C32: 19 | D32: 19 | E32: 72.55256867 | F32: 1378.498805 | G32: 1378.498805
B33: 2 | C33: 20 | D33: 20 | E33: 72.55256867 | F33: 1451.051373 | G33: 1451.051373
B34: 2 | C34: 21 | D34: 21 | E34: 72.55256867 | F34: 1523.603942 | G34: 1523.603942
B35: 2 | C35: 22 | D35: 22 | E35: 72.55256867 | F35: 1596.156511 | G35: 1596.156511
B36: 2 | C36: 23 | D36: 23 | E36: 72.55256867 | F36: 1668.709079 | G36: 1668.709079
B37: 2 | C37: 24 | D37: 24 | E37: 72.55256867 | F37: 1741.261648 | G37: 1741.261648
B38: 3 | C38: 25 | D38: 25 | E38: 72.55256867 | F38: 1813.814217 | G38: 1813.814217
B39: 3 | C39: 26 | D39: 26 | E39: 72.55256867 | F39: 1886.366785 | G39: 1886.366785
B40: 3 | C40: 27 | D40: 27 | E40: 72.55256867 | F40: 1958.919354 | G40: 1958.919354
B41: 3 | C41: 28 | D41: 28 | E41: 72.55256867 | F41: 2031.471923 | G41: 2031.471923
B42: 3 | C42: 29 | D42: 29 | E42: 72.55256867 | F42: 2104.024491 | G42: 2104.024491
B43: 3 | C43: 30 | D43: 30 | E43: 72.55256867 | F43: 2176.57706 | G43: 2176.57706
B44: 3 | C44: 31 | D44: 31 | E44: 72.55256867 | F44: 2249.129629 | G44: 2249.129629
B45: 3 | C45: 32 | D45: 32 | E45: 72.55256867 | F45: 2321.682197 | G45: 2321.682197
B46: 3 | C46: 33 | D46: 33 | E46: 72.55256867 | F46: 2394.234766 | G46: 2394.234766
B47: 3 | C47: 34 | D47: 34 | E47: 72.55256867 | F47: 2466.787335 | G47: 2466.787335
B48: 3 | C48: 35 | D48: 35 | E48: 72.55256867 | F48: 2539.339903 | G48: 2539.339903
B49: 3 | C49: 36 | D49: 36 | E49: 72.55256867 | F49: 2611.892472 | G49: 2611.892472
B50: 4 | C50: 37 | D50: 37 | E50: 72.55256867 | F50: 2684.445041 | G50: 2684.445041
B51: 4 | C51: 38 | D51: 38 | E51: 72.55256867 | F51: 2756.997609 | G51: 2756.997609
B52: 4 | C52: 39 | D52: 39 | E52: 72.55256867 | F52: 2829.550178 | G52: 2829.550178
B53: 4 | C53: 40 | D53: 40 | E53: 72.55256867 | F53: 2902.102747 | G53: 2902.102747
B54: 4 | C54: 41 | D54: 41 | E54: 72.55256867 | F54: 2974.655315 | G54: 2974.655315
B55: 4 | C55: 42 | D55: 42 | E55: 72.55256867 | F55: 3047.207884 | G55: 3047.207884
B56: 4 | C56: 43 | D56: 43 | E56: 72.55256867 | F56: 3119.760453 | G56: 3119.760453
B57: 4 | C57: 44 | D57: 44 | E57: 72.55256867 | F57: 3192.313021 | G57: 3192.313021
B58: 4 | C58: 45 | D58: 45 | E58: 72.55256867 | F58: 3264.86559 | G58: 3264.86559
B59: 4 | C59: 46 | D59: 46 | E59: 72.55256867 | F59: 3337.418159 | G59: 3337.418159
B60: 4 | C60: 47 | D60: 47 | E60: 72.55256867 | F60: 3409.970727 | G60: 3409.970727
B61: 4 | C61: 48 | D61: 48 | E61: 72.55256867 | F61: 3482.523296 | G61: 3482.523296
B62: 5 | C62: 49 | D62: 49 | E62: 72.55256867 | F62: 3555.075865 | G62: 3555.075865
B63: 5 | C63: 50 | D63: 50 | E63: 72.55256867 | F63: 3627.628433 | G63: 3627.628433
B64: 5 | C64: 51 | D64: 51 | E64: 72.55256867 | F64: 3700.181002 | G64: 3700.181002
B65: 5 | C65: 52 | D65: 52 | E65: 72.55256867 | F65: 3772.733571 | G65: 3772.733571
B66: 5 | C66: 53 | D66: 53 | E66: 72.55256867 | F66: 3845.286139 | G66: 3845.286139
B67: 5 | C67: 54 | D67: 54 | E67: 72.55256867 | F67: 3917.838708 | G67: 3917.838708
B68: 5 | C68: 55 | D68: 55 | E68: 72.55256867 | F68: 3990.391277 | G68: 3990.391277
B69: 5 | C69: 56 | D69: 56 | E69: 72.55256867 | F69: 4062.943845 | G69: 4062.943845
B70: 5 | C70: 57 | D70: 57 | E70: 72.55256867 | F70: 4135.496414 | G70: 4135.496414
B71: 5 | C71: 58 | D71: 58 | E71: 72.55256867 | F71: 4208.048983 | G71: 4208.048983
B72: 5 | C72: 59 | D72: 59 | E72: 72.55256867 | F72: 4280.601551 | G72: 4280.601551
B73: 5 | C73: 60 | D73: 60 | E73: 72.55256867 | F73: 4353.15412 | G73: 4353.15412
B74: 6 | C74: 61 | D74: 61 | E74: 72.55256867 | F74: 4425.706689 | G74: 4425.706689
B75: 6 | C75: 62 | D75: 62 | E75: 72.55256867 | F75: 4498.259257 | G75: 4498.259257
B76: 6 | C76: 63 | D76: 63 | E76: 72.55256867 | F76: 4570.811826 | G76: 4570.811826
B77: 6 | C77: 64 | D77: 64 | E77: 72.55256867 | F77: 4643.364395 | G77: 4643.364395
B78: 6 | C78: 65 | D78: 65 | E78: 72.55256867 | F78: 4715.916963 | G78: 4715.916963
B79: 6 | C79: 66 | D79: =IF(C79<=($C$10+1),C79,"") -> 66 | E79: =$C$11/12 -> 72.55256867 | F79: 4788.469532 | G79: =IF(D79<=($C$10+1),F79,"") -> 4788.469532
B80: 6 | C80: 67 | D80: 67 | E80: 72.55256867 | F80: =E80+F79 -> 4861.022101 | G80: 4861.022101
B81: 6 | C81: 68 | D81: 68 | E81: 72.55256867 | F81: 4933.574669 | G81: 4933.574669
B82: 6 | C82: 69 | D82: 69 | E82: 72.55256867 | F82: 5006.127238 | G82: 5006.127238
B83: 6 | C83: 70 | D83: 70 | E83: 72.55256867 | F83: 5078.679807 | G83: 5078.679807
B84: 6 | C84: 71 | D84: 71 | E84: 72.55256867 | F84: 5151.232375 | G84: 5151.232375
B85: 6 | C85: 72 | D85: 72 | E85: 72.55256867 | F85: 5223.784944 | G85: 5223.784944
B86: 7 | C86: 73 | D86: 73 | E86: 72.55256867 | F86: 5296.337513 | G86: 5296.337513
B87: 7 | C87: 74 | D87: 74 | E87: 72.55256867 | F87: 5368.890081 | G87: 5368.890081
B88: 7 | C88: 75 | D88: 75 | E88: 72.55256867 | F88: 5441.44265 | G88: 5441.44265
B89: 7 | C89: 76 | D89: 76 | E89: 72.55256867 | F89: 5513.995219 | G89: 5513.995219
B90: 7 | C90: 77 | D90: 77 | E90: 72.55256867 | F90: 5586.547787 | G90: 5586.547787
B91: 7 | C91: 78 | D91: 78 | E91: 72.55256867 | F91: 5659.100356 | G91: 5659.100356
B92: 7 | C92: 79 | D92: 79 | E92: 72.55256867 | F92: 5731.652925 | G92: 5731.652925
B93: 7 | C93: 80 | D93: 80 | E93: 72.55256867 | F93: 5804.205493 | G93: 5804.205493
B94: 7 | C94: 81 | D94: 81 | E94: 72.55256867 | F94: 5876.758062 | G94: 5876.758062
B95: 7 | C95: 82 | D95: 82 | E95: 72.55256867 | F95: 5949.310631 | G95: 5949.310631
B96: 7 | C96: 83 | D96: 83 | E96: 72.55256867 | F96: 6021.863199 | G96: 6021.863199
B97: 7 | C97: 84 | D97: 84 | E97: 72.55256867 | F97: 6094.415768 | G97: 6094.415768
B98: 8 | C98: 85 | D98: 85 | E98: 72.55256867 | F98: 6166.968337 | G98: 6166.968337
B99: 8 | C99: 86 | D99: 86 | E99: 72.55256867 | F99: 6239.520905 | G99: 6239.520905
B100: 8 | C100: 87 | D100: 87 | E100: 72.55256867 | F100: 6312.073474 | G100: 6312.073474
B101: 8 | C101: 88 | D101: 88 | E101: 72.55256867 | F101: 6384.626043 | G101: 6384.626043
B102: 8 | C102: 89 | D102: 89 | E102: 72.55256867 | F102: 6457.178611 | G102: 6457.178611
B103: 8 | C103: 90 | D103: 90 | E103: 72.55256867 | F103: 6529.73118 | G103: 6529.73118
B104: 8 | C104: 91 | D104: 91 | E104: 72.55256867 | F104: 6602.283749 | G104: 6602.283749
B105: 8 | C105: 92 | D105: 92 | E105: 72.55256867 | F105: 6674.836317 | G105: 6674.836317
B106: 8 | C106: 93 | D106: 93 | E106: 72.55256867 | F106: 6747.388886 | G106: 6747.388886
B107: 8 | C107: 94 | D107: 94 | E107: 72.55256867 | F107: 6819.941455 | G107: 6819.941455
B108: 8 | C108: 95 | D108: 95 | E108: 72.55256867 | F108: 6892.494023 | G108: 6892.494023
B109: 8 | C109: 96 | D109: 96 | E109: 72.55256867 | F109: 6965.046592 | G109: 6965.046592
B110: 9 | C110: 97 | D110: 97 | E110: 72.55256867 | F110: 7037.599161 | G110: 7037.599161
B111: 9 | C111: 98 | D111: 98 | E111: 72.55256867 | F111: 7110.151729 | G111: 7110.151729
B112: 9 | C112: 99 | D112: 99 | E112: 72.55256867 | F112: 7182.704298 | G112: 7182.704298
B113: 9 | C113: 100 | D113: 100 | E113: 72.55256867 | F113: 7255.256867 | G113: 7255.256867
B114: 9 | C114: 101 | D114: 101 | E114: 72.55256867 | F114: 7327.809435 | G114: 7327.809435
B115: 9 | C115: 102 | D115: 102 | E115: 72.55256867 | F115: 7400.362004 | G115: 7400.362004
B116: 9 | C116: 103 | D116: 103 | E116: 72.55256867 | F116: 7472.914573 | G116: 7472.914573
B117: 9 | C117: 104 | D117: 104 | E117: 72.55256867 | F117: 7545.467141 | G117: 7545.467141
B118: 9 | C118: 105 | D118: 105 | E118: 72.55256867 | F118: 7618.01971 | G118: 7618.01971
B119: 9 | C119: 106 | D119: 106 | E119: 72.55256867 | F119: 7690.572279 | G119: 7690.572279
B120: 9 | C120: 107 | D120: 107 | E120: 72.55256867 | F120: 7763.124847 | G120: 7763.124847
B121: 9 | C121: 108 | D121: 108 | E121: 72.55256867 | F121: 7835.677416 | G121: 7835.677416
B122: 10 | C122: 109 | D122: 109 | E122: 72.55256867 | F122: 7908.229985 | G122: 7908.229985
B123: 10 | C123: 110 | D123: 110 | E123: 72.55256867 | F123: 7980.782553 | G123: 7980.782553
B124: 10 | C124: 111 | D124: 111 | E124: 72.55256867 | F124: 8053.335122 | G124: 8053.335122
B125: 10 | C125: 112 | D125: 112 | E125: 72.55256867 | F125: 8125.887691 | G125: 8125.887691
B126: 10 | C126: 113 | D126: 113 | E126: 72.55256867 | F126: 8198.440259 | G126: 8198.440259
B127: 10 | C127: 114 | D127: 114 | E127: 72.55256867 | F127: 8270.992828 | G127: 8270.992828
B128: 10 | C128: 115 | D128: 115 | E128: 72.55256867 | F128: 8343.545397 | G128: 8343.545397
B129: 10 | C129: 116 | D129: 116 | E129: 72.55256867 | F129: 8416.097965 | G129: 8416.097965
B130: 10 | C130: 117 | D130: 117 | E130: 72.55256867 | F130: 8488.650534 | G130: 8488.650534
B131: 10 | C131: 118 | D131: 118 | E131: 72.55256867 | F131: 8561.203103 | G131: 8561.203103
B132: 10 | C132: 119 | D132: 119 | E132: 72.55256867 | F132: 8633.755671 | G132: 8633.755671
B133: 10 | C133: 120 | D133: 120 | E133: 72.55256867 | F133: 8706.30824 | G133: 8706.30824

Sheet inp_NewConInputs
A1: HoursOfOperation_Interior | B1: LightingPowerAllowance_Interior | C1: KWH_CodeBaseline_Interior | D1: ProposedLightingPower_Interior | E1: KWH_Proposed_Interior | F1: KWH_BPABaseline_Interior | G1: KWH_Savings_Interior | H1: KWH_Savings_Interior_HVAC | I1: KWH_Savings_Interior_Adjusted | J1: PercentSavings_Interior | K1: Incentive_Utility_Interior | L1: NewConNotes | M1: NewConHeatType | N1: NewConCoolType | O1: NewConElectricInteraction | P1: NewConGasInteraction | Q1: Incentive_BPA_Interior | R1: HoursOfOperation_Exterior | S1: LightingPowerAllowance_Exterior | T1: KWH_CodeBaseline_Exterior | U1: ProposedLightingPower_Exterior | V1: KWH_Proposed_Exterior | W1: KWH_BPABaseline_Exterior | X1: KWH_Savings_Exterior | Y1: KWH_Savings_Exterior_Adjusted | Z1: PercentSavings_Exterior | AA1: Incentive_Utility_Exterior | AB1: Incentive_BPA_Exterior | AC1: KWH_Savings_Total | AD1: KWH_Savings_Total_Busbar | AE1: Watts_BPABaseline_Total | AF1: Watts_Proposed_Total | AG1: KW_Savings_Total | AH1: KWH_PercentSavings_Total | AI1: ProjectCost_Estimated | AJ1: Flag_MissingActualCost | AK1: Flag_MissingActualAndEstimatedCost | AL1: ProjectCost | AM1: IncrementalCost | AN1: AnnualValue_OandM_Customer | AO1: kWhRate | AP1: kWRate | AQ1: MeasureLife | AR1: Benefit | AS1: BCRatio | AT1: CostPercentageCap_BPA | AU1: CostPercentageCap_Utility | AV1: Incentive_Total_Uncapped_Utility | AW1: Incentive_Total_Uncapped_BPA | AX1: Uncapped_PercentOfProject_Utility | AY1: Uncapped_PercentOfProject_BPA | AZ1: Flag_UtilityIncentiveCapAlert | BA1: Capped_PercentOfProject_Utility | BB1: Flag_BPAIncentiveCapAlert | BC1: Capped_PercentOfProject_BPA | BD1: Incentive_Total_Capped_Utility | BE1: Incentive_Total_Capped_BPA | BF1: MinimumBCRatio | BG1: BCTooLowAlert | BH1: AlertText | BI1: TRC_BCRatio | BJ1: SIZE
A2: 2200 | R2: 4380

Sheet inp_Incentives
A2: % of project cost | B2: $ / kWh / project | C2: Utility min B/C | D2: Default Incentive Mode | E2: 100% Nonstandard Mode
A3: =IF(user_Project!$AG$3="(B) Small General",100,60) -> 100 | B3: =IF(user_Project!$AG$3="(B) Small General",0.19,0.17) -> 0.19 | C3: 0.5 | D3: TRUE | E3: FALSE
D4: THIS COLUMN IS A FORMULA
A5: Row ID | B5: Measure | C5: Description | D5: Watt Baseline | E5: Min Wattage Reduction | G5: BPA Incentive | H5: % Utility Passthrough | I5: Utility Incentive | J5: Min Wattage | K5: Max Wattage | L5: Additional Criteria | M5: Description | N5: User Lookup Description
A6: 1 | B6: A1-40% | C6: LED Small Lamp / Fixture | D6: =IF(J6=0,IF(K6=999999,"any wattage","≤"&K6),IF(K6<>999999,J6&"-"&K6,"≥"&J6)) -> ≤100 | E6: 0.4 | G6: 2 | H6: 100 | I6: 0 | J6: 0 | K6: 100 | M6: LED Small Lamp / Fixture | N6: LED Small Lamp / Fixture
A7: 2 | B7: A2-40% | C7: LED Small Lamp / Fixture | D7: =IF(J7=0,IF(K7=999999,"any wattage","≤"&K7),IF(K7<>999999,J7&"-"&K7,"≥"&J7)) -> ≥101 | E7: 0.4 | G7: 5 | H7: 100 | I7: 0 | J7: 101 | K7: 999999 | M7: LED Small Lamp / Fixture | N7: LED Small Lamp / Fixture
A9: Row ID | B9: Measure | C9: Description | D9: Watt Baseline | E9: Min Wattage Reduction | G9: BPA Incentive | H9: % Utility Passthrough | I9: Utility Incentive | J9: Min Wattage | K9: Max Wattage | L9: Additional Criteria | M9: Description | N9: User Lookup Description
A10: 1 | B10: B1-30% | C10: LED Tubes | D10: >1 | E10: 0.3 | G10: 2 | H10: 100 | I10: 2 | J10: 0 | K10: 1000 | M10: LED Tubes | N10: LED Tubes
A14: Row ID | B14: Measure | C14: Description | D14: Watt Baseline | E14: Min Wattage Reduction | G14: BPA Incentive Standard | H14: % Utility Passthrough | I14: Utility Incentive Standard | J14: Min Wattage | K14: Max Wattage | L14: Additional Criteria | M14: Description | N14: User Lookup Description | O14: BPA Incentive w/ Networked Controls | P14: % Utility Passthrough | Q14: Utility Incentive w/ Networked Controls
A15: 1 | B15: C1-40% | C15: Gen. Indoor / Outdoor Standard | D15: =IF(J15=0,IF(K15=999999,"any wattage","≤"&K15),IF(K15<>999999,J15&"-"&K15,"≥"&J15)) -> ≤100 | E15: 0.4 | G15: 20 | H15: 100 | I15: 20 | J15: 0 | K15: 100 | M15: Gen. Indoor / Outdoor Standard | N15: Gen. Indoor / Outdoor Standard | O15: 60 | P15: 100 | Q15: 60
A16: 2 | B16: C1-40% w/Networked Cont | C16: Gen. Indoor / Outdoor w/Networked Controls | D16: =IF(J16=0,IF(K16=999999,"any wattage","≤"&K16),IF(K16<>999999,J16&"-"&K16,"≥"&J16)) -> ≤100 | E16: 0.4 | G16: 60 | H16: 100 | I16: 60 | J16: 0 | K16: 100 | M16: Gen. Indoor / Outdoor w/Networked Controls | N16: Gen. Indoor / Outdoor w/Networked Controls | O16: 60 | P16: 100 | Q16: 60
A17: 3 | B17: C1-50% | C17: Gen. Indoor / Outdoor Standard | D17: ≤100 | E17: 0.5 | G17: 30 | H17: 100 | I17: 30 | J17: 0 | K17: 100 | M17: Gen. Indoor / Outdoor Standard | N17: Gen. Indoor / Outdoor Standard | O17: 70 | P17: 100 | Q17: 70
A18: 4 | B18: C1-50% w/Networked Cont | C18: Gen. Indoor / Outdoor w/Networked Controls | D18: =IF(J18=0,IF(K18=999999,"any wattage","≤"&K18),IF(K18<>999999,J18&"-"&K18,"≥"&J18)) -> ≤100 | E18: 0.5 | G18: 70 | H18: 100 | I18: 70 | J18: 0 | K18: 100 | M18: Gen. Indoor / Outdoor w/Networked Controls | N18: Gen. Indoor / Outdoor w/Networked Controls | O18: 70 | P18: 100 | Q18: 70
A19: 5 | B19: C1-60% | C19: Gen. Indoor / Outdoor Standard | D19: ≤100 | E19: 0.6 | G19: 40 | H19: 100 | I19: 40 | J19: 0 | K19: 100 | M19: Gen. Indoor / Outdoor Standard | N19: Gen. Indoor / Outdoor Standard | O19: 80 | P19: 100 | Q19: 80
A20: 6 | B20: C1-60% w/Networked Cont | C20: Gen. Indoor / Outdoor w/Networked Controls | D20: ≤100 | E20: 0.6 | G20: 80 | H20: 100 | I20: 80 | J20: 0 | K20: 100 | M20: Gen. Indoor / Outdoor w/Networked Controls | N20: Gen. Indoor / Outdoor w/Networked Controls | O20: 80 | P20: 100 | Q20: 80
A21: 7 | B21: C1-70% | C21: Gen. Indoor / Outdoor Standard | D21: ≤100 | E21: 0.7 | G21: 50 | H21: 100 | I21: 50 | J21: 0 | K21: 100 | M21: Gen. Indoor / Outdoor Standard | N21: Gen. Indoor / Outdoor Standard | O21: 90 | P21: 100 | Q21: 90
A22: 8 | B22: C1-70% w/Networked Cont | C22: Gen. Indoor / Outdoor w/Networked Controls | D22: ≤100 | E22: 0.7 | G22: 90 | H22: 100 | I22: 90 | J22: 0 | K22: 100 | M22: Gen. Indoor / Outdoor w/Networked Controls | N22: Gen. Indoor / Outdoor w/Networked Controls | O22: 90 | P22: 100 | Q22: 90
A23: 9 | B23: C2-40% | C23: Gen. Indoor / Outdoor Standard | D23: 101-200 | E23: 0.4 | G23: 40 | H23: 100 | I23: 40 | J23: 101 | K23: 200 | M23: Gen. Indoor / Outdoor Standard | N23: Gen. Indoor / Outdoor Standard | O23: 80 | P23: 100 | Q23: 80
A24: 10 | B24: C2-40% w/Networked Cont | C24: Gen. Indoor / Outdoor w/Networked Controls | D24: 101-200 | E24: 0.4 | G24: 80 | H24: 100 | I24: 80 | J24: 101 | K24: 200 | M24: Gen. Indoor / Outdoor w/Networked Controls | N24: Gen. Indoor / Outdoor w/Networked Controls | O24: 80 | P24: 100 | Q24: 80
A25: 11 | B25: C2-50% | C25: Gen. Indoor / Outdoor Standard | D25: 101-200 | E25: 0.5 | G25: 60 | H25: 100 | I25: 60 | J25: 101 | K25: 200 | M25: Gen. Indoor / Outdoor Standard | N25: Gen. Indoor / Outdoor Standard | O25: 100 | P25: 100 | Q25: 100
A26: 12 | B26: C2-50% w/Networked Cont | C26: Gen. Indoor / Outdoor w/Networked Controls | D26: 101-200 | E26: 0.5 | G26: 100 | H26: 100 | I26: 100 | J26: 101 | K26: 200 | M26: Gen. Indoor / Outdoor w/Networked Controls | N26: Gen. Indoor / Outdoor w/Networked Controls | O26: 100 | P26: 100 | Q26: 100
A27: 13 | B27: C2-60% | C27: Gen. Indoor / Outdoor Standard | D27: 101-200 | E27: 0.6 | G27: 80 | H27: 100 | I27: 80 | J27: 101 | K27: 200 | M27: Gen. Indoor / Outdoor Standard | N27: Gen. Indoor / Outdoor Standard | O27: 120 | P27: 100 | Q27: 120
A28: 14 | B28: C2-60% w/Networked Cont | C28: Gen. Indoor / Outdoor w/Networked Controls | D28: 101-200 | E28: 0.6 | G28: 120 | H28: 100 | I28: 120 | J28: 101 | K28: 200 | M28: Gen. Indoor / Outdoor w/Networked Controls | N28: Gen. Indoor / Outdoor w/Networked Controls | O28: 120 | P28: 100 | Q28: 120
A29: 15 | B29: C2-70% | C29: Gen. Indoor / Outdoor Standard | D29: 101-200 | E29: 0.7 | G29: 100 | H29: 100 | I29: 100 | J29: 101 | K29: 200 | M29: Gen. Indoor / Outdoor Standard | N29: Gen. Indoor / Outdoor Standard | O29: 140 | P29: 100 | Q29: 140
A30: 16 | B30: C2-70% w/Networked Cont | C30: Gen. Indoor / Outdoor w/Networked Controls | D30: 101-200 | E30: 0.7 | G30: 140 | H30: 100 | I30: 140 | J30: 101 | K30: 200 | M30: Gen. Indoor / Outdoor w/Networked Controls | N30: Gen. Indoor / Outdoor w/Networked Controls | O30: 140 | P30: 100 | Q30: 140
A31: 17 | B31: C3-40% | C31: Gen. Indoor / Outdoor Standard | D31: =IF(J31=0,IF(K31=999999,"any wattage","≤"&K31),IF(K31<>999999,J31&"-"&K31,"≥"&J31)) -> ≥201 | E31: 0.4 | G31: 70 | H31: 100 | I31: 70 | J31: 201 | K31: 999999 | M31: Gen. Indoor / Outdoor Standard | N31: Gen. Indoor / Outdoor Standard | O31: 130 | P31: 100 | Q31: 130
A32: 18 | B32: C3-40% w/Networked Cont | C32: Gen. Indoor / Outdoor w/Networked Controls | D32: ≥201 | E32: 0.4 | G32: 130 | H32: 100 | I32: 130 | J32: 201 | K32: 999999 | M32: Gen. Indoor / Outdoor w/Networked Controls | N32: Gen. Indoor / Outdoor w/Networked Controls | O32: 130 | P32: 100 | Q32: 130
A33: 19 | B33: C3-50% | C33: Gen. Indoor / Outdoor Standard | D33: ≥201 | E33: 0.5 | G33: 100 | H33: 100 | I33: 100 | J33: 201 | K33: 999999 | M33: Gen. Indoor / Outdoor Standard | N33: Gen. Indoor / Outdoor Standard | O33: 160 | P33: 100 | Q33: 160
A34: 20 | B34: C3-50% w/Networked Cont | C34: Gen. Indoor / Outdoor w/Networked Controls | D34: ≥201 | E34: 0.5 | G34: 160 | H34: 100 | I34: 160 | J34: 201 | K34: 999999 | M34: Gen. Indoor / Outdoor w/Networked Controls | N34: Gen. Indoor / Outdoor w/Networked Controls | O34: 160 | P34: 100 | Q34: 160
A35: 21 | B35: C3-60% | C35: Gen. Indoor / Outdoor Standard | D35: ≥201 | E35: 0.6 | G35: 120 | H35: 100 | I35: 120 | J35: 201 | K35: 999999 | M35: Gen. Indoor / Outdoor Standard | N35: Gen. Indoor / Outdoor Standard | O35: 180 | P35: 100 | Q35: 180
A36: 22 | B36: C3-60% w/Networked Cont | C36: Gen. Indoor / Outdoor w/Networked Controls | D36: ≥201 | E36: 0.6 | G36: 180 | H36: 100 | I36: 180 | J36: 201 | K36: 999999 | M36: Gen. Indoor / Outdoor w/Networked Controls | N36: Gen. Indoor / Outdoor w/Networked Controls | O36: 180 | P36: 100 | Q36: 180
A37: 23 | B37: C3-70% | C37: Gen. Indoor / Outdoor Standard | D37: ≥201 | E37: 0.7 | G37: 140 | H37: 100 | I37: 140 | J37: 201 | K37: 999999 | M37: Gen. Indoor / Outdoor Standard | N37: Gen. Indoor / Outdoor Standard | O37: 200 | P37: 100 | Q37: 200
A38: 24 | B38: C3-70% w/Networked Cont | C38: Gen. Indoor / Outdoor w/Networked Controls | D38: ≥201 | E38: 0.7 | G38: 200 | H38: 100 | I38: 200 | J38: 201 | K38: 999999 | M38: Gen. Indoor / Outdoor w/Networked Controls | N38: Gen. Indoor / Outdoor w/Networked Controls | O38: 200 | P38: 100 | Q38: 200
A41: Row ID | B41: Measure | C41: Description | D41: Watt Baseline | E41: Min Wattage Reduction | G41: BPA Incentive Standard | H41: % Utility Passthrough | I41: Utility Incentive Standard | J41: Min Wattage | K41: Max Wattage | L41: Additional Criteria | M41: Description | N41: User Lookup Description | O41: BPA Incentive w/ Networked Controls | P41: % Utility Passthrough | Q41: Utility Incentive w/ Networked Controls
A42: 1 | B42: D1-40% | C42: LED High Bay Standard | D42: =IF(J42=0,IF(K42=999999,"any wattage","≤"&K42),IF(K42<>999999,J42&"-"&K42,"≥"&J42)) -> 140-299 | E42: 0.4 | G42: 80 | H42: 100 | I42: 80 | J42: 140 | K42: 299 | M42: LED High Bay Standard | N42: LED High Bay Standard | O42: 140 | P42: 100 | Q42: 140
A43: 2 | B43: D1-40% w/ Networked Cont | C43: LED High Bay w/ Networked Controls | D43: 140-299 | E43: 0.4 | G43: 140 | H43: 100 | I43: 140 | J43: 140 | K43: 299 | M43: LED High Bay w/ Networked Controls | N43: LED High Bay w/ Networked Controls | O43: 140 | P43: 100 | Q43: 140
A44: 3 | B44: D1-60% | C44: LED High Bay Standard | D44: 140-299 | E44: 0.6 | G44: 140 | H44: 100 | I44: 140 | J44: 140 | K44: 299 | M44: LED High Bay Standard | N44: LED High Bay Standard | O44: 200 | P44: 100 | Q44: 200
A45: 4 | B45: D1-60% w/ Networked Cont | C45: LED High Bay w/ Networked Controls | D45: 140-299 | E45: 0.6 | G45: 200 | H45: 100 | I45: 200 | J45: 140 | K45: 299 | M45: LED High Bay w/ Networked Controls | N45: LED High Bay w/ Networked Controls | O45: 200 | P45: 100 | Q45: 200
A46: 5 | B46: D1-70% | C46: LED High Bay Standard | D46: 140-299 | E46: 0.7 | G46: 200 | H46: 100 | I46: 200 | J46: 140 | K46: 299 | M46: LED High Bay Standard | N46: LED High Bay Standard | O46: 260 | P46: 100 | Q46: 260
A47: 6 | B47: D1-70% w/ Networked Cont | C47: LED High Bay w/ Networked Controls | D47: 140-299 | E47: 0.7 | G47: 260 | H47: 100 | I47: 260 | J47: 140 | K47: 299 | M47: LED High Bay w/ Networked Controls | N47: LED High Bay w/ Networked Controls | O47: 260 | P47: 100 | Q47: 260
A48: 7 | B48: D2-40% | C48: LED High Bay Standard | D48: 300-399 | E48: 0.4 | G48: 100 | H48: 100 | I48: 100 | J48: 300 | K48: 399 | M48: LED High Bay Standard | N48: LED High Bay Standard | O48: 160 | P48: 100 | Q48: 160
A49: 8 | B49: D2-40% w/ Networked Cont | C49: LED High Bay w/ Networked Controls | D49: 300-399 | E49: 0.4 | G49: 160 | H49: 100 | I49: 160 | J49: 300 | K49: 399 | M49: LED High Bay w/ Networked Controls | N49: LED High Bay w/ Networked Controls | O49: 160 | P49: 100 | Q49: 160
A50: 9 | B50: D2-60% | C50: LED High Bay Standard | D50: 300-399 | E50: 0.6 | G50: 180 | H50: 100 | I50: 180 | J50: 300 | K50: 399 | M50: LED High Bay Standard | N50: LED High Bay Standard | O50: 240 | P50: 100 | Q50: 240
A51: 10 | B51: D2-60% w/ Networked Cont | C51: LED High Bay w/ Networked Controls | D51: 300-399 | E51: 0.6 | G51: 240 | H51: 100 | I51: 240 | J51: 300 | K51: 399 | M51: LED High Bay w/ Networked Controls | N51: LED High Bay w/ Networked Controls | O51: 240 | P51: 100 | Q51: 240
A52: 11 | B52: D2-70% | C52: LED High Bay Standard | D52: 300-399 | E52: 0.7 | G52: 300 | H52: 100 | I52: 300 | J52: 300 | K52: 399 | M52: LED High Bay Standard | N52: LED High Bay Standard | O52: 360 | P52: 100 | Q52: 360
A53: 12 | B53: D2-70% w/ Networked Cont | C53: LED High Bay w/ Networked Controls | D53: 300-399 | E53: 0.7 | G53: 360 | H53: 100 | I53: 360 | J53: 300 | K53: 399 | M53: LED High Bay w/ Networked Controls | N53: LED High Bay w/ Networked Controls | O53: 360 | P53: 100 | Q53: 360
A54: 13 | B54: D3-40% | C54: LED High Bay Standard | D54: 400-499 | E54: 0.4 | G54: 140 | H54: 100 | I54: 140 | J54: 400 | K54: 499 | M54: LED High Bay Standard | N54: LED High Bay Standard | O54: 200 | P54: 100 | Q54: 200
A55: 14 | B55: D3-40% w/ Networked Cont | C55: LED High Bay w/ Networked Controls | D55: 400-499 | E55: 0.4 | G55: 200 | H55: 100 | I55: 200 | J55: 400 | K55: 499 | M55: LED High Bay w/ Networked Controls | N55: LED High Bay w/ Networked Controls | O55: 200 | P55: 100 | Q55: 200
A56: 15 | B56: D3-60% | C56: LED High Bay Standard | D56: 400-499 | E56: 0.6 | G56: 240 | H56: 100 | I56: 240 | J56: 400 | K56: 499 | M56: LED High Bay Standard | N56: LED High Bay Standard | O56: 300 | P56: 100 | Q56: 300
A57: 16 | B57: D3-60% w/ Networked Cont | C57: LED High Bay w/ Networked Controls | D57: 400-499 | E57: 0.6 | G57: 300 | H57: 100 | I57: 300 | J57: 400 | K57: 499 | M57: LED High Bay w/ Networked Controls | N57: LED High Bay w/ Networked Controls | O57: 300 | P57: 100 | Q57: 300
A58: 17 | B58: D3-70% | C58: LED High Bay Standard | D58: 400-499 | E58: 0.7 | G58: 360 | H58: 100 | I58: 360 | J58: 400 | K58: 499 | M58: LED High Bay Standard | N58: LED High Bay Standard | O58: 420 | P58: 100 | Q58: 420
A59: 18 | B59: D3-70% w/ Networked Cont | C59: LED High Bay w/ Networked Controls | D59: 400-499 | E59: 0.7 | G59: 420 | H59: 100 | I59: 420 | J59: 400 | K59: 499 | M59: LED High Bay w/ Networked Controls | N59: LED High Bay w/ Networked Controls | O59: 420 | P59: 100 | Q59: 420
A60: 19 | B60: D4-40% | C60: LED High Bay Standard | D60: ≥500 | E60: 0.4 | G60: 250 | H60: 100 | I60: 250 | J60: 500 | K60: 999999 | M60: LED High Bay Standard | N60: LED High Bay Standard | O60: 350 | P60: 100 | Q60: 350
A61: 20 | B61: D4-40% w/ Networked Cont | C61: LED High Bay w/ Networked Controls | D61: ≥500 | E61: 0.4 | G61: 350 | H61: 100 | I61: 350 | J61: 500 | K61: 999999 | M61: LED High Bay w/ Networked Controls | N61: LED High Bay w/ Networked Controls | O61: 350 | P61: 100 | Q61: 350
A62: 21 | B62: D4-60% | C62: LED High Bay Standard | D62: ≥500 | E62: 0.6 | G62: 400 | H62: 100 | I62: 400 | J62: 500 | K62: 999999 | M62: LED High Bay Standard | N62: LED High Bay Standard | O62: 500 | P62: 100 | Q62: 500
A63: 22 | B63: D4-60% w/ Networked Cont | C63: LED High Bay w/ Networked Controls | D63: ≥500 | E63: 0.6 | G63: 500 | H63: 100 | I63: 500 | J63: 500 | K63: 999999 | M63: LED High Bay w/ Networked Controls | N63: LED High Bay w/ Networked Controls | O63: 500 | P63: 100 | Q63: 500
A64: 23 | B64: D4-70% | C64: LED High Bay Standard | D64: ≥500 | E64: 0.7 | G64: 500 | H64: 100 | I64: 500 | J64: 500 | K64: 999999 | M64: LED High Bay Standard | N64: LED High Bay Standard | O64: 600 | P64: 100 | Q64: 600
A65: 24 | B65: D4-70% w/ Networked Cont | C65: LED High Bay w/ Networked Controls | D65: ≥500 | E65: 0.7 | G65: 600 | H65: 100 | I65: 600 | J65: 500 | K65: 999999 | M65: LED High Bay w/ Networked Controls | N65: LED High Bay w/ Networked Controls | O65: 600 | P65: 100 | Q65: 600
A67: Row ID | B67: Measure | C67: Description | D67: Watt Baseline | E67: Min Wattage Reduction | G67: BPA Incentive | H67: % Utility Passthrough | I67: Utility Incentive | J67: Min Wattage | K67: Max Wattage | L67: Additional Criteria | M67: Description | N67: User Lookup Description
A68: 1 | B68: E1-40% | C68: LED Exterior | D68: =IF(J68=0,IF(K68=999999,"any wattage","≤"&K68),IF(K68<>999999,J68&"-"&K68,"≥"&J68)) -> 30-99 | E68: 0.4 | G68: 30 | H68: 100 | I68: 30 | J68: 30 | K68: 99 | M68: LED Exterior | N68: LED Exterior
A69: 2 | B69: E1-60% | C69: LED Exterior | D69: 30-99 | E69: 0.6 | G69: 40 | H69: 100 | I69: 40 | J69: 30 | K69: 99 | M69: LED Exterior | N69: LED Exterior
A70: 3 | B70: E1-70% | C70: LED Exterior | D70: 30-99 | E70: 0.7 | G70: 50 | H70: 100 | I70: 50 | J70: 30 | K70: 99 | M70: LED Exterior | N70: LED Exterior
A71: 4 | B71: E2-40% | C71: LED Exterior | D71: 100-199 | E71: 0.4 | G71: 60 | H71: 100 | I71: 60 | J71: 100 | K71: 199 | M71: LED Exterior | N71: LED Exterior
A72: 5 | B72: E2-60% | C72: LED Exterior | D72: 100-199 | E72: 0.6 | G72: 80 | H72: 100 | I72: 80 | J72: 100 | K72: 199 | M72: LED Exterior | N72: LED Exterior
A73: 6 | B73: E2-70% | C73: LED Exterior | D73: 100-199 | E73: 0.7 | G73: 100 | H73: 100 | I73: 100 | J73: 100 | K73: 199 | M73: LED Exterior | N73: LED Exterior
A74: 7 | B74: E3-40% | C74: LED Exterior | D74: 200-299 | E74: 0.4 | G74: 80 | H74: 100 | I74: 80 | J74: 200 | K74: 299 | M74: LED Exterior | N74: LED Exterior
A75: 8 | B75: E3-60% | C75: LED Exterior | D75: 200-299 | E75: 0.6 | G75: 120 | H75: 100 | I75: 120 | J75: 200 | K75: 299 | M75: LED Exterior | N75: LED Exterior
A76: 9 | B76: E3-70% | C76: LED Exterior | D76: 200-299 | E76: 0.7 | G76: 140 | H76: 100 | I76: 140 | J76: 200 | K76: 299 | M76: LED Exterior | N76: LED Exterior
A77: 10 | B77: E4-40% | C77: LED Exterior | D77: 300-399 | E77: 0.4 | G77: 100 | H77: 100 | I77: 100 | J77: 300 | K77: 399 | M77: LED Exterior | N77: LED Exterior
A78: 11 | B78: E4-60% | C78: LED Exterior | D78: 300-399 | E78: 0.6 | G78: 180 | H78: 100 | I78: 180 | J78: 300 | K78: 399 | M78: LED Exterior | N78: LED Exterior
A79: 12 | B79: E4-70% | C79: LED Exterior | D79: 300-399 | E79: 0.7 | G79: 250 | H79: 100 | I79: 250 | J79: 300 | K79: 399 | M79: LED Exterior | N79: LED Exterior
A80: 13 | B80: E5-40% | C80: LED Exterior | D80: 400-499 | E80: 0.4 | G80: 120 | H80: 100 | I80: 120 | J80: 400 | K80: 499 | M80: LED Exterior | N80: LED Exterior
A81: 14 | B81: E5-60% | C81: LED Exterior | D81: 400-499 | E81: 0.6 | G81: 220 | H81: 100 | I81: 220 | J81: 400 | K81: 499 | M81: LED Exterior | N81: LED Exterior
A82: 15 | B82: E5-70% | C82: LED Exterior | D82: 400-499 | E82: 0.7 | G82: 300 | H82: 100 | I82: 300 | J82: 400 | K82: 499 | M82: LED Exterior | N82: LED Exterior
A83: 16 | B83: E6-40% | C83: LED Exterior | D83: ≥500 | E83: 0.4 | G83: 250 | H83: 100 | I83: 250 | J83: 500 | K83: 999999 | M83: LED Exterior | N83: LED Exterior
A84: 17 | B84: E6-60% | C84: LED Exterior | D84: ≥500 | E84: 0.6 | G84: 400 | H84: 100 | I84: 400 | J84: 500 | K84: 999999 | M84: LED Exterior | N84: LED Exterior
A85: 18 | B85: E6-70% | C85: LED Exterior | D85: ≥500 | E85: 0.7 | G85: 500 | H85: 100 | I85: 500 | J85: 500 | K85: 999999 | M85: LED Exterior | N85: LED Exterior
A87: Row ID | B87: Measure | C87: Description | D87: Watt Baseline | E87: Min Wattage Reduction | G87: BPA Incentive | H87: % Utility Passthrough | I87: Utility Incentive | J87: Min Wattage | K87: Max Wattage | M87: Description | N87: User Lookup Description
A88: 1 | B88: F1-40% | C88: HID Screw-in Replacement | D88: =IF(J88=0,IF(K88=999999,"any wattage","≤"&K88),IF(K88<>999999,J88&"-"&K88,"≥"&J88)) -> 40-200 | E88: 0.4 | G88: 20 | H88: 100 | I88: 20 | J88: 40 | K88: 200 | M88: HID Screw-in Replacement | N88: HID Screw-in Replacement
A89: 2 | B89: F2-40% | C89: HID Screw-in Replacement | D89: =IF(J89=0,IF(K89=999999,"any wattage","≤"&K89),IF(K89<>999999,J89&"-"&K89,"≥"&J89)) -> 201-300 | E89: 0.4 | G89: 40 | H89: 100 | I89: 40 | J89: 201 | K89: 300 | M89: HID Screw-in Replacement | N89: HID Screw-in Replacement
A90: 3 | B90: F3-40% | C90: HID Screw-in Replacement | D90: =IF(J90=0,IF(K90=999999,"any wattage","≤"&K90),IF(K90<>999999,J90&"-"&K90,"≥"&J90)) -> 301-400 | E90: 0.4 | G90: 60 | H90: 100 | I90: 60 | J90: 301 | K90: 400 | M90: HID Screw-in Replacement | N90: HID Screw-in Replacement
A91: 4 | B91: F4-40% | C91: HID Screw-in Replacement | D91: =IF(J91=0,IF(K91=999999,"any wattage","≤"&K91),IF(K91<>999999,J91&"-"&K91,"≥"&J91)) -> 401-999 | E91: 0.4 | G91: 80 | H91: 100 | I91: 80 | J91: 401 | K91: 999 | M91: HID Screw-in Replacement | N91: HID Screw-in Replacement
A92: 5 | B92: F5-40% | C92: HID Screw-in Replacement | D92: =IF(J92=0,IF(K92=999999,"any wattage","≤"&K92),IF(K92<>999999,J92&"-"&K92,"≥"&J92)) -> ≥1000 | E92: 0.4 | G92: 150 | H92: 100 | I92: 150 | J92: 1000 | K92: 999999 | M92: HID Screw-in Replacement | N92: HID Screw-in Replacement
A94: Row ID | B94: Measure | C94: Description | D94: Watt Baseline | E94: Min Wattage Reduction | G94: BPA Incentive | H94: % Utility Passthrough | I94: Utility Incentive | J94: Min Wattage | K94: Max Wattage | M94: Description | N94: User Lookup Description
A95: 1 | B95: G1 | C95: LED Linear | D95: N/A | E95: N/A | G95: 0.17 | H95: 100 | I95: 0.17 | J95: 0 | K95: 999999 | M95: LED Linear | N95: LED Linear
A97: Row ID | B97: Measure | C97: Description | D97: Watt Baseline | E97: Min Wattage Reduction | G97: BPA Incentive | H97: % Utility Passthrough | I97: Utility Incentive | J97: Min Wattage | K97: Max Wattage | M97: Description | N97: User Lookup Description
A98: 1 | B98: H-90% | C98: LED Exit Signs | D98: =IF(J98=0,IF(K98=999999,"any wattage","≤"&K98),IF(K98<>999999,J98&"-"&K98,"≥"&J98)) -> 10-100 | E98: 0.9 | G98: 20 | H98: 100 | I98: 20 | J98: 10 | K98: 100 | M98: LED Exit Signs | N98: LED Exit Signs
A100: Row ID | B100: Measure | C100: Description | D100: Watt Baseline | E100: Min Wattage Reduction | G100: BPA Incentive | H100: % Utility Passthrough | I100: Utility Incentive | J100: Min Wattage | K100: Max Wattage | M100: Description | N100: User Lookup Description
A101: 1 | B101: I1 | C101: Signage | D101: N/A | E101: N/A | G101: 0.17 | H101: 100 | I101: 0.17 | J101: 0 | K101: 999999 | M101: Signage | N101: Signage
A103: Row ID | B103: Measure | C103: Description | D103: Watt Baseline | E103: Min Wattage Reduction | G103: BPA Incentive | H103: % Utility Passthrough | I103: Utility Incentive | J103: Min Wattage | K103: Max Wattage | M103: Description | N103: User Lookup Description
A104: 1 | B104: J1 | C104: Decommissioning | D104: N/A | E104: N/A | G104: 0.17 | H104: 100 | I104: 0.17 | J104: N/A | K104: N/A | M104: Decommissioning | N104: Decommissioning
A106: Row ID | B106: Measure | C106: Description | D106: Watt Baseline | E106: Min Wattage Reduction | G106: BPA Incentive | H106: % Utility Passthrough | I106: Utility Incentive | J106: Min Wattage | K106: Max Wattage | M106: Description | N106: User Lookup Description
A107: 1 | B107: K1 | C107: Non-Standard Measures | D107: N/A | E107: N/A | G107: 0.17 | H107: 100 | I107: 0.17 | J107: N/A | K107: N/A | M107: Non-Standard Measures | N107: Non-Standard Measures
A109: Row ID | B109: Measure | C109: Description | D109: Watt Baseline | E109: Min Wattage Reduction | G109: BPA Incentive | H109: % Utility Passthrough | I109: Utility Incentive | J109: Min Wattage | K109: Max Wattage | M109: Description | N109: User Lookup Description
A110: 1 | B110: L1 | C110: Occ. Sensor | D110: =IF(J110=0,IF(K110=999999,"any wattage","≤"&K110),IF(K110<>999999,J110&"-"&K110,"≥"&J110)) -> 15-44 | E110: 0.25 | G110: 10 | H110: 100 | I110: 10 | J110: 15 | K110: 44 | M110: Occ. Sensor | N110: Occ. Sensor
A111: 2 | B111: L1 | C111: Occ. Sensor | D111: 45-200 | E111: 0.25 | G111: 30 | H111: 100 | I111: 30 | J111: 45 | K111: 200 | M111: Occ. Sensor | N111: Occ. Sensor
A112: 3 | B112: L1 | C112: Occ. Sensor | D112: ≥201 | E112: 0.25 | G112: 50 | H112: 100 | I112: 50 | J112: 201 | K112: 999999 | M112: Occ. Sensor | N112: Occ. Sensor
A113: 4 | B113: L2 | C113: Multi Function | D113: 15-44 | E113: 0.25 | G113: 15 | H113: 100 | I113: 15 | J113: 15 | K113: 44 | M113: Multi Function | N113: Multi Function
A114: 5 | B114: L2 | C114: Multi Function | D114: 45-200 | E114: 0.25 | G114: 40 | H114: 100 | I114: 40 | J114: 45 | K114: 200 | M114: Multi Function | N114: Multi Function
A115: 6 | B115: L2 | C115: Multi Function | D115: ≥201 | E115: 0.25 | G115: 50 | H115: 100 | I115: 50 | J115: 201 | K115: 999999 | M115: Multi Function | N115: Multi Function
A116: 7 | B116: L3 | C116: Other | D116: 15-44 | E116: 0.25 | G116: 10 | H116: 100 | I116: 10 | J116: 15 | K116: 44 | M116: Other | N116: Other
A117: 8 | B117: L3 | C117: Other | D117: 45-200 | E117: 0.25 | G117: 30 | H117: 100 | I117: 30 | J117: 45 | K117: 200 | M117: Other | N117: Other
A118: 9 | B118: L3 | C118: Other | D118: ≥201 | E118: 0.25 | G118: 40 | H118: 100 | I118: 40 | J118: 201 | K118: 999999 | M118: Other | N118: Other
A121: Row ID | B121: Measure | C121: Description | D121: Watt Baseline | E121: Min Wattage Reduction | G121: BPA Incentive | H121: % Utility Passthrough | I121: Utility Incentive | J121: Min Wattage | K121: Max Wattage | M121: Description | N121: User Lookup Description
A122: 1 | B122: NC | C122: New Construction | D122: N/A | E122: N/A | G122: 0.13 | H122: 100 | I122: 0.13 | J122: N/A | K122: N/A | M122: New Construction | N122: New Construction
A124: Row ID | B124: Measure | C124: Description | D124: Watt Baseline | E124: Min Wattage Reduction | G124: BPA Incentive | H124: % Utility Passthrough | I124: Utility Incentive | J124: Min Wattage | K124: Max Wattage | M124: Description | N124: User Lookup Description
A125: 1
A127: Row ID | B127: Measure | C127: Description | D127: Watt Baseline | E127: Min Wattage Reduction | G127: BPA Incentive | H127: % Utility Passthrough | I127: Utility Incentive | J127: Min Wattage | K127: Max Wattage | M127: Description | N127: User Lookup Description
A130: Row ID | B130: Measure | C130: Description | D130: Watt Baseline | E130: Min Wattage Reduction | G130: BPA Incentive | H130: % Utility Passthrough | I130: Utility Incentive | J130: Min Wattage | K130: Max Wattage | M130: Description | N130: User Lookup Description
H131: 10 | I131: 0.02
A133: Row ID | B133: Measure | C133: Description | D133: Watt Baseline | E133: Min Wattage Reduction | G133: BPA Incentive | H133: % Utility Passthrough | I133: Utility Incentive | J133: Min Wattage | K133: Max Wattage | M133: Description | N133: User Lookup Description
A134: 1 | B134: N1 | C134: Controls | D134: =IF(J134=0,IF(K134=999999,"any wattage","≤"&K134),IF(K134<>999999,J134&"-"&K134,"≥"&J134)) -> 45-200 | E134: 0.25 | G134: 35 | H134: 100 | I134: 35 | J134: 45 | K134: 200 | M134: Controls | N134: Controls
A135: 2 | B135: N2 | C135: Controls | D135: =IF(J135=0,IF(K135=999999,"any wattage","≤"&K135),IF(K135<>999999,J135&"-"&K135,"≥"&J135)) -> ≥201 | E135: 0.25 | G135: 60 | H135: 100 | I135: 60 | J135: 201 | K135: 999999 | M135: Controls | N135: Controls

Sheet static_Tables
A1: ALL TABLES EXCEPT MASTER MEASURE LIST THAT ARE STATICALLY DEFINED PRIOR TO CONTRACTOR USE
A2: Table: Heating | M2: hours from John Wilson, Aprl 30, 2013
A3: Building Type | B3: Electric Resistance w/ Cooling | C3: Electric Resistance w/o Cooling | D3: Heat Pump w/ Cooling | E3: Heat Pump w/o Cooling | F3: Gas, Oil, or Biomass w/ Cooling | G3: Gas, Oil, or Biomass w/o Cooling | H3: Cooling w/o Heat | I3: Refrigerated Space | J3: None/Exterior | K3: Gas Htg Penalty Interaction (Therms/kWh ltg saved) | M3: =A3 -> Building Type | N3: New Con Hours of Operation
A4: Assembly | B4: 0.82 | C4: 0.82 | D4: 1 | E4: 1 | F4: 1.03 | G4: 1.03 | H4: 1 | I4: 1.3 | J4: 1 | K4: -0.0081888 | M4: Assembly | N4: 2200
A5: Automotive Repair | B5: 0.61 | C5: 0.61 | D5: 0.8 | E5: 0.8 | F5: 1.03 | G5: 1.03 | H5: 1 | I5: 1.3 | J5: 1 | K5: -0.0177424 | M5: Automotive Repair | N5: 3700
A6: College or University | B6: 0.53 | C6: 0.53 | D6: 0.76 | E6: 0.76 | F6: 1.11 | G6: 1.11 | H6: 1 | I6: 1.3 | J6: 1 | K6: -0.02138186667 | M6: College or University | N6: 6400
A7: Exterior 24 Hour Operation | B7: 1 | C7: 1 | D7: 1 | E7: 1 | F7: 1 | G7: 1 | H7: 1 | I7: 1.3 | J7: 1 | K7: 0 | M7: Exterior 24 Hour Operation | N7: 8760
A8: Hospital | B8: 0.36 | C8: 0.36 | D8: 0.69 | E8: 0.69 | F8: 0.94 | G8: 0.94 | H8: 1 | I8: 1.3 | J8: 1 | K8: -0.03302755422 | M8: Hospital | N8: 6300
A9: Industrial Plant with One Shift | B9: 0.61 | C9: 0.61 | D9: 0.8 | E9: 0.8 | F9: 0.96 | G9: 0.96 | H9: 1 | I9: 1.3 | J9: 1 | K9: -0.0177424 | M9: Industrial Plant with One Shift | N9: 3000
A10: Industrial Plant with Two Shifts | B10: 0.61 | C10: 0.61 | D10: 0.8 | E10: 0.8 | F10: 0.96 | G10: 0.96 | H10: 1 | I10: 1.3 | J10: 1 | K10: -0.0177424 | M10: Industrial Plant with Two Shifts | N10: 6500
A11: Industrial Plant with Three Shifts | B11: 0.61 | C11: 0.61 | D11: 0.8 | E11: 0.8 | F11: 0.96 | G11: 0.96 | H11: 1 | I11: 1.3 | J11: 1 | K11: -0.0177424 | M11: Industrial Plant with Three Shifts | N11: 8760
A12: Library | B12: 0.53 | C12: 0.53 | D12: 0.76 | E12: 0.76 | F12: 1.03 | G12: 1.03 | H12: 1 | I12: 1.3 | J12: 1 | K12: -0.02138186667 | M12: Library | N12: 3700
A13: Lodging | B13: 0.6 | C13: 0.6 | D13: 0.8 | E13: 0.8 | F13: 1.05 | G13: 1.05 | H13: 1 | I13: 1.3 | J13: 1 | K13: -0.01819733333 | M13: Lodging | N13: 8300
A14: Manufacturing | B14: 0.61 | C14: 0.61 | D14: 0.8 | E14: 0.8 | F14: 0.96 | G14: 0.96 | H14: 1 | I14: 1.3 | J14: 1 | K14: -0.0177424 | M14: Manufacturing | N14: 4380
A15: Office <20,000 sf | B15: 0.69 | C15: 0.69 | D15: 0.85 | E15: 0.85 | F15: 1.12 | G15: 1.12 | H15: 1 | I15: 1.3 | J15: 1 | K15: -0.01433746093 | M15: Office <20,000 sf | N15: 3000
A16: Office >100,000 sf | B16: 0.69 | C16: 0.69 | D16: 0.85 | E16: 0.85 | F16: 1.07 | G16: 1.07 | H16: 1 | I16: 1.3 | J16: 1 | K16: -0.01555658902 | M16: Office >100,000 sf | N16: 3000
A17: Office 20,000 to 100,000 sf | B17: 0.66 | C17: 0.66 | D17: 0.84 | E17: 0.84 | F17: 1.08 | G17: 1.08 | H17: 1 | I17: 1.3 | J17: 1 | K17: -0.01652919838 | M17: Office 20,000 to 100,000 sf | N17: 3000
A18: Other Health, Nursing, Medical Clinic | B18: 0.81 | C18: 0.81 | D18: 1 | E18: 1 | F18: 1.08 | G18: 1.08 | H18: 1 | I18: 1.3 | J18: 1 | K18: -0.009020485204 | M18: Other Health, Nursing, Medical Clinic | N18: 4500
A19: Parking Garage | B19: 1 | C19: 1 | D19: 1 | E19: 1 | F19: 1 | G19: 1 | H19: 1 | I19: 1.3 | J19: 1 | K19: 0 | M19: Parking Garage | N19: 8760
A20: Restaurant | B20: 0.74 | C20: 0.74 | D20: 0.88 | E20: 0.88 | F20: 0.96 | G20: 0.96 | H20: 1 | I20: 1.3 | J20: 1 | K20: -0.01164062105 | M20: Restaurant | N20: 4800
A21: Retail 5,000 to 50,000 sf | B21: 0.62 | C21: 0.62 | D21: 0.82 | E21: 0.82 | F21: 1.03 | G21: 1.03 | H21: 1 | I21: 1.3 | J21: 1 | K21: -0.01697942937 | M21: Retail 5,000 to 50,000 sf | N21: 3700
A22: Retail Anchor Store >50,000 sf Multistory | B22: 0.62 | C22: 0.62 | D22: 0.82 | E22: 0.82 | F22: 1.1 | G22: 1.1 | H22: 1 | I22: 1.3 | J22: 1 | K22: -0.01697942937 | M22: Retail Anchor Store >50,000 sf Multistory | N22: 4400
A23: Retail Big Box >50,000 sf One-Story | B23: 0.62 | C23: 0.62 | D23: 0.82 | E23: 0.82 | F23: 1.12 | G23: 1.12 | H23: 1 | I23: 1.3 | J23: 1 | K23: -0.01697942937 | M23: Retail Big Box >50,000 sf One-Story | N23: 4400
A24: Retail Boutique <5,000 sf | B24: 0.54 | C24: 0.54 | D24: 0.78 | E24: 0.78 | F24: 1.04 | G24: 1.04 | H24: 1 | I24: 1.3 | J24: 1 | K24: -0.02077308682 | M24: Retail Boutique <5,000 sf | N24: 2550
A25: Retail Mini Mart | B25: 0.45 | C25: 0.45 | D25: 0.74 | E25: 0.74 | F25: 1.05 | G25: 1.05 | H25: 1 | I25: 1.3 | J25: 1 | K25: -0.02486585607 | M25: Retail Mini Mart | N25: 6500
A26: Retail Supermarket | B26: 0.45 | C26: 0.45 | D26: 0.74 | E26: 0.74 | F26: 1.05 | G26: 1.05 | H26: 1 | I26: 1.3 | J26: 1 | K26: -0.02486585607 | M26: Retail Supermarket | N26: 5800
A27: School K-12 | B27: 0.59 | C27: 0.59 | D27: 0.8 | E27: 0.8 | F27: 1 | G27: 1 | H27: 1 | I27: 1.3 | J27: 1 | K27: -0.02004328137 | M27: School K-12 | N27: 2700
A28: Street & Area Lighting (Photo Sensor Controlled) | B28: 1 | C28: 1 | D28: 1 | E28: 1 | F28: 1 | G28: 1 | H28: 1 | I28: 1.3 | J28: 1 | K28: 0 | M28: Street & Area Lighting (Photo Sensor Controlled) | N28: 4380
A29: Warehouse | B29: 0.82 | C29: 0.82 | D29: 1 | E29: 1 | F29: 0.96 | G29: 0.96 | H29: 1 | I29: 1.3 | J29: 1 | K29: -0.008380958982 | M29: Warehouse | N29: 4000
A30: Other | B30: 0.82 | C30: 0.82 | D30: 1 | E30: 1 | F30: 1.03 | G30: 1.03 | H30: 1 | I30: 1.3 | J30: 1 | K30: -0.0081888 | M30: Other | N30: 3200
A31: Table: Heating Type to Cooling
A32: Heating Type | B32: Cooling Type | C32: Space Conditioning Type | D32: Data Column
A33: No heating | B33: No cooling | C33: None/Exterior | D33: 10 | F33: Heating Types | H33: Cooling Types
A34: No heating | B34: Air cond./ Heat pump | C34: Cooling w/o Heat | D34: 8 | F34: No heating | H34: No cooling
A35: No heating | B35: Refrigerated | C35: Refrigerated Space | D35: 9 | F35: Electric resistance | H35: Air cond./ Heat pump
A36: Electric resistance | B36: No cooling | C36: Electric Resistance w/o Cooling | D36: 3 | F36: Heat pump | H36: Refrigerated
A37: Electric resistance | B37: Air cond./ Heat pump | C37: Electric Resistance w/ Cooling | D37: 2 | F37: Gas, oil, or biomass
A38: Electric resistance | B38: Refrigerated | C38: Refrigerated Space | D38: 9
A39: Heat pump | B39: No cooling | C39: Heat Pump w/o Cooling | D39: 5
A40: Heat pump | B40: Air cond./ Heat pump | C40: Heat Pump w/ Cooling | D40: 4
A41: Heat pump | B41: Refrigerated | C41: Refrigerated Space | D41: 9
A42: Gas, oil, or biomass | B42: No cooling | C42: Gas, Oil, or Biomass w/o Cooling | D42: 7
A43: Gas, oil, or biomass | B43: Air cond./ Heat pump | C43: Gas, Oil, or Biomass w/ Cooling | D43: 6
A44: Gas, oil, or biomass | B44: Refrigerated | C44: Refrigerated Space | D44: 9
A47: Utility Name | B47: Unique Customer ID
A48: Albion | B48: 10055
A49: Alder | B49: 10005
A50: Ashland | B50: 10057
A51: Asotin PUD | B51: 10015
A52: Bandon | B52: 10059
A53: Bangor | B53: 10409
A54: Benton Co. PUD #1 | B54: 10024
A55: Benton REA | B55: 10025
A56: Big Bend Electric Coop. | B56: 10027
A57: Blachly-Lane Electric Coop | B57: 10029
A58: Blaine | B58: 10061
A59: Bonners Ferry | B59: 10062
A60: Bremerton | B60: 10326
A61: Burley | B61: 10064
A62: Canby | B62: 10044
A63: Cascade Locks | B63: 10065
A64: Central Electric Coop. | B64: 10046
A65: Central Lincoln PUD | B65: 10047
A66: Centralia | B66: 10066
A67: Chelan Co. PUD #1 | B67: 10050
A68: Cheney | B68: 10067
A69: Chewelah | B69: 10068
A70: Clallam Co. PUD #1 | B70: 10101
A71: Clark Co. PUD #1 | B71: 10103
A72: Clatskanie PUD | B72: 10105
A73: Clearwater Power Co. | B73: 10106
A74: Columbia Basin Coop. | B74: 10109
A75: Columbia Power Coop. | B75: 10111
A76: Columbia REA | B76: 10113
A77: Columbia River PUD | B77: 10112
A78: Consolidated Irrigation District #19 | B78: 10116
A79: Consumers Power, Inc. | B79: 10118
A80: Coos-Curry Electric Coop. | B80: 10121
A81: Coulee Dam | B81: 10378
A82: Cowlitz Co. PUD #1 | B82: 10123
A83: Declo | B83: 10070
A84: Douglas Co. PUD #1 | B84: 10135
A85: Douglas Electric Coop. | B85: 10136
A86: Drain | B86: 10071
A87: East End | B87: 10142
A88: Eatonville | B88: 10144
A89: Ellensburg | B89: 10072
A90: Elmhurst | B90: 10156
A91: Emerald PUD | B91: 10157
A92: Energy Northwest | B92: 10158
A93: Eugene | B93: 10170
A94: Everett | B94: 10408
A95: Fairchild Airforce Base | B95: 10172
A96: Fall River Rural Electric Coop. | B96: 10173
A97: Farmers | B97: 10174
A98: Ferry Co. PUD #1 | B98: 10177
A99: Fircrest | B99: 10073
A100: Flathead Electric Coop. | B100: 10179
A101: Forest Grove | B101: 10074
A102: Franklin Co. PUD #1 | B102: 10183
A103: Glacier Electric Coop. | B103: 10186
A104: Grant Co. PUD #2 | B104: 10190
A105: Grays Harbor Co. PUD #1 | B105: 10191
A106: Harney Electric Coop. | B106: 10197
A107: Hermiston Energy Services | B107: 10597
A108: Heyburn | B108: 10076
A109: Hood River Electric Coop. | B109: 10202
A110: Idaho Co. L & P Coop. | B110: 10203
A111: Idaho Falls | B111: 10204
A112: Inland Power & Light | B112: 10209
A113: Jefferson | B113: 12026
A114: Kalispel Indian Community of the Kalispel Reservation | B114: 13927
A115: Kittitas Co. PUD #1 | B115: 10230
A116: Klickitat Co. PUD #1 | B116: 10231
A117: Kootenai Electric Coop. | B117: 10234
A118: Lakeview L & P Co. | B118: 10235
A119: Lane Electric Coop. | B119: 10236
A120: Lewis Co. PUD #1 | B120: 10237
A121: Lincoln Electric Coop. Mont | B121: 10239
A122: Lost River Electric Coop. | B122: 10242
A123: Lower Valley Energy | B123: 10244
A124: Mason Co. PUD #1 | B124: 10246
A125: Mason Co. PUD #3 | B125: 10247
A126: McCleary | B126: 10078
A127: McMinnville | B127: 10079
A128: Midstate Electric Coop. | B128: 10256
A129: Milton | B129: 10080
A130: Milton-Freewater | B130: 10081
A131: Minidoka | B131: 10082
A132: Mission Valley Power | B132: 10258
A133: Missoula Electric Coop. | B133: 10259
A134: Modern Electric Water | B134: 10260
A135: Monmouth | B135: 10083
A136: Nespelem Valley Electric | B136: 10273
A137: Northern Lights, Inc. | B137: 10278
A138: Northern Wasco PUD | B138: 10279
A139: OHOP Mutual | B139: 10284
A140: Okanogan Co. Electric Coop. | B140: 10285
A141: Okanogan Co. PUD #1 | B141: 10286
A142: Orcas Power & Light Coop. | B142: 10288
A143: Oregon Trail Electric Coop. | B143: 10291
A144: Pacific Co. PUD #2 | B144: 10294
A145: Parkland P & L | B145: 10304
A146: Pend Oreille Co. PUD #1 | B146: 10306
A147: Peninsula Power & Light Inc. | B147: 10307
A148: Plummer | B148: 10086
A149: PNGC | B149: 10298
A150: Port Angeles | B150: 10087
A151: Port of Seattle | B151: 10706
A152: Raft River Electric Coop. | B152: 10331
A153: Ravalli Electric Coop. | B153: 10333
A154: Richland | B154: 10089
A155: Riverside | B155: 10338
A156: Rupert | B156: 10091
A157: Salem Electric | B157: 10342
A158: Salmon River Electric Coop. | B158: 10343
A159: Seattle | B159: 10349
A160: Skamania Co. PUD #1 | B160: 10352
A161: Snohomish Co. PUD #1 | B161: 10354
A162: Soda Springs | B162: 10094
A163: South Side Electric | B163: 10360
A164: Springfield | B164: 10363
A165: Steilacoom | B165: 10379
A166: Sumas | B166: 10095
A167: Surprise Valley Electric Corp. | B167: 10369
A168: Tacoma Power | B168: 10370
A169: Tanner Electric | B169: 10371
A170: Tillamook PUD | B170: 10376
A171: Troy | B171: 10097
A172: Umatilla Electric Coop. | B172: 10388
A173: Umpqua Indian Utility Coop. | B173: 10482
A174: United Electric Cooperative, Inc. | B174: 10391
A175: US Bia Wapato | B175: 10399
A176: US DOE National Technology Lab | B176: 10406
A177: US DOE Richland | B177: 10426
A178: Vera Water & Power | B178: 10434
A179: Vigilante Electric Coop. | B179: 10436
A180: Wahkiakum Co. PUD #1 | B180: 10440
A181: Wasco Electric Coop. | B181: 10442
A182: Weiser | B182: 11680
A183: Wells Rural Electric | B183: 10446
A184: West Oregon Electric Coop. | B184: 10448
A185: Whatcom | B185: 10451
A186: Yakama Power | B186: 10502
A188: Controls Types | B188: Reduction in watts
A189: Multi Function ↓ 100% | B189: 1
A190: Multi Function ↓ 90% | B190: 0.9
A191: Multi Function ↓ 80% | B191: 0.8
A192: Multi Function ↓ 75% | B192: 0.75
A193: Multi Function ↓ 66% | B193: 0.66
A194: Multi Function ↓ 60% | B194: 0.6
A195: Multi Function ↓ 50% | B195: 0.5
A196: Multi Function ↓ 40% | B196: 0.4
A197: Multi Function ↓ 33% | B197: 0.33
A198: Multi Function ↓ 25% | B198: 0.25
A199: Multi Function ↓ 20% | B199: 0.2
A200: Multi Function ↓ 10% | B200: 0.1

Sheet static_Lists
A1: ALL STATIC 1D ARRAYS (LISTS) | D1: Worksheets Available for Special Utilities: | J1: Welcome,prntrdy_Form1
A2: Notes
A3: List Name Range | B3: list_StateAbreviations | D3: list_Sectors | N3: list_HeatingTypes | P3: list_CoolingTypes | R3: list_MeasureSeries | T3: list_ControlsClasses | V3: list_PrintReadyTradeAllyForms | X3: list_MeasureTypes | Z3: list_Titles | AB3: list_States | AD3: list_50States | AF3: list_Sectors | AN3: list_AllBuildingTypes | AP3: list_ProjectTypes | AR3: list_Months | AT3: list_Days | AV3: list_Years | AX3: list_FundingSources | AZ3: list_NonStandardStatus | BB3: list_UtilityName | BD3: list_PrintReadyUtilityForms | BF3: list_PrintReadyTAForms | BH3: list_PrintReadyUtilityForms_NC | BJ3: list_PrintReadyTAForms_NC | BL3: list_ProgramRequirementsDocs | BN3: list_SpaceTypes | BP3: list_OMSpecificationOptions
A4: Label | B4: State Abreviations | D4: Sectors | I4: BPA: | N4: Heating Types | P4: Cooling Types | R4: Lighting Measure Types | T4: Controls Types | V4: Print-Ready Trade Ally Forms | X4: Measure Types | Z4: Titles | AB4: States | AD4: States | AF4: Sectors | AN4: Building Types | AP4: Project Types | AR4: Months | AT4: Days | AV4: Year | AX4: Funding Source | AZ4: NonStandard Meas Status | BB4: Utility Name | BD4: Print-Ready Utility Forms | BF4: Print-Ready Trade Ally Forms | BH4: Print-Ready Utility Forms (NC) | BJ4: Print-Ready Trade Ally Forms (NC) | BL4: Program Requirements PRFs | BN4: Typical Space Use Types | BP4: O&M Specification Options
A5: values… | B5: CA | D5: Commercial | I5: Utility: | N5: No heating | P5: No cooling | R5: A - LED Small Lamp / Fixture | T5: Occ. Sensor | V5: Customer Proposal | X5: Deemed | Z5: Mr. | AB5: CA | AD5: AK | AF5: Commercial | AN5: Assembly | AP5: Retrofit | AR5: January | AT5: 1 | AV5: 2012 | AX5: Energy Efficiency Incentive (EEI) | AZ5: YES | BB5: Albion | BD5: Utility Summary | BF5: Customer Proposal | BH5: Utility Summary | BJ5: Customer Proposal | BL5: Program Requirements | BN5: Assembly | BP5: Default: Set to 3% of project costs
B6: ID | D6: Industrial | I6: Approve Utility: | N6: Electric resistance | P6: Air cond./ Heat pump | R6: B- LED Tubes | T6: Multi Function ↓ 100% | V6: Program Offerings | X6: Controls Only | Z6: Ms. | AB6: ID | AD6: AL | AF6: Industrial | AN6: Automotive Repair | AP6: New Construction | AR6: February | AT6: 2 | AV6: 2013 | AX6: Utility Self-Fund | AZ6: NO | BB6: Alder | BD6: Customer Proposal | BF6: Project Summary | BH6: Customer Proposal | BL6: BPA Lighting Formulas and Adjustments | BN6: Break Room | BP6: Specify O&M costs below
B7: MT | D7: Agricultural | I7: Special Utility: | N7: Heat pump | P7: Refrigerated | R7: C- Gen. Indoor / Outdoor | T7: Multi Function ↓ 90% | X7: Non-standard | Z7: Mrs. | AB7: MT | AD7: AR | AF7: Agricultural | AN7: College or University | AR7: March | AT7: 3 | AV7: 2014 | BB7: Ashland | BD7: Project Summary | BF7: Space Types | BN7: Classroom | BP7: Set O&M savings to $0
B8: NV | N8: Gas, oil, or biomass | R8: D- LED High Bay | T8: Multi Function ↓ 80% | Z8: Dr. | AB8: NV | AD8: AZ | AN8: Exterior 24 Hour Operation | AR8: April | AT8: 4 | AV8: 2015 | BB8: Asotin PUD | BN8: Computer Room
B9: OR | R9: E- LED Exterior | T9: Multi Function ↓ 75% | AB9: OR | AD9: CA | AN9: Hospital | AR9: May | AT9: 5 | AV9: 2016 | BB9: Bandon | BN9: Conference
B10: UT | R10: F- HID Screw-in Replacement | T10: Multi Function ↓ 66% | AB10: UT | AD10: CO | AN10: Industrial Plant with One Shift | AR10: June | AT10: 6 | AV10: 2017 | BB10: Bangor | BN10: Dining
B11: WA | R11: G- LED Linear | T11: Multi Function ↓ 60% | AB11: WA | AD11: CT | AN11: Industrial Plant with Three Shifts | AR11: July | AT11: 7 | AV11: 2018 | BB11: Benton Co. PUD #1 | BN11: Gymnasium
B12: WY | R12: H- LED Exit Signs | T12: Multi Function ↓ 50% | AB12: WY | AD12: DC | AN12: Industrial Plant with Two Shifts | AR12: August | AT12: 8 | AV12: 2019 | BB12: Benton REA | BN12: Hallway
R13: I- Signage | T13: Multi Function ↓ 40% | AD13: DE | AN13: Library | AR13: September | AT13: 9 | AV13: 2020 | BB13: Big Bend Electric Coop. | BN13: Hospital Room
R14: J- Decommissioning | T14: Multi Function ↓ 33% | AD14: FL | AN14: Lodging | AR14: October | AT14: 10 | AV14: 2021 | BB14: Blachly-Lane Electric Coop | BN14: Industrial
R15: K- Non-Standard Measures | T15: Multi Function ↓ 25% | AD15: GA | AN15: Office <20,000 sf | AR15: November | AT15: 11 | AV15: 2022 | BB15: Blaine | BN15: Kitchen
R16: L- Controls | T16: Multi Function ↓ 20% | AD16: HI | AN16: Office >100,000 sf | AR16: December | AT16: 12 | AV16: 2023 | BB16: Bonners Ferry | BN16: Library
R17: New Construction | T17: Multi Function ↓ 10% | AD17: IA | AN17: Office 20,000 to 100,000 sf | AT17: 13 | AV17: 2024 | BB17: Bremerton | BN17: Lobby
T18: Other | AD18: ID | AN18: Other Health, Nursing, Medical Clinic | AT18: 14 | AV18: 2025 | BB18: Burley | BN18: Lodging (Guest Rooms)
AD19: IL | AN19: Parking Garage | AT19: 15 | AV19: 2026 | BB19: Canby | BN19: Open Office
AD20: IN | AN20: Restaurant | AT20: 16 | AV20: 2027 | BB20: Cascade Locks | BN20: Parking Garage
AD21: KS | AN21: Retail 5,000 to 50,000 sf | AT21: 17 | AV21: 2028 | BB21: Central Electric Coop. | BN21: Private Office
AD22: KY | AN22: Retail Anchor Store >50,000 sf Multistory | AT22: 18 | AV22: 2029 | BB22: Central Lincoln PUD | BN22: Process
AD23: LA | AN23: Retail Big Box >50,000 sf One-Story | AT23: 19 | AV23: 2030 | BB23: Centralia | BN23: Public Assembly
AD24: MA | AN24: Retail Boutique <5,000 sf | AT24: 20 | AV24: 2031 | BB24: Chelan Co. PUD #1 | BN24: Restroom
AD25: MD | AN25: Retail Mini Mart | AT25: 21 | AV25: 2032 | BB25: Cheney | BN25: Retail
AD26: ME | AN26: Retail Supermarket | AT26: 22 | BB26: Chewelah | BN26: Stairs
AD27: MI | AN27: School K-12 | AT27: 23 | BB27: Clallam Co. PUD #1 | BN27: Storage
AD28: MN | AN28: Street & Area Lighting (Photo Sensor Controlled) | AT28: 24 | BB28: Clark Co. PUD #1 | BN28: Technical Area
AD29: MO | AN29: Warehouse | AT29: 25 | BB29: Clatskanie PUD | BN29: Warehouse
AD30: MS | AN30: Other | AT30: 26 | BB30: Clearwater Power Co. | BN30: Other
AD31: MT | AT31: 27 | BB31: Columbia Basin Coop.
AD32: NC | AT32: 28 | BB32: Columbia Power Coop.
AD33: ND | AT33: 29 | BB33: Columbia REA
AD34: NE | AT34: 30 | BB34: Columbia River PUD
AD35: NH | AT35: 31 | BB35: Consolidated Irrigation District #19
AD36: NJ | BB36: Consumers Power, Inc.
AD37: NM | BB37: Coos-Curry Electric Coop.
AD38: NV | BB38: Coulee Dam
AD39: NY | BB39: Cowlitz Co. PUD #1
AD40: OH | BB40: Declo
AD41: OK | BB41: Douglas Co. PUD #1
AD42: OR | BB42: Douglas Electric Coop.
AD43: PA | BB43: Drain
AD44: PR | BB44: East End
AD45: RI | BB45: Eatonville
AD46: SC | BB46: Ellensburg
AD47: SD | BB47: Elmhurst
AD48: TN | BB48: Emerald PUD
AD49: TX | BB49: Energy Northwest
AD50: UT | BB50: Eugene
AD51: VA | BB51: Everett
AD52: VI | BB52: Fairchild Airforce Base
AD53: VT | BB53: Fall River Rural Electric Coop.
AD54: WA | BB54: Farmers
AD55: WI | BB55: Ferry Co. PUD #1
AD56: WV | BB56: Fircrest
AD57: WY | BB57: Flathead Electric Coop.
BB58: Forest Grove
BB59: Franklin Co. PUD #1
BB60: Glacier Electric Coop.
BB61: Grant Co. PUD #2
BB62: Grays Harbor Co. PUD #1
BB63: Harney Electric Coop.
BB64: Hermiston Energy Services
BB65: Heyburn
BB66: Hood River Electric Coop.
BB67: Idaho Co. L & P Coop.
BB68: Idaho Falls
BB69: Inland Power & Light
BB70: Jefferson
BB71: Kalispel Indian Community of the Kalispel Reservation
BB72: Kittitas Co. PUD #1
BB73: Klickitat Co. PUD #1
BB74: Kootenai Electric Coop.
BB75: Lakeview L & P Co.
BB76: Lane Electric Coop.
BB77: Lewis Co. PUD #1
BB78: Lincoln Electric Coop. Mont
BB79: Lost River Electric Coop.
BB80: Lower Valley Energy
BB81: Mason Co. PUD #1
BB82: Mason Co. PUD #3
BB83: McCleary
BB84: McMinnville
BB85: Midstate Electric Coop.
BB86: Milton
BB87: Milton-Freewater
BB88: Minidoka
BB89: Mission Valley Power
BB90: Missoula Electric Coop.
BB91: Modern Electric Water
BB92: Monmouth
BB93: Nespelem Valley Electric
BB94: Northern Lights, Inc.
BB95: Northern Wasco PUD
BB96: OHOP Mutual
BB97: Okanogan Co. Electric Coop.
BB98: Okanogan Co. PUD #1
BB99: Orcas Power & Light Coop.
BB100: Oregon Trail Electric Coop.
BB101: Pacific Co. PUD #2
BB102: Parkland P & L
BB103: Pend Oreille Co. PUD #1
BB104: Peninsula Power & Light Inc.
BB105: Plummer
BB106: PNGC
BB107: Port Angeles
BB108: Port of Seattle
BB109: Raft River Electric Coop.
BB110: Ravalli Electric Coop.
BB111: Richland
BB112: Riverside
BB113: Rupert
BB114: Salem Electric
BB115: Salmon River Electric Coop.
BB116: Seattle
BB117: Skamania Co. PUD #1
BB118: Snohomish Co. PUD #1
BB119: Soda Springs
BB120: South Side Electric
BB121: Springfield
BB122: Steilacoom
BB123: Sumas
BB124: Surprise Valley Electric Corp.
BB125: Tacoma Power
BB126: Tanner Electric
BB127: Tillamook PUD
BB128: Troy
BB129: Umatilla Electric Coop.
BB130: Umpqua Indian Utility Coop.
BB131: United Electric Cooperative, Inc.
BB132: US Bia Wapato
BB133: US DOE National Technology Lab
BB134: US DOE Richland
BB135: Vera Water & Power
BB136: Vigilante Electric Coop.
BB137: Wahkiakum Co. PUD #1
BB138: Wasco Electric Coop.
BB139: Weiser
BB140: Wells Rural Electric
BB141: West Oregon Electric Coop.
BB142: Whatcom
BB143: Yakama Power

Sheet static_Parameters
A1: ALL STATIC POINT VALUES (NOT LISTS OR TABLES)
A2: Field | B2: Value | C2: Notes
A3: Calculator Version Number | B3: 5.X2 | C3: record this as text (rather than number) by including an apostrophe before the number" e.g. '3.0 instead of 3.0
A4: Minimum Equipment Savings for Decommissioning | B4: 0.2 | C4: If equipment savings (excluding decommissioned fixtures) is too low, don't give decomissioning incentive | D4: Calculator Validator Version Number | E4: LC5.1.48.V0 | F4: Contractor Measure: Fix two errors 1. Single measure control causing crash. 2. Proposed fixtures with user entered wattage switch from Deemed, to Non-standard, and back to Deemed crash.
A5: Default Controls Reduction | B5: 0.25 | C5: For Occ. Sensors
A6: Transmission and Distribution Multiplier | B6: 1.07478
A7: BPA Percent of Project Cost Cap | B7: 0.7
A8: Promotional Project Cost Cap | B8: 1 | C8: project cost cap when in "Promotional" mode
A9: BPA Maximum Project Level $/kWh (busbar) | B9: 0.5
A10: Assumed Lighting Measure Lifetime | B10: 12 | C10: years
A11: Minimun Measure Level Savings for Incentive | B11: 0.1 | C11: measure must save at least 10% for any incentives to be applied
A12: Natural Gas Rate | B12: 0.8
A13: Minimum B/C Ratio | B13: 0.5
A14: Mimimum Project Level Savings for Retrofit Project Incentive | B14: 0.25
A15: Percent of Code KWH for New Construction Baseline | B15: 1
A16: Exterior Hours of Operation | B16: 4380 | C16: used for New Construction projects
A17: Default $/kWh Rate | B17: 0.06 | C17: Calculator defaults to this rate when calculator is cleared on the utility side.
A18: Default $/kW Rate | B18: 6 | C18: Calculator defaults to this rate when calculator is cleared on the utility side.
A19: Minimum Interior Savings from New Construction Projects | B19: 0.2
A20: Minimum Exterior Savings from New Construction Projects | B20: 0.2
A21: AvoidedCost_Electricity_Retrofit | B21: 1.05 | C21: $/kWh, from Council, for 12 year measure life
A22: AvoidedCost_Electricity_NewConstruction | B22: 1.45 | C22: $/kWh, from Council, for 15 year measure life
A23: AvoidedCost_Gas_Retrofit | B23: =-1*PV(B27,parameter_lifetime,parameter_GasRate) -> 6.707075152 | C23: $0.80/therm, for 12 year measure life
A24: AvoidedCost_Gas_NewConstruction | B24: =-1*PV(B27,15,parameter_GasRate) -> 7.76979919 | C24: $0.80/therm, for 15 year measure life
A25: OandMMultiplier_TRC | B25: 0.03 | C25: Assume O&M = 3% of project cost for purposes of TRC BC ratio calculation
A26: MinimumMeasureIncentive | B26: 5 | C26: If an incentive for a single measure (e.g. decom, non-standard) is less than this amount, set the incentive value to 0.
A27: AnnualDiscountRate | B27: 0.06 | C27: Use for determining present value
A28: OandMMultiplier_TRC_PV_Retrofit | B28: =-1*PV(B27,12,OandMMultiplier_TRC) -> 0.2515153182 | C28: Multiplier on project cost to get PV of O&M Cost, assuming O&M = 3% of project cost per year, for 12 years
A29: OandMMultiplier_TRC_PV_NewConstruction | B29: =-1*PV(B27,15,OandMMultiplier_TRC) -> 0.2913674696 | C29: Multiplier on project cost to get PV of O&M Cost, assuming O&M = 3% of project cost per year, for 15 years
A30: PVMultiplier_Retrofit | B30: =-1*PV(B27,12,1) -> 8.38384394 | C30: use to determine the present value of any annual cost stream, 12 year life
A31: PVMultiplier_NewConstruction | B31: =-1*PV(B27,15,1) -> 9.712248988 | C31: use to determine the present value of any annual cost stream, 15 year life
A32: Default Controls Reduction Dimming | B32: 0.4 | C32: For Occ. Sensors w/dimming
A33: Default Controls Reduction Photocell | B33: 0 | C33: For Photocell
A34: Default Controls Reduction Timer | B34: 0.25 | C34: For Timer
A35: Default Controls Reduction Occ. Sensor | B35: 0.25 | C35: For Occ. Sensor
A36: Calculator Validator Version Number | B36: 5.1.TACOMA2.V1 | C36: 1 frm_DataEntry | Measures Tab: Currently when "Measure Type" is "Non-standard" user is allowed to enter "Proposed Equipment" "Lamp Wattage" decimal fractional values. When user switches measure "Measure Type" from "Non-standard" to "Deemed" changes allows "Proposed Equipment" "Lamp Wattage" non-integer decimal fractional values to be maintained and not cleared out; this also implies that that values are not required to be cleared out if they do not match the table assigned given wattage values for that type of selected light fixture. If the user changed the "Proposed Equipment" "Lamp Wattage" while "Measure Type" is "Deemed", user is only allowed the table assigned given wattage values for that type of selected light fixture that are set integer values. To attain the non-integer user set value, user must change "Measure Type" to "Non-standard", modify value, then change back to "Deemed".
A37: Large Project | B37: FALSE | C37: [Space Tab] 0 =Save every space change step, 1 =Save space values only with save button

Sheet Logo

Sheet Default Logo

Sheet Formats
A1: USE THIS TABLE TO DEFINE FORMATS FOR CELLS AND NAME THESE CELLS
A2: THEN, IN VBA, YOU CAN COPY THIS FORMAT AND PASTE TO OTHER CELLS IN THE WORKBOOK
A4: Table Heading
A6: Table
E12: Daily Hours of Lighting Usage | M12: Space Conditioning | P12: Hours Per Year | Q12: Primary Schedule? | R12: Primary HVAC? | S12: Space Name
B13: ID | C13: Space Type | D13: Space Name | E13: Su | F13: M | G13: Tu | H13: W | I13: Th | J13: F | K13: Sa | L13: Weeks Per Year | M13: Cooling Type | N13: Heating Type | O13: Notes | R13: Primary?
A14: Normal Row | B14: 0 | C14: [PRIMARY] | D14: - | E14: 8 | F14: 8 | G14: 8 | H14: 8 | I14: 8 | J14: 8 | K14: 8 | L14: 45 | N14: Cooled | O14: notes notes | P14: 6666 | Q14: -
A15: Highlighted Row | B15: 0 | C15: [PRIMARY] | D15: - | E15: 8 | F15: 8 | G15: 8 | H15: 8 | I15: 8 | J15: 8 | K15: 8 | L15: 45 | N15: Cooled | Q15: -
A16: data table | B16: 0 | C16: [PRIMARY] | D16: - | E16: 8 | F16: 8 | G16: 8 | H16: 8 | I16: 8 | J16: 8 | K16: 8 | L16: 45 | N16: Cooled | Q16: -
B18: Rate ID | C18: Measure Name | D18: $ / kW | E18: $ / kWh | F18: Notes
A19: Normal Row | B19: 1 | C19: [Calculator default] | D19: 0.02 | E19: 0.11 | F19: These are the default rates used by the calculator.
A20: Highlighted Row | B20: 1 | C20: [Calculator default] | D20: 0.02 | E20: 0.11 | F20: These are the default rates used by the calculator.
A21: data table | B21: 1 | C21: [Calculator default] | D21: 0.02 | E21: 0.11 | F21: These are the default rates used by the calculator.
B23: Row ID | C23: Measure | D23: Description | E23: Watt Baseline | F23: Required Wattage Reduction | G23: Efficacy | H23: BPA Incentive | I23: % Utility Passthrough | J23: Utility Incentive
A24: Normal Row | B24: 1 | C24: A1 | D24: Linear Fluorescent (4' & 8') | E24: <100 | F24: 0.35 | G24: >= 80 l/w | H24: 10 | I24: 1 | J24: 10
A25: Highlighted Row | B25: 1 | C25: A1 | D25: Linear Fluorescent (4' & 8') | E25: <100 | F25: 0.35 | G25: >= 80 l/w | H25: 10 | I25: 1 | J25: 10
O27: make sure these fields are NOT text wrapped!
B28: RecordNumber | C28: Status | D28: SpaceForTable | E28: AnnualHoursForTable | F28: RecordSpaceStatusForTable | G28: ExistingForTable | H28: ProposedForTable | I28: ControlsForTable | J28: SavingsHeadersForTable | K28: KWHForTable | L28: WattsPerFixtureForTable | M28: IncentivesForTable | N28: NotesForTable | O28: BLANKCOLUMN | P28: KWForTable | Q28: Space | R28: ExistingQuantity | S28: ExistingClass | T28: ExistingType | U28: ExistingSubtype | V28: ExistingLampWattage | W28: ExistingLampsPerFixture | X28: ProposedMeasureType | Y28: ProposedQuantity | Z28: ProposedClass | AA28: ProposedType | AB28: ProposedSubtype | AC28: ProposedLampWattage | AD28: ProposedLampsPerFixture | AE28: ProposedLampModelNumber | AF28: ProposedBallastModelNumber | AG28: NoControls | AH28: ControlsQuantity | AI28: ControlsClass | AJ28: ControlsPercentReduction | AK28: Notes | AL28: NumberOfErrors | AM28: ExistingMMLRow | AN28: ProposedMMLRow | AO28: ExistingBallastFactor | AP28: ProposedBallastFactor | AQ28: ExistingFixtureWattage | AR28: ProposedFixtureWattage | AS28: ArithFixtureWattage | AT28: ElectricInteraction | AU28: GasInteraction | AV28: ExistingFixtureKWHBase | AW28: ArithExistingFixtureKWHBase | AX28: ProposedFixtureKWHBase | AY28: DecommissionedFixtures | AZ28: PrecondDecomKWHSavings | BA28: ArithDecomKWHSavings | BB28: PrecondEquipKWHSavings | BC28: ArithEquipKWHSavings | BD28: PrecondControlsKWHSavings | BE28: ArithControlsKWHSavings | BF28: PrecondDecomAndEquipKWHSavings | BG28: ArithDecomAndEquipKWHSavings | BH28: PrecondTotalKWHSavings | BI28: ArithTotalKWHSavings | BJ28: PrecondEquipAndControlsKWHSavings | BK28: ArithEquipAndControlsKWHSavings | BL28: PrecondEquipAndControlsPercentSavings | BM28: ArithEquipAndControlsPercentSavings | BN28: PrecondMeasurePercentSavings | BO28: ArithMeasurePercentSavings | BP28: PrecondMeasureKW | BQ28: ArithMeasureKW | BR28: ProposedMeasureKW | BS28: PrecondKWSavings | BT28: ArithKWSavings | BU28: ExistingFixtureKWHwithHVAC | BV28: ArithExistingFixtureKWHwithHVAC | BW28: ProposedFixtureKWHwithHVAC | BX28: PrecondDecomKWHSavingswithHVAC | BY28: ArithDecomKWHSavingswithHVAC | BZ28: PrecondEquipKWHSavingswithHVAC | CA28: ArithEquipKWHSavingswithHVAC | CB28: PrecondEquipAndControlsKWHSavingswithHVAC | CC28: ArithEquipAndControlsKWHSavingswithHVAC | CD28: PrecondControlsKWHSavingswithHVAC | CE28: ArithControlsKWHSavingswithHVAC | CF28: PrecondDecomAndEquipKWHSavingswithHVAC | CG28: ArithDecomAndEquipKWHSavingswithHVAC | CH28: PrecondTotalKWHSavingswithHVAC | CI28: ArithTotalKWHSavingswithHVAC | CJ28: ExistingFixtureKWHwithHVAC_Busbar | CK28: ArithExistingFixtureKWHwithHVAC_Busbar | CL28: ProposedFixtureKWHwithHVAC_Busbar | CM28: PrecondDecomKWHSavingswithHVAC_Busbar | CN28: ArithDecomKWHSavingswithHVAC_Busbar | CO28: PrecondEquipKWHSavingswithHVAC_Busbar | CP28: ArithEquipKWHSavingswithHVAC_Busbar | CQ28: PrecondEquipAndControlsKWHSavingswithHVAC_Busbar | CR28: ArithEquipAndControlsKWHSavingswithHVAC_Busbar | CS28: PrecondControlsKWHSavingswithHVAC_Busbar | CT28: ArithControlsKWHSavingswithHVAC_Busbar | CU28: PrecondDecomAndEquipKWHSavingswithHVAC_Busbar | CV28: ArithDecomAndEquipKWHSavingswithHVAC_Busbar | CW28: PrecondTotalKWHSavingswithHVAC_Busbar | CX28: ArithTotalKWHSavingswithHVAC_Busbar | CY28: PrecondTotalMeasureKWHwithHVAC_Busbar | CZ28: ArithTotalMeasureKWHwithHVAC_Busbar | DA28: ProposedTotalMeasureKWHwithHVAC_Busbar | DB28: Therms_Increase_Precond | DC28: Therms_Increase_Arith | DD28: DecomIncentiveRates | DE28: UtilityDecomIncentiveRate | DF28: BPADecomIncentiveRate | DG28: NonstandardIncentiveRates | DH28: UtilityNonstandardIncentiveRate | DI28: BPANonstandardIncentiveRate | DJ28: ControlsIncentiveQuantity | DK28: ControlsIncentiveUtility | DL28: ControlsIncentiveBPA | DM28: ControlsText | DN28: ControlsIncentiveVector | DO28: ControlsIncentive | DP28: BPAControlsIncentiveRate | DQ28: UtilityControlsIncentiveRate | DR28: DecomIncentiveQuantity | DS28: DecomIncentiveUtility | DT28: DecomIncentiveBPA | DU28: EquipmentIncentiveQuantity | DV28: EquipmentIncentiveUtility | DW28: EquipmentIncentiveBPA | DX28: MeasureText | DY28: DecommissioningAndEquipmentResultsText | DZ28: ControlsResultsText | EA28: PrecondTotalMeasureKWH | EB28: ArithTotalMeasureKWH | EC28: ProposedTotalMeasureKWH | ED28: PrecondTotalMeasureKWHwithHVAC | EE28: ArithTotalMeasureKWHwithHVAC | EF28: ProposedTotalMeasureKWHwithHVAC | EG28: PrecondKWPercentSavings | EH28: ArithKWPercentSavings | EI28: TotalUtilityIncentive | EJ28: TotalBPAIncentive | EK28: NonStandardStatus | EL28: StatusNotes | EM28: ControlkWhSavings 'NOTE THAT THIS IS ACTUALLY A PERCENT SAVINGS (0 TO 100)" | EN28: UtilityEquipmentIncentiveRate | EO28: DecomAndEquipmentIncentiveName | EP28: DecomAndEquipmentIncentiveDescription | EQ28: ControlsIncentiveName | ER28: ControlsIncentiveDescription | ES28: ApprovedNonStandardUserFieldConcat | ET28: SpaceType | EU28: RefNo | EV28: NetControlsMessage | EW28: RetrofitMeasureDescription | EX28: NotificationMessage
A29: normal
A30: normal
B33: Row ID | C33: Measure | D33: Description | E33: Watt Baseline | F33: Required Wattage Reduction | G33: Efficacy | H33: BPA Incentive | I33: % Utility Passthrough | J33: Utility Incentive | K33: Min Wattage | L33: Max Wattage | M33: Additional Criteria | N33: Description | O33: User Lookup Description
A34: Normal Row | B34: 1 | C34: A1 | D34: Linear Fluorescent (4' & 8') | E34: <100 | F34: 0.35 | G34: >= 80 l/w | H34: 10 | I34: 1 | J34: 10
A35: Highlighted Row | B35: 1 | C35: A1 | D35: Linear Fluorescent (4' & 8') | E35: <100 | F35: 0.35 | G35: >= 80 l/w | H35: 10 | I35: 1 | J35: 10

Sheet BLANK WELCOME SCREEN

Sheet ScratchPad

Sheet MML
A1: Row Number | B1: Fixture Class | C1: Fixture Category | D1: Fixture Sub-Category | E1: Lamp or fixture wattage | F1: Lamps per Fixture | G1: Ballast Factor | H1: Arithmetic Baseline? | I1: Existing | J1: Retrofit | K1: New Construction | L1: Retrofit Measure Class | M1: Retrofit Measure Description | N1: REFNO_Agricultural | O1: REFNO_Commercial | P1: REFNO_Industrial
A2: 1 | B2: CFL | C2: Cold Cathode | D2: Dimmable or Flashable | E2: 3\4\5\6\7\8\9\10\12\14\16\18\20 | F2: 1 | G2: 1 | I2: X | M2: ="Existing Equipment: " & C2 -> Existing Equipment: Cold Cathode | N2: ="Exist_Eq_Agr" -> Exist_Eq_Agr | O2: ="Exist_Eq_Com" -> Exist_Eq_Com | P2: ="Exist_Eq_Ind" -> Exist_Eq_Ind
A3: 2 | B3: CFL | C3: Hard-Wired or GU-24 | D3: 1 to 24 W | E3: 1\2\3\4\5\6\7\8\9\10\11\12\13\14\15\16\17\18\19\20\21\22\23\24 | F3: 1\2\3\4\5\6\7\8 | G3: 1 | I3: X | M3: ="Existing Equipment: " & C3 -> Existing Equipment: Hard-Wired or GU-24 | N3: ="Exist_Eq_Agr" -> Exist_Eq_Agr | O3: ="Exist_Eq_Com" -> Exist_Eq_Com | P3: ="Exist_Eq_Ind" -> Exist_Eq_Ind
A4: 3 | B4: CFL | C4: Hard-Wired or GU-24 | D4: 25 to 45 W | E4: 25\26\27\28\29\30\31\32\33\34\35\36\37\38\39\40\41\42\43\44\45 | F4: 1\2\3\4\5\6\7\8 | G4: 1 | I4: X | M4: Existing Equipment: Hard-Wired or GU-24 | N4: Exist_Eq_Agr | O4: Exist_Eq_Com | P4: Exist_Eq_Ind
A5: 4 | B5: CFL | C5: Hard-Wired or GU-24 | D5: >45 W | E5: 46\50\55\60\65\70\75\80\85\90\95\100\110\120\130\140\150\160\170\180\190\200 | F5: 1\2\3\4\5\6\7\8 | G5: 1 | I5: X | M5: Existing Equipment: Hard-Wired or GU-24 | N5: Exist_Eq_Agr | O5: Exist_Eq_Com | P5: Exist_Eq_Ind
A6: 5 | B6: CFL | C6: Screw-In | D6: 1 to 24 W | E6: 1\2\3\4\5\6\7\8\9\10\11\12\13\14\15\16\17\18\19\20\21\22\23\24 | F6: 1 | G6: 1 | I6: X | M6: Existing Equipment: Screw-In | N6: Exist_Eq_Agr | O6: Exist_Eq_Com | P6: Exist_Eq_Ind
A7: 6 | B7: CFL | C7: Screw-In | D7: 25 to 45 W | E7: 25\26\27\28\29\30\31\32\33\34\35\36\37\38\39\40\41\42\43\44\45 | F7: 1 | G7: 1 | I7: X | M7: Existing Equipment: Screw-In | N7: Exist_Eq_Agr | O7: Exist_Eq_Com | P7: Exist_Eq_Ind
A8: 7 | B8: CFL | C8: Screw-In | D8: >45 W | E8: 46\50\55\60\65\70\75\80\85\90\95\100\110\120\130\140\150\160\170\180\190\200 | F8: 1 | G8: 1 | I8: X | M8: Existing Equipment: Screw-In | N8: Exist_Eq_Agr | O8: Exist_Eq_Com | P8: Exist_Eq_Ind
A9: 8 | B9: Exit Signs | C9: CFL | D9: Screw-in or Plug-in | E9: 3\5\7\9 | F9: 1\2 | G9: 1.3 | I9: X | M9: Existing Equipment: CFL | N9: Exist_Eq_Agr | O9: Exist_Eq_Com | P9: Exist_Eq_Ind
A10: 9 | B10: Exit Signs | C10: Incandescent | D10: Screw-in or Plug-in | E10: 10\15\20\25\30\35\40 | F10: 1\2 | G10: 1 | I10: X | M10: Existing Equipment: Incandescent | N10: Exist_Eq_Agr | O10: Exist_Eq_Com | P10: Exist_Eq_Ind
A11: 10 | B11: Exit Signs | C11: LED | D11: New Fixture or Retrofit kit | E11: 1.5\3\6\9 | F11: 1 | G11: 1 | I11: X | J11: X | L11: H | M11: LED Exit Signs | N11: ALILB84125 | O11: CLILB82125 | P11: ILILB83125
A12: 11 | B12: Exit Signs | C12: Lin. Fluorescent | D12: F4T5 | E12: 4 | F12: 1\2 | G12: 1.3 | I12: X | M12: ="Existing Equipment: " & C12 -> Existing Equipment: Lin. Fluorescent | N12: Exist_Eq_Agr | O12: Exist_Eq_Com | P12: Exist_Eq_Ind
A13: 12 | B13: Exit Signs | C13: Lin. Fluorescent | D13: F6T5 | E13: 6 | F13: 1\2 | G13: 1.3 | I13: X | M13: Existing Equipment: Lin. Fluorescent | N13: Exist_Eq_Agr | O13: Exist_Eq_Com | P13: Exist_Eq_Ind
A14: 13 | B14: Exit Signs | C14: Lin. Fluorescent | D14: F8T5 | E14: 8 | F14: 1\2 | G14: 1.3 | I14: X | M14: Existing Equipment: Lin. Fluorescent | N14: Exist_Eq_Agr | O14: Exist_Eq_Com | P14: Exist_Eq_Ind
A15: 15 | B15: HID | C15: HPS | D15: Magnetic Ballast | E15: 35\50\70\100\110\150\200\250\310\400\600\750\1000\1500 | F15: 1 | G15: 1.15 | I15: X | M15: Existing Equipment: HPS | N15: Exist_Eq_Agr | O15: Exist_Eq_Com | P15: Exist_Eq_Ind
A16: 16 | B16: HID | C16: MH | D16: Electronic Ballast | E16: 20\22\24\26\28\30\35\40\45\50\60\70\90\100\140\150\175\200\210\250\300\315\320\350\375\400\450\575\600\750\1000 | F16: 1 | G16: 1.06 | I16: X | M16: Existing Equipment: MH | N16: Exist_Eq_Agr | O16: Exist_Eq_Com | P16: Exist_Eq_Ind
A17: 17 | B17: HID | C17: MH | D17: Magnetic Ballast | E17: 50\70\100\120\150\175\250\320\400\750\1000\1500 | F17: 1 | G17: 1.15 | I17: X | M17: Existing Equipment: MH | N17: Exist_Eq_Agr | O17: Exist_Eq_Com | P17: Exist_Eq_Ind
A18: 18 | B18: HID | C18: MH | D18: Pulse-Start | E18: 50\70\100\120\150\175\200\250\300\320\350\400\450\750\875\1000\1500 | F18: 1 | G18: 1.12 | I18: X | M18: Existing Equipment: MH | N18: Exist_Eq_Agr | O18: Exist_Eq_Com | P18: Exist_Eq_Ind
A19: 19 | B19: HID | C19: MV | D19: Magnetic Ballast | E19: 100\160\175\250\400\450\750\1000\1500 | F19: 1 | G19: 1.17 | I19: X | M19: Existing Equipment: MV | N19: Exist_Eq_Agr | O19: Exist_Eq_Com | P19: Exist_Eq_Ind
A20: 20 | B20: Incandescent | C20: General Purpose | D20: A-lamp | E20: 10\15\20\25\29\30\35\40\43\45\50\53\55\60\65\70\72\75\80\85\90\95\100\125\134\150 | F20: 1 | G20: 1 | H20: X | I20: X | M20: Existing Equipment: General Purpose | N20: Exist_Eq_Agr | O20: Exist_Eq_Com | P20: Exist_Eq_Ind
A21: 21 | B21: Incandescent | C21: General Purpose | D21: High Wattage | E21: 200\250\300\350\400\450\500\620\750\1000 | F21: 1 | G21: 1 | I21: X | M21: Existing Equipment: General Purpose | N21: Exist_Eq_Agr | O21: Exist_Eq_Com | P21: Exist_Eq_Ind
A22: 22 | B22: Incandescent | C22: Halogen | D22: Double-Ended | E22: 100\150\250\300\500\750\1000\1500 | F22: 1 | G22: 1 | I22: X | M22: Existing Equipment: Halogen | N22: Exist_Eq_Agr | O22: Exist_Eq_Com | P22: Exist_Eq_Ind
A23: 23 | B23: Incandescent | C23: Halogen | D23: General Service | E23: 42\52\62\72\82\92\102 | F23: 1 | G23: 1 | I23: X | M23: Existing Equipment: Halogen | N23: Exist_Eq_Agr | O23: Exist_Eq_Com | P23: Exist_Eq_Ind
A24: 24 | B24: Incandescent | C24: Halogen | D24: MR16 | E24: 20\25\26\27\28\29\30\35\40\45\50\55\60\65\70\75 | F24: 1 | G24: 1 | I24: X | M24: Existing Equipment: Halogen | N24: Exist_Eq_Agr | O24: Exist_Eq_Com | P24: Exist_Eq_Ind
A25: 25 | B25: Incandescent | C25: Halogen | D25: PAR Reflector | E25: 45\50\55\60\65\70\75\80\85\90\95\100\120\150 | F25: 1 | G25: 1 | I25: X | M25: Existing Equipment: Halogen | N25: Exist_Eq_Agr | O25: Exist_Eq_Com | P25: Exist_Eq_Ind
A26: 26 | B26: Incandescent | C26: Reflector | D26: Reflector | E26: 25\30\35\40\45\50\55\60\65\70\75\80\85\90\95\100\120\125\150\200\250\300 | F26: 1 | G26: 1 | I26: X | M26: Existing Equipment: Reflector | N26: Exist_Eq_Agr | O26: Exist_Eq_Com | P26: Exist_Eq_Ind
A27: 27 | B27: Induction | C27: any type | D27: any type | E27: 10\15\20\25\30\35\40\45\50\55\60\65\70\75\80\85\90\95\100\120\130\140\150\160\165\170\180\190\200\210\220\230\240\250\300\400\500 | F27: 1\2\3 | G27: 1 | I27: X | M27: Existing Equipment: any type | N27: Exist_Eq_Agr | O27: Exist_Eq_Com | P27: Exist_Eq_Ind
A28: 28 | B28: LED | C28: Gen. Indoor / Outdoor | D28: Standard\w/Networked Controls | E28: 10\12\14\16\18\20\22\24\26\28\30\32\34\36\38\40\42\44\46\48\50\52\54\56\58\60\62\64\66\68\70\72\74\76\78\80\85\90\95\100\105\110\115\120 | F28: 1 | G28: 1 | I28: X | J28: X | K28: X | L28: C | M28: Gen. Indoor / Outdoor | N28: ALILB84123 | O28: CLILB82123 | P28: ILILB83123
A29: 29 | B29: LED | C29: Tube | D29: Ballast Compatible (Type A)\Line Voltage (Type B)\External Driver (Type C) | E29: 10\11\12\13\14\15\16\17\18\19\20\21\22\23\24\25\26\27\28\29\30\31\32\33\34\35\36\37\38\39\40 | F29: 1\2\3\4\6\8 | G29: 1 | I29: X | J29: X | K29: X | L29: B | M29: LED Tubes | N29: ALILB84105 | O29: CLILB82110 | P29: ILILB83104
A30: 31 | B30: LED | C30: Exterior | D30: Wall Pack\Parking Lot\Roadway\Canopy\Yard/Barn\Parking Garage\High Mast\Other | E30: 10\15\20\25\30\35\40\45\50\55\60\65\70\75\80\85\90\95\100\105\110\115\120\125\130\135\140\145\150\155\160\165\170\175\180\185\190\195\200\210\220\230\240\250\260\270\280\290\300\310\320\330\340\350\360\400\500\600\700\800\900\1,000\1,100\1,200\1,300\1,400\1,500 | F30: 1 | G30: 1 | I30: X | J30: X | K30: X | L30: E | M30: LED Exterior | N30: ALILB84106 | O30: CLILB82111 | P30: ILILB83105
A31: 32 | B31: LED | C31: High Bay | D31: Standard\w/ Networked Controls | E31: 40\45\50\55\60\65\70\75\80\85\90\95\100\105\110\115\120\125\130\135\140\145\150\155\160\165\170\175\180\185\190\195\200\210\220\230\240\250\260\270\280\290\300\310\320\330\340\350\360\370\380\390\400\410\420\430\440\450\460\470\480\490\500\510\520\530\540\550\560\570\580\590\600\610\620\630\640\650\660\670\680\690\700 | F31: 1 | G31: 1 | I31: X | J31: X | K31: X | L31: D | M31: LED High Bay | N31: ALILB84107 | O31: CLILB82112 | P31: ILILB83106
A32: 33 | B32: LED | C32: Refrigerated Case | D32: [Enter total wattage below] | F32: 1 | G32: 1 | I32: X | J32: X | K32: X | L32: G | M32: LED Linear Strip | N32: ALILB84109 | O32: CLILB82114 | P32: ILILB83108
A33: 34 | B33: LED | C33: Linear Strip | D33: [Enter total wattage below] | F33: 1 | G33: 1 | I33: X | J33: X | K33: X | L33: G | M33: LED Linear Strip | N33: ALILB84109 | O33: CLILB82114 | P33: ILILB83108
A34: 35 | B34: LED | C34: Small Lamp / Fixture | D34: Screw-in A-Lamp\Screw-in Reflector\Retrofit Can\CFLED\MR16\Other | E34: 2\3\4\5\6\7\8\9\10\12\14\16\18\20\22\24\26\28\30\32\34\36\38\40\42\44\46\48\50\52\54\56\58\60 | F34: 1 | G34: 1 | I34: X | J34: X | K34: X | L34: A | M34: LED Small Lamp / Fixture | N34: ALILB84104 | O34: CLILB82109 | P34: ILILB83103
A35: 36 | B35: LED | C35: HID Screw-in Replacement | D35: High Bay\Wall Pack\Parking Lot\Parking Garage\Roadway\Canopy\Yard/Barn\High Mast\Other | E35: 10\15\20\25\30\35\40\45\50\55\60\65\70\75\80\85\90\95\100\110\120\130\140\150\160\170\180\190\200\210\220\230\240\250\260\270\280\290\300\ 310\320\330\340\350\360\370\380\390\400\410\420\430\440\450\460\470\480\490\500 | F35: 1 | G35: 1 | I35: X | J35: X | K35: X | L35: F | M35: HID Screw-in Replacement | N35: ALILB84124 | O35: CLILB82124 | P35: ILILB83124
A36: 37 | B36: T10 | C36: 6 ft | D36: VHO Lamp/ Mag Ballast | E36: 160 | F36: 1\2\3\4 | G36: 1.1 | I36: X | M36: ="Existing Equipment: " & C36 -> Existing Equipment: 6 ft | N36: ="Exist_Eq_Agr" -> Exist_Eq_Agr | O36: ="Exist_Eq_Com" -> Exist_Eq_Com | P36: ="Exist_Eq_Ind" -> Exist_Eq_Ind
A37: 38 | B37: T12 | C37: 2 ft | D37: Magnetic Ballast | E37: 20 | F37: 1\2\3\4 | G37: 1.25 | I37: X | M37: Existing Equipment: 2 ft | N37: Exist_Eq_Agr | O37: Exist_Eq_Com | P37: Exist_Eq_Ind
A38: 39 | B38: T12 | C38: 3 ft | D38: EE Ballast | E38: 25 | F38: 1\2\3\4\6 | G38: 1.32 | I38: X | M38: Existing Equipment: 3 ft | N38: Exist_Eq_Agr | O38: Exist_Eq_Com | P38: Exist_Eq_Ind
A39: 40 | B39: T12 | C39: 3 ft | D39: Magnetic Ballast | E39: 25\30 | F39: 1\2\3\4\6 | G39: 1.38 | I39: X | M39: Existing Equipment: 3 ft | N39: Exist_Eq_Agr | O39: Exist_Eq_Com | P39: Exist_Eq_Ind
A40: 41 | B40: T12 | C40: 4 ft | D40: HO Lamp/ Mag Ballast | E40: 60 | F40: 1\2\3\4 | G40: 1.2 | I40: X | M40: Existing Equipment: 4 ft | N40: Exist_Eq_Agr | O40: Exist_Eq_Com | P40: Exist_Eq_Ind
A41: 42 | B41: T12 | C41: 4 ft | D41: Lamp / EE Ballast | E41: 34\40 | F41: 1\2\3\4\6\8 | G41: 1.1 | I41: X | M41: Existing Equipment: 4 ft | N41: Exist_Eq_Agr | O41: Exist_Eq_Com | P41: Exist_Eq_Ind
A42: 43 | B42: T12 | C42: 4 ft | D42: Lamp / Mag Ballast | E42: 34\40 | F42: 1\2\3\4\6\8 | G42: 1.2 | I42: X | M42: Existing Equipment: 4 ft | N42: Exist_Eq_Agr | O42: Exist_Eq_Com | P42: Exist_Eq_Ind
A43: 44 | B43: T12 | C43: 4 ft | D43: Slimline/ Mag Ballast | E43: 39 | F43: 1\2\3\4 | G43: 1.2 | I43: X | M43: Existing Equipment: 4 ft | N43: Exist_Eq_Agr | O43: Exist_Eq_Com | P43: Exist_Eq_Ind
A44: 45 | B44: T12 | C44: 4 ft | D44: VHO Lamp/ Mag Ballast | E44: 115 | F44: 1\2\3\4 | G44: 1.1 | I44: X | M44: Existing Equipment: 4 ft | N44: Exist_Eq_Agr | O44: Exist_Eq_Com | P44: Exist_Eq_Ind
A45: 46 | B45: T12 | C45: 5 ft | D45: HO Lamp/ Mag Ballast | E45: 75 | F45: 1\2\3\4 | G45: 1.2 | I45: X | M45: Existing Equipment: 5 ft | N45: Exist_Eq_Agr | O45: Exist_Eq_Com | P45: Exist_Eq_Ind
A46: 47 | B46: T12 | C46: 5 ft | D46: Slimline/ Mag Ballast | E46: 50 | F46: 1\2\3\4 | G46: 1.2 | I46: X | M46: Existing Equipment: 5 ft | N46: Exist_Eq_Agr | O46: Exist_Eq_Com | P46: Exist_Eq_Ind
A47: 48 | B47: T12 | C47: 5 ft | D47: VHO Lamp/ Mag Ballast | E47: 135 | F47: 1\2\3\4 | G47: 1.1 | I47: X | M47: Existing Equipment: 5 ft | N47: Exist_Eq_Agr | O47: Exist_Eq_Com | P47: Exist_Eq_Ind
A48: 49 | B48: T12 | C48: 5 ft 4 in | D48: HO Lamp/ Mag Ballast | E48: 80 | F48: 1\2\3\4 | G48: 1.2 | I48: X | M48: Existing Equipment: 5 ft 4 in | N48: Exist_Eq_Agr | O48: Exist_Eq_Com | P48: Exist_Eq_Ind
A49: 50 | B49: T12 | C49: 5 ft 4 in | D49: Slimline/ Mag Ballast | E49: 52 | F49: 1\2\3\4 | G49: 1.2 | I49: X | M49: Existing Equipment: 5 ft 4 in | N49: Exist_Eq_Agr | O49: Exist_Eq_Com | P49: Exist_Eq_Ind
A50: 51 | B50: T12 | C50: 6 ft | D50: HO Lamp/ Mag Ballast | E50: 85 | F50: 1\2\3\4 | G50: 1.2 | I50: X | M50: Existing Equipment: 6 ft | N50: Exist_Eq_Agr | O50: Exist_Eq_Com | P50: Exist_Eq_Ind
A51: 52 | B51: T12 | C51: 6 ft | D51: Slimline/ Mag Ballast | E51: 55 | F51: 1\2\3\4 | G51: 1.2 | I51: X | M51: Existing Equipment: 6 ft | N51: Exist_Eq_Agr | O51: Exist_Eq_Com | P51: Exist_Eq_Ind
A52: 53 | B52: T12 | C52: 6 ft | D52: VHO Lamp/ Mag Ballast | E52: 160 | F52: 1\2\3\4 | G52: 1.1 | I52: X | M52: ="Existing Equipment: " & C52 -> Existing Equipment: 6 ft | N52: Exist_Eq_Agr | O52: Exist_Eq_Com | P52: Exist_Eq_Ind
A53: 54 | B53: T12 | C53: 7 ft | D53: HO Lamp/ Mag Ballast | E53: 100 | F53: 1\2\3\4 | G53: 1.2 | I53: X | M53: Existing Equipment: 7 ft | N53: Exist_Eq_Agr | O53: Exist_Eq_Com | P53: Exist_Eq_Ind
A54: 55 | B54: T12 | C54: 7 ft | D54: Slimline/ Mag Ballast | E54: 70 | F54: 1\2\3\4 | G54: 1.1 | I54: X | M54: Existing Equipment: 7 ft | N54: Exist_Eq_Agr | O54: Exist_Eq_Com | P54: Exist_Eq_Ind
A55: 56 | B55: T12 | C55: 8 ft | D55: HO Lamp/ EE Ballast | E55: 95\110 | F55: 1\2\3\4 | G55: 1.1 | I55: X | M55: Existing Equipment: 8 ft | N55: Exist_Eq_Agr | O55: Exist_Eq_Com | P55: Exist_Eq_Ind
A56: 57 | B56: T12 | C56: 8 ft | D56: HO Lamp/ Mag Ballast | E56: 95\110 | F56: 1\2\3\4 | G56: 1.2 | I56: X | M56: Existing Equipment: 8 ft | N56: Exist_Eq_Agr | O56: Exist_Eq_Com | P56: Exist_Eq_Ind
A57: 58 | B57: T12 | C57: 8 ft | D57: Slimline/ Mag Ballast | E57: 60\75 | F57: 1\2\3\4 | G57: 1.15 | I57: X | M57: Existing Equipment: 8 ft | N57: Exist_Eq_Agr | O57: Exist_Eq_Com | P57: Exist_Eq_Ind
A58: 59 | B58: T12 | C58: 8 ft | D58: VHO Lamp/ Mag Ballast | E58: 185\215 | F58: 1\2\3\4 | G58: 1.02 | I58: X | M58: Existing Equipment: 8 ft | N58: Exist_Eq_Agr | O58: Exist_Eq_Com | P58: Exist_Eq_Ind
A59: 60 | B59: T12 | C59: U-Lamp | D59: EE Ballast | E59: 35\40 | F59: 1\2\3\4 | G59: 1.1 | I59: X | M59: Existing Equipment: U-Lamp | N59: Exist_Eq_Agr | O59: Exist_Eq_Com | P59: Exist_Eq_Ind
A60: 61 | B60: T12 | C60: U-Lamp | D60: Mag Ballast | E60: 35\40 | F60: 1\2\3\4 | G60: 1.2 | I60: X | M60: Existing Equipment: U-Lamp | N60: Exist_Eq_Agr | O60: Exist_Eq_Com | P60: Exist_Eq_Ind
A61: 62 | B61: T8 | C61: 4 ft | D61: NLO Ballast | E61: 25\28\32 | F61: 1\2\3\4\5\6\7\8\9\10 | G61: 0.92 | I61: X | M61: Existing Equipment: 4 ft | N61: Exist_Eq_Agr | O61: Exist_Eq_Com | P61: Exist_Eq_Ind
A62: 63 | B62: T8 | C62: 4 ft | D62: LLO Ballast | E62: 25\28\32 | F62: 1\2\3\4\5\6\7\8\9\10 | G62: 0.84 | I62: X | M62: Existing Equipment: 4 ft | N62: Exist_Eq_Agr | O62: Exist_Eq_Com | P62: Exist_Eq_Ind
A63: 64 | B63: T8 | C63: 8 ft | D63: NLO Ballast | E63: 54\59 | F63: 1\2\3\4\5\6\7\8\9\10 | G63: 0.92 | I63: X | M63: Existing Equipment: 8 ft | N63: Exist_Eq_Agr | O63: Exist_Eq_Com | P63: Exist_Eq_Ind
A64: 65 | B64: T8 | C64: 8 ft | D64: HO Ballast | E64: 86 | F64: 1\2\3\4\5\6\7\8\9\10 | G64: 1 | I64: X | M64: Existing Equipment: 8 ft | N64: Exist_Eq_Agr | O64: Exist_Eq_Com | P64: Exist_Eq_Ind
A65: 66 | B65: T8 | C65: Irregular Size | D65: 2 ft | E65: 15\17 | F65: 1\2\3\4 | G65: 0.88 | I65: X | M65: Linear Fluorescent | N65: ALILB84126 | O65: CLILB82126 | P65: ILILB83126
A66: 67 | B66: T8 | C66: Irregular Size | D66: 3 ft | E66: 25 | F66: 1\2\3\4\6\8 | G66: 0.96 | I66: X | M66: Linear Fluorescent | N66: ALILB84126 | O66: CLILB82126 | P66: ILILB83126
A67: 68 | B67: T8 | C67: Irregular Size | D67: 5 ft | E67: 40\55\58 | F67: 1\2\3\4 | G67: 0.85 | I67: X | M67: Linear Fluorescent | N67: ALILB84126 | O67: CLILB82126 | P67: ILILB83126
A68: 69 | B68: T8 | C68: Irregular Size | D68: 6 ft | E68: 58\65\70 | F68: 1\2\3\4 | G68: 0.85 | I68: X | M68: Linear Fluorescent | N68: ALILB84126 | O68: CLILB82126 | P68: ILILB83126
A69: 70 | B69: T8 | C69: Irregular Size | D69: 7 ft | E69: 70 | F69: 1\2\3\4 | G69: 0.85 | I69: X | M69: Linear Fluorescent | N69: ALILB84126 | O69: CLILB82126 | P69: ILILB83126
A70: 71 | B70: T8 | C70: U-Lamp | D70: NLO Ballast | E70: 25\28\32 | F70: 1\2\3\4 | G70: 0.92 | I70: X | M70: Linear Fluorescent | N70: ALILB84126 | O70: CLILB82126 | P70: ILILB83126
A71: 72 | B71: T8 | C71: U-Lamp | D71: LLO Ballast | E71: 25\28\32 | F71: 1\2\3\4 | G71: 0.75 | I71: X | M71: Linear Fluorescent | N71: ALILB84126 | O71: CLILB82126 | P71: ILILB83126
A72: 73 | B72: T8 HP | C72: 4 ft | D72: HLO Ballast | E72: 25\28\32 | F72: 1\2\3\4\5\6\7\8\9\10 | G72: 1.14 | I72: X | K72: X | M72: Linear Fluorescent | N72: ALILB84126 | O72: CLILB82126 | P72: ILILB83126
A73: 74 | B73: T8 HP | C73: 4 ft | D73: HLO Ballast | E73: 25\28\32 | F73: 1\2\3\4\5\6\7\8\9\10 | G73: 1.14 | I73: X | K73: X | M73: Linear Fluorescent | N73: ALILB84126 | O73: CLILB82126 | P73: ILILB83126
A74: 75 | B74: T8 HP | C74: 4 ft | D74: NLO Ballast | E74: 25\28\32 | F74: 1\2\3\4\5\6\7\8\9\10 | G74: 0.86 | I74: X | K74: X | M74: Linear Fluorescent | N74: ALILB84126 | O74: CLILB82126 | P74: ILILB83126
A75: 76 | B75: T8 HP | C75: 4 ft | D75: LLO Ballast | E75: 25\28\32 | F75: 1\2\3\4\5\6\7\8\9\10 | G75: 0.75 | I75: X | K75: X | M75: Linear Fluorescent | N75: ALILB84126 | O75: CLILB82126 | P75: ILILB83126
A76: 77 | B76: T8 HP | C76: 4 ft | D76: VLLO Ballast | E76: 25\28\32 | F76: 1\2\3\4\5\6\7\8\9\10 | G76: 0.73 | I76: X | K76: X | M76: Linear Fluorescent | N76: ALILB84126 | O76: CLILB82126 | P76: ILILB83126
A77: 78 | B77: T8 HP | C77: 8 ft | D77: NLO Ballast | E77: 54\59 | F77: 1\2\3\4 | G77: 0.92 | I77: X | K77: X | M77: Linear Fluorescent | N77: ALILB84126 | O77: CLILB82126 | P77: ILILB83126
A78: 79 | B78: T5 | C78: 4 ft Hi-Bay | D78: HO Lamp / Prog-Start Ballast | E78: 44\47\49\50\51\54 | F78: 1\2\3\4\5\6\8\10\12 | G78: 1.02 | I78: X | K78: X | M78: Linear Fluorescent | N78: ALILB84126 | O78: CLILB82126 | P78: ILILB83126
A79: 80 | B79: T5 | C79: 2 ft | D79: HO Lamp / Prog-Start Ballast | E79: 21\22\24\26\28\35\39\40\50\55 | F79: 1\2\3\4\5\6\8\10\12 | G79: 1.02 | I79: X | K79: X | M79: Linear Fluorescent | N79: ALILB84126 | O79: CLILB82126 | P79: ILILB83126
A80: 81 | B80: T5 | C80: 4 ft | D80: NLO Ballast | E80: 28\28 | F80: 1\2\3\4\5\6\8\10\12 | G80: 1 | I80: X | M80: Linear Fluorescent | N80: ALILB84126 | O80: CLILB82126 | P80: ILILB83126
A81: 82 | B81: Signage | C81: LED Tube | D81: [Enter total wattage below] | F81: 1 | G81: 1 | J81: X | K81: X | L81: I | M81: Signage | N81: ALILB84127 | O81: CLILB82127 | P81: ILILB83127
A82: 83 | B82: Signage | C82: Linear Strip | D82: [Enter total wattage below] | F82: 1 | G82: 1 | J82: X | K82: X | L82: I | M82: Signage | N82: ALILB84127 | O82: CLILB82127 | P82: ILILB83127
A83: 84 | B83: Signage | C83: Other | D83: [Enter total wattage below] | F83: 1 | G83: 1 | J83: X | K83: X | L83: I | M83: Signage | N83: ALILB84127 | O83: CLILB82127 | P83: ILILB83127

Sheet ArithmeticBaseline
A1: Class | B1: Category | C1: Subcategory | D1: Lamp Wattage | E1: GSFL Market Average Baseline
A2: Incandescent | B2: General Purpose | C2: A-lamp | D2: 100 | E2: 72
A3: Incandescent | B3: General Purpose | C3: A-lamp | D3: 75 | E3: 53
A4: Incandescent | B4: General Purpose | C4: A-lamp | D4: 60 | E4: 43
A5: Incandescent | B5: General Purpose | C5: A-lamp | D5: 40 | E5: 29

Sheet Variable and Parameter Guide
B2: BPA Lighting Calculator Version 5.X2 - Variable and Parameter Reference Guide
B4: Nickname | C4: Data Field or Range Name | D4: Userform Location | E4: Workbook Storage Location | F4: Field or Range Description
B5: AllowableLampWattage | C5: AllowableLampWattage | D5: N/A | E5: N/A | F5: Lookup value based on GSFL Market Averages listed on ArithmeticBaseline sheet
B6: AnnualHours | C6: label_PrimSched_AnnHrs or label_Spaces_AnnHrs, depending on whether a specific measure uses the primary schedule or a unique schedule, respectively | D6: frm_DataEntry userform, Spaces tab | E6: user_Space Types tab, column X | F6: Calculated result representing annual lighting usage operating hours for a specific measure.
B7: BallastDraw | C7: BallastDraw | D7: N/A | E7: N/A | F7: Calculated result representing ballast power draw and based on BallastFactor_Existing, LampsPerFixture_Existing, and LampWattage_Existing.
B8: BallastFactor_Existing | C8: Existing Ballast Factor | D8: N/A | E8: user_Lighting Details, column AW | F8: Lookup value from Table_MasterMeasureList as a function of Class_Existing, Category_Existing, and Subcategory_Existing.
B9: Category_Existing | C9: fld_ExistingType | D9: frm_DataEntry userform, Measures tab | E9: user_Lighting Details, column AB | F9: User input defining the category of the existing fixture's lighting technology. Categories are defined in the Master Measure List (MML tab).
B10: Class_Existing | C10: fld_ExistingClass | D10: frm_DataEntry userform, Measures tab | E10: user_Lighting Details, column AA | F10: User input defining the class of the existing fixture's lighting technology. Classes are defined in the Master Measure List (MML tab).
B11: ExistingAnnualkWh_Arithmetic_noHVAC_noLineLoss | C11: Existing Fixture Annual kWh w/o HVAC, Arithmetic Baseline | D11: N/A | E11: user_Lighting Details, column BE | F11: Calculated result showing annual existing energy consumption adjusted for the arithmetic baseline and not including HVAC interaction and line losses.
B12: ExistingAnnualkWh_Precond_noHVAC_noLineLoss | C12: Existing Fixture Annual kWh w/o HVAC | D12: N/A | E12: user_Lighting Details, column BD | F12: Calculated result showing annual existing energy consumption (not adjusted for the arithmetic baseline) and not including HVAC interaction and line losses.
B13: FixtureWattage_Arithmetic | C13: Existing Fixture Wattage, Arithmetic Baseline | D13: N/A | E13: user_Lighting Details, column BA | F13: Calculated result showing fixture wattage adjusted for GSFL Market Average Baseline.
B14: FixtureWattage_Existing | C14: ExistingWattsPerFixture | D14: frm_DataEntry userform, Measures tab | E14: user_Lighting Details, column AY | F14: Calculated result showing fixture wattage not adjusted for arithmetic baseline.
B15: HoursPerDay | C15: Fourteen possiblities depending on day of week and type of schedule (primary or unique); e.g., for Monday, the two names are textbox_PrimSched_Mon and textbox_Spaces_Mon | D15: frm_DataEntry userform, Spaces tab | E15: user_Space Types tab, columns M through S | F15: User input representing typical hours per day for a primary schedule and unique schedule(s) (if applicable). Hours per day are entered separately for each day of the week and for the primary schedule and each unique schedule.
B16: LampsPerFixture_Existing | C16: fld_ExistingLampsPerFixture | D16: frm_DataEntry userform, Measures tab | E16: user_Lighting Details, column AE | F16: User input representing number of lamps per existing fixture.
B17: LampWattage_Arithmetic | C17: LampWattage_Arithmetic | D17: N/A | E17: N/A | F17: Calculated result representing the minimum of LampWattage_Existing and LampWattage_Arithmetic_Comp.
B18: LampWattage_Arithmetic_Comp | C18: LampWattage_Arithmetic_Comp | D18: N/A | E18: N/A | F18: Calculated result based on LampsPerFixture_Existing, AllowableLampWattage, and BallastDraw.
B19: LampWattage_Existing | C19: fld_ExistingLampWattage | D19: frm_DataEntry userform, Measures tab | E19: user_Lighting Details, column AD | F19: User input representing the lamp wattage of the existing measure equipment.
B20: NumberOfFixtures_Existing | C20: fld_ExistingQuantity | D20: frm_DataEntry userform, Measures tab | E20: user_Lighting Details, column Z | F20: User input representing the quantity of existing fixtures.
B21: SpaceName | C21: textbox_Spaces_SpaceName | D21: frm_DataEntry userform, Spaces tab | E21: user_Space Types tab, column L | F21: User input representing a unique space type, which has an associated operating schedule and HVAC type.
B22: Subcategory_Existing | C22: fld_ExistingSubtype | D22: frm_DataEntry userform, Measures tab | E22: user_Lighting Details, column AC | F22: User input defining the subcategory of the existing fixture's lighting technology. Subcategories are defined in the Master Measure List (MML tab).
B23: WeeksPerYear | C23: textbox_PrimSched_WksPrYr or textbox_Spaces_WksPrYr, depending on whether a specific measure uses the primary schedule or a unique schedule, respectively | D23: frm_DataEntry userform, Spaces tab | E23: user_Space Types tab, column T | F23: User input representing the number of weeks per year for which the primary operating schedule and unique operating schedule(s) hold true.

Sheet Calculator Algorithms
B1: BPA Lighting Calculator Version 5.X2 - Supporting Documentation
B2: Calculator Algorithms
B4: ExistingAnnualkWh_Precond_noHVAC_noLineLoss = FixtureWattage_Existing x NumberOfFixtures_Existing x AnnualHours
C5: Where
C6: · FixtureWattage_Existing = LampWattage_Existing x LampsPerFixture_Existing x BallastFactor_Existing
C7: Where
C8: o LampWattage_Existing is specified by the user
C9: o LampsPerFixture_Existing is specified by the user
C10: o BallastFactor_Existing is looked up from Table_MasterMeasureList as a function of
C11: § Class_Existing, which is specified by the user
C12: § Category_Existing, which is specified by the user
C13: § Subcategory_Existing, which is specified by the user
B14: · NumberOfFixtures is specified by the user
B15: · AnnualHours
B16: o [if measure is an exit sign] = 8760
B17: o [for all other measures] is looked up from the Spaces table as function of the SpaceName specified by the user for the measure.
B18: · AnnualHours is computed in the CleanSpaceVector subroutine - AnnualHours = sum(HoursPerDay) x WeeksPerYear x 365/(52 x 7)
E19: Where
C20: o sum(HoursPerDay) is the sum of hours specified for each of the seven days of the week.
C21: o WeeksPerYear is looked up from the Spaces table as a function of the SpaceName specified by the user for the measure
C22: o 365/(52 x7) is a correction factor to account for one year consisting of 52 weeks plus one day
B23: ExistingAnnualkWh_Arithmetic_noHVAC_noLineLoss
B24: The baseline annual energy consumption under the arithmetic baseline is computed in the same manner as the preconditions baseline (ExistingAnnualkWh_Precond_noHVAC_noLineLoss) with the following exceptions:
B25: · FixtureWattage_Existing is replaced by FixtureWattage_Arithmetic
C26: Where
B27: o FixtureWattage_Arithmetic is computed in the same manner as FixtureWattage_Existing with the following exceptions:
B28: § LampWattage_Existing is replaced by LampWattage_Arithmetic
E29: Where
C30: · LampWattage_Arithmetic =
C31: o [if the MasterMeasureListRow indicates that an Arithmetic baseline adjustment is called for] = minimum (LampWattage_Existing, LampWattage_Arithmetic_Comp)
F32: Where
D33: § Arithmetic baseline adjustment is indicated by an “X” in the MeasureMeasureList, ArithmeticBaseline column
D34: § LampWattage_Arithmetic_Comp = ( AllowableLampWattage x LampsPerFixture_Existing ) + BallastDraw
G35: Where
E36: · AllowableLampWattage is the GSFL Market Average Baseline found in the ArithmeticBaseline table
E37: · BallastDraw = (BallastFactor_Existing – 1) x (LampsPerFixture_Existing) x (LampWattage_Existing)
H38: Where
F39: o BallastFactor_Existing is looked up in the MasterMeasureList table as a function of:
G40: § Class_Existing, which is specified by the user
G41: § Category_Existing, which is specified by the user
G42: § Subcategory_Existing, which is specified by the user
F43: o LampsPerFixture_Existing, which is specified by the user
F44: o LampWattage_Existing, which is specified by the user

Sheet prntrdy_Form1
M3: Lighting Proposal - Attachment A
L4: =IF(user_Project!N3="","Customer Name",user_Project!N3) -> Person Signing Contract | Q4: Estimated project costs required to determine utility incentive. This project is pending utility approval. All figures should be considered estimates.
L5: =IF(user_Project!U3="","Customer Address",user_Project!U3) -> Company Address
L6: =IF(OR(user_Project!V3="",user_Project!W3="",user_Project!X3=""),"Customer City/State/Zip Code",CONCATENATE(user_Project!V3,", ",user_Project!W3," ",user_Project!X3)) -> Tacoma, WA 98402
L8: =IF(user_Project!N3="","Dear Customer",CONCATENATE("Dear ",user_Project!N3,",")) -> Dear Person Signing Contract,
L10: =CONCATENATE("Based on the lighting retrofit proposal that has been prepared by ",IF(user_TradeAlly!T3="","'trade ally'",user_TradeAlly!T3),IF(user_Project!AA3=""," at 'site address'",CONCATENATE(" at ",user_Project!AA3)),", we have estimated the project’s energy savings and the incentives that would be available from ",IF(inp_UtilityInfo!B3="","your utility",inp_UtilityInfo!B3)," for this proposed project. These are estimates only, as actual savings and incentives may vary based on final installed measures and investment costs. The incentives provided by your local utility cover ",IF(N14=0,0,ROUND((N15/N14)*100,0)),"% of the total installation costs of the project. The following tables display the project’s estimated energy savings, simple payback, and return on investment.") -> Based on the lighting retrofit proposal that has been prepared by Company at Project Address, we have estimated the project’s energy savings and the incentives that would be available from Tacoma Power for this proposed project. These are estimates only, as actual savings and incentives may vary based on final installed measures and investment costs. The incentives provided by your local utility cover 0% of the total installation costs of the project. The following tables display the project’s estimated energy savings, simple payback, and return on investment.
L12: Project Overview
L14: Estimated Project Cost: | N14: 15000 | P14: Estimated Yearly Utility Savings: (from consumption and demand) | S14: 420.630824
L15: Est. Utility Incentive: | N15: 56 | P15: Estimated Yearly O&M Savings**: | S15: 450
L16: Customer Balance: | N16: 14944 | P16: Estimated Simple Payback: | S16: 17.2 years
L17: Estimated kWh/Yr Saved: | N17: 4540.02184 | P17: Return On Investment (ROI): | S17: 0.058
L18: Estimated kW Reduction: | N18: 1.8961
L20: Cost of Waiting
L22: The longer you wait to replace your out-of-date equipment, the more savings you miss out on. Upgrading your lighting system now will reduce your costs and energy consumption. How much money are you losing waiting to upgrade?
L24: Time | M24: Costs
L25: 6 Months | M25: =IF($S$14="","",($S$15+$S$14)/2) -> 435.315412
L26: 1 Year | M26: =IF($S$14="","",($S$15+$S$14)) -> 870.630824 | P26: =IF(OR(S14="",N16=""),"How quickly will you recoup your investment in energy efficient lighting? With an estimated monthly savings of _________, it would take approximately _____ months to pay off your investment.",CONCATENATE("How quickly will you recoup your investment in energy efficient lighting? With an estimated monthly savings of $",ROUND((S15+S14)/12,0),", it would take approximately ",ROUND(12*(N16/SUM(S15,S14)),0)," months to pay off your investment with a utility incentive.")) -> How quickly will you recoup your investment in energy efficient lighting? With an estimated monthly savings of $73, it would take approximately 206 months to pay off your investment with a utility incentive.
L27: 3 Years | M27: =IF($S$14="","",($S$15+$S$14)*3) -> 2611.892472
L28: 5 Years | M28: =IF($S$14="","",($S$15+$S$14)*5) -> 4353.15412
L30: Project Detail Summary*
L32: Measure | M32: Measure Description | P32: Quantity*** | Q32: Units | R32: Incentive per Unit | S32: Total Incentive
L33: B1-30% | M33: LED Tubes | P33: 28 | Q33: lamp(s) | R33: $2 | S33: 56
R234: Total | S234: =SUM(S33:S233) -> 56
L236: Explanation of Utility Incentive
M237: A. Itemized Incentive Total: | Q237: 56
M238: B. Total Estimated Project Costs: | Q238: 15000
M239: =IF(inp_Incentives!$A$3="","C. 70% of Estimated Project Costs Incentive Cap:",CONCATENATE("C. ",ROUND(inp_Incentives!$A$3,1),"% of Estimated Project Costs Incentive Cap:")) -> C. 100% of Estimated Project Costs Incentive Cap: | Q239: N/A
M240: =IF(inp_Incentives!$B$3="","D. Maximum $0.50 per kWh (Project Level) Incentive Cap:",CONCATENATE("D. Maximum ",TEXT(ROUND(inp_Incentives!$B$3,2),"$0.00")," per kWh (Project Level) Incentive Cap:")) -> D. Maximum $0.19 per kWh (Project Level) Incentive Cap: | Q240: N/A
M241: E. Total Incentive = Lesser of "A", "C", and "D" above: | Q241: 56
L243: EXIT SIGNS AND TLED TUBE INCENTIVES ARE AVAILABLE ONLY AS DEEMED MEASURES *Actual incentives paid are based on DEEMED measures. ANY non-standard and advanced control measures must be approved by TPU. Utility incentives may be capped based on a predetermined maximum incentive per project. ** The default value for annual O&M savings is 3% of the project cost. Your utility can override this value.
L244: ***kWh savings reported in the Project Overview are estimated on-site savings that a customer may realize, while savings figures in the Project Detail Summary have been adjusted for federal standards and BPA busbar.

Sheet prntrdy_Form2
L4: Lighting Calculator 5.X2 Program Offerings
L6: Measure Series A: LED Small Lamp / Fixture
L8: Measure Series A is intended for interior and exterior LED small lamps and fixtures. This measure series includes: reflectors, PAR, BR, A-lamps, MR-16s, CFLEDs, recessed cans/kits, and other medium base LED screw-in or small fixture variations.
M12: Measure | N12: Watt Baseline | O12: Required Wattage Reduction | P12: Incentive per lamp
M13: =inp_Incentives!B6 -> A1-40% | N13: =inp_Incentives!D6 -> ≤100 | O13: =IF(OR(inp_Incentives!E6=0,inp_Incentives!E6=""),"N/A",CONCATENATE("≥",TEXT(inp_Incentives!E6,"0%"))) -> ≥40% | P13: =inp_Incentives!I6 -> 0
M14: =inp_Incentives!B7 -> A2-40% | N14: =inp_Incentives!D7 -> ≥101 | O14: =IF(OR(inp_Incentives!E7=0,inp_Incentives!E7=""),"N/A",CONCATENATE("≥",TEXT(inp_Incentives!E7,"0%"))) -> ≥40% | P14: =inp_Incentives!I7 -> 0
L16: Notes: • Please refer to Measure Series F for screw-in LEDs replacing HIDs.
L18: Measure Series B: LED Tubes
L20: Measure Series B covers all sizes, shapes, and configurations (Types A, B, C) of LED Tubes (TLEDs), including, 4’, 8’, irregular lengths, and U-bend.
M24: Measure | N24: Watt Baseline | O24: Required Wattage Reduction | P24: Incentive per tube
M25: =inp_Incentives!B10 -> B1-30% | N25: ="≥1" -> ≥1 | O25: =IF(OR(inp_Incentives!E10=0,inp_Incentives!E10=""),"N/A",CONCATENATE("≥",TEXT(inp_Incentives!E10,"0%"))) -> ≥30% | P25: =inp_Incentives!I10 -> 2
L31: Measure Series C: LED General Indoor / Outdoor
L33: The General Indoor / Outdoor category includes a variety of fixtures typically installed under 15’ including recessed troffers, surface mounted wraps, vapor tights, other similar linear fixtures.* Measure Series C excludes exterior applications such as parking lots, wall packs, roadways, etc. For these applications Measure Series E: LED Exterior shall be used.
M37: Measure | N37: Watt Baseline | O37: Required Wattage Reduction | P37: Incentive per standard fixture
M38: =inp_Incentives!B15 -> C1-40% | N38: =inp_Incentives!D15 -> ≤100 | O38: =IF(OR(inp_Incentives!E15=0,inp_Incentives!E15=""),"N/A",CONCATENATE("≥",TEXT(inp_Incentives!E15,"0%"))) -> ≥40% | P38: =inp_Incentives!I15 -> 20
M39: =inp_Incentives!B16 -> C1-40% w/Networked Cont | N39: =inp_Incentives!D16 -> ≤100 | O39: =IF(OR(inp_Incentives!E16=0,inp_Incentives!E16=""),"N/A",CONCATENATE("≥",TEXT(inp_Incentives!E16,"0%"))) -> ≥40% | P39: =inp_Incentives!I16 -> 60
M40: =inp_Incentives!B17 -> C1-50% | N40: =inp_Incentives!D17 -> ≤100 | O40: =IF(OR(inp_Incentives!E17=0,inp_Incentives!E17=""),"N/A",CONCATENATE("≥",TEXT(inp_Incentives!E17,"0%"))) -> ≥50% | P40: =inp_Incentives!I17 -> 30
M41: =inp_Incentives!B18 -> C1-50% w/Networked Cont | N41: =inp_Incentives!D18 -> ≤100 | O41: =IF(OR(inp_Incentives!E18=0,inp_Incentives!E18=""),"N/A",CONCATENATE("≥",TEXT(inp_Incentives!E18,"0%"))) -> ≥50% | P41: =inp_Incentives!I18 -> 70
M42: =inp_Incentives!B19 -> C1-60% | N42: =inp_Incentives!D19 -> ≤100 | O42: =IF(OR(inp_Incentives!E19=0,inp_Incentives!E19=""),"N/A",CONCATENATE("≥",TEXT(inp_Incentives!E19,"0%"))) -> ≥60% | P42: =inp_Incentives!I19 -> 40
M43: =inp_Incentives!B20 -> C1-60% w/Networked Cont | N43: =inp_Incentives!D20 -> ≤100 | O43: =IF(OR(inp_Incentives!E20=0,inp_Incentives!E20=""),"N/A",CONCATENATE("≥",TEXT(inp_Incentives!E20,"0%"))) -> ≥60% | P43: =inp_Incentives!I20 -> 80
M44: =inp_Incentives!B21 -> C1-70% | N44: =inp_Incentives!D21 -> ≤100 | O44: =IF(OR(inp_Incentives!E21=0,inp_Incentives!E21=""),"N/A",CONCATENATE("≥",TEXT(inp_Incentives!E21,"0%"))) -> ≥70% | P44: =inp_Incentives!I21 -> 50
M45: =inp_Incentives!B22 -> C1-70% w/Networked Cont | N45: =inp_Incentives!D22 -> ≤100 | O45: =IF(OR(inp_Incentives!E22=0,inp_Incentives!E22=""),"N/A",CONCATENATE("≥",TEXT(inp_Incentives!E22,"0%"))) -> ≥70% | P45: =inp_Incentives!I22 -> 90
M46: =inp_Incentives!B23 -> C2-40% | N46: =inp_Incentives!D23 -> 101-200 | O46: =IF(OR(inp_Incentives!E23=0,inp_Incentives!E23=""),"N/A",CONCATENATE("≥",TEXT(inp_Incentives!E23,"0%"))) -> ≥40% | P46: =inp_Incentives!I23 -> 40
M47: =inp_Incentives!B24 -> C2-40% w/Networked Cont | N47: =inp_Incentives!D24 -> 101-200 | O47: =IF(OR(inp_Incentives!E24=0,inp_Incentives!E24=""),"N/A",CONCATENATE("≥",TEXT(inp_Incentives!E24,"0%"))) -> ≥40% | P47: =inp_Incentives!I24 -> 80
M48: =inp_Incentives!B25 -> C2-50% | N48: =inp_Incentives!D25 -> 101-200 | O48: =IF(OR(inp_Incentives!E25=0,inp_Incentives!E25=""),"N/A",CONCATENATE("≥",TEXT(inp_Incentives!E25,"0%"))) -> ≥50% | P48: =inp_Incentives!I25 -> 60
M49: =inp_Incentives!B26 -> C2-50% w/Networked Cont | N49: =inp_Incentives!D26 -> 101-200 | O49: =IF(OR(inp_Incentives!E26=0,inp_Incentives!E26=""),"N/A",CONCATENATE("≥",TEXT(inp_Incentives!E26,"0%"))) -> ≥50% | P49: =inp_Incentives!I26 -> 100
M50: =inp_Incentives!B27 -> C2-60% | N50: =inp_Incentives!D27 -> 101-200 | O50: =IF(OR(inp_Incentives!E27=0,inp_Incentives!E27=""),"N/A",CONCATENATE("≥",TEXT(inp_Incentives!E27,"0%"))) -> ≥60% | P50: =inp_Incentives!I27 -> 80
M51: =inp_Incentives!B28 -> C2-60% w/Networked Cont | N51: =inp_Incentives!D28 -> 101-200 | O51: =IF(OR(inp_Incentives!E28=0,inp_Incentives!E28=""),"N/A",CONCATENATE("≥",TEXT(inp_Incentives!E28,"0%"))) -> ≥60% | P51: =inp_Incentives!I28 -> 120
M52: =inp_Incentives!B29 -> C2-70% | N52: =inp_Incentives!D29 -> 101-200 | O52: =IF(OR(inp_Incentives!E29=0,inp_Incentives!E29=""),"N/A",CONCATENATE("≥",TEXT(inp_Incentives!E29,"0%"))) -> ≥70% | P52: =inp_Incentives!I29 -> 100
M53: =inp_Incentives!B30 -> C2-70% w/Networked Cont | N53: =inp_Incentives!D30 -> 101-200 | O53: =IF(OR(inp_Incentives!E30=0,inp_Incentives!E30=""),"N/A",CONCATENATE("≥",TEXT(inp_Incentives!E30,"0%"))) -> ≥70% | P53: =inp_Incentives!I30 -> 140
M54: =inp_Incentives!B31 -> C3-40% | N54: =inp_Incentives!D31 -> ≥201 | O54: =IF(OR(inp_Incentives!E31=0,inp_Incentives!E31=""),"N/A",CONCATENATE("≥",TEXT(inp_Incentives!E31,"0%"))) -> ≥40% | P54: =inp_Incentives!I31 -> 70
M55: =inp_Incentives!B32 -> C3-40% w/Networked Cont | N55: =inp_Incentives!D32 -> ≥201 | O55: =IF(OR(inp_Incentives!E32=0,inp_Incentives!E32=""),"N/A",CONCATENATE("≥",TEXT(inp_Incentives!E32,"0%"))) -> ≥40% | P55: =inp_Incentives!I32 -> 130
M56: =inp_Incentives!B33 -> C3-50% | N56: =inp_Incentives!D33 -> ≥201 | O56: =IF(OR(inp_Incentives!E33=0,inp_Incentives!E33=""),"N/A",CONCATENATE("≥",TEXT(inp_Incentives!E33,"0%"))) -> ≥50% | P56: =inp_Incentives!I33 -> 100
M57: =inp_Incentives!B34 -> C3-50% w/Networked Cont | N57: =inp_Incentives!D34 -> ≥201 | O57: =IF(OR(inp_Incentives!E34=0,inp_Incentives!E34=""),"N/A",CONCATENATE("≥",TEXT(inp_Incentives!E34,"0%"))) -> ≥50% | P57: =inp_Incentives!I34 -> 160
M58: =inp_Incentives!B35 -> C3-60% | N58: =inp_Incentives!D35 -> ≥201 | O58: =IF(OR(inp_Incentives!E35=0,inp_Incentives!E35=""),"N/A",CONCATENATE("≥",TEXT(inp_Incentives!E35,"0%"))) -> ≥60% | P58: =inp_Incentives!I35 -> 120
M59: =inp_Incentives!B36 -> C3-60% w/Networked Cont | N59: =inp_Incentives!D36 -> ≥201 | O59: =IF(OR(inp_Incentives!E36=0,inp_Incentives!E36=""),"N/A",CONCATENATE("≥",TEXT(inp_Incentives!E36,"0%"))) -> ≥60% | P59: =inp_Incentives!I36 -> 180
M60: =inp_Incentives!B37 -> C3-70% | N60: =inp_Incentives!D37 -> ≥201 | O60: =IF(OR(inp_Incentives!E37=0,inp_Incentives!E37=""),"N/A",CONCATENATE("≥",TEXT(inp_Incentives!E37,"0%"))) -> ≥70% | P60: =inp_Incentives!I37 -> 140
M61: =inp_Incentives!B38 -> C3-70% w/Networked Cont | N61: =inp_Incentives!D38 -> ≥201 | O61: =IF(OR(inp_Incentives!E38=0,inp_Incentives!E38=""),"N/A",CONCATENATE("≥",TEXT(inp_Incentives!E38,"0%"))) -> ≥70% | P61: =inp_Incentives!I38 -> 200
L63: Notes: * Hard-wired recessed can fixtures may be entered under Measure Series C: General Indoor/Outdoor. • Standard Fixtures are not required to be listed on the DLC Qualified Products List • Fixtures with Networked Controls must be listed on the DLC Networked Lighting Controls Qualified Products List and the model / product number must be included in the Notes Section of the lighting calculator.
L65: Measure Series D: LED High Bay
L67: Measure Series D is intended for interior LED High Bay fixtures.
M71: Measure | N71: Watt Baseline | O71: Required Wattage Reduction | P71: Incentive per fixture
M72: =inp_Incentives!B42 -> D1-40% | N72: =inp_Incentives!D42 -> 140-299 | O72: =IF(OR(inp_Incentives!E42=0,inp_Incentives!E42=""),"N/A",CONCATENATE("≥",TEXT(inp_Incentives!E42,"0%"))) -> ≥40% | P72: =inp_Incentives!I42 -> 80
M73: =inp_Incentives!B43 -> D1-40% w/ Networked Cont | N73: =inp_Incentives!D43 -> 140-299 | O73: =IF(OR(inp_Incentives!E43=0,inp_Incentives!E43=""),"N/A",CONCATENATE("≥",TEXT(inp_Incentives!E43,"0%"))) -> ≥40% | P73: =inp_Incentives!I43 -> 140
M74: =inp_Incentives!B44 -> D1-60% | N74: =inp_Incentives!D44 -> 140-299 | O74: =IF(OR(inp_Incentives!E44=0,inp_Incentives!E44=""),"N/A",CONCATENATE("≥",TEXT(inp_Incentives!E44,"0%"))) -> ≥60% | P74: =inp_Incentives!I44 -> 140
M75: =inp_Incentives!B45 -> D1-60% w/ Networked Cont | N75: =inp_Incentives!D45 -> 140-299 | O75: =IF(OR(inp_Incentives!E45=0,inp_Incentives!E45=""),"N/A",CONCATENATE("≥",TEXT(inp_Incentives!E45,"0%"))) -> ≥60% | P75: =inp_Incentives!I45 -> 200
M76: =inp_Incentives!B46 -> D1-70% | N76: =inp_Incentives!D46 -> 140-299 | O76: =IF(OR(inp_Incentives!E46=0,inp_Incentives!E46=""),"N/A",CONCATENATE("≥",TEXT(inp_Incentives!E46,"0%"))) -> ≥70% | P76: =inp_Incentives!I46 -> 200
M77: =inp_Incentives!B47 -> D1-70% w/ Networked Cont | N77: =inp_Incentives!D47 -> 140-299 | O77: =IF(OR(inp_Incentives!E47=0,inp_Incentives!E47=""),"N/A",CONCATENATE("≥",TEXT(inp_Incentives!E47,"0%"))) -> ≥70% | P77: =inp_Incentives!I47 -> 260
M78: =inp_Incentives!B48 -> D2-40% | N78: =inp_Incentives!D48 -> 300-399 | O78: =IF(OR(inp_Incentives!E48=0,inp_Incentives!E48=""),"N/A",CONCATENATE("≥",TEXT(inp_Incentives!E48,"0%"))) -> ≥40% | P78: =inp_Incentives!I48 -> 100
M79: =inp_Incentives!B49 -> D2-40% w/ Networked Cont | N79: =inp_Incentives!D49 -> 300-399 | O79: =IF(OR(inp_Incentives!E49=0,inp_Incentives!E49=""),"N/A",CONCATENATE("≥",TEXT(inp_Incentives!E49,"0%"))) -> ≥40% | P79: =inp_Incentives!I49 -> 160
M80: =inp_Incentives!B50 -> D2-60% | N80: =inp_Incentives!D50 -> 300-399 | O80: =IF(OR(inp_Incentives!E50=0,inp_Incentives!E50=""),"N/A",CONCATENATE("≥",TEXT(inp_Incentives!E50,"0%"))) -> ≥60% | P80: =inp_Incentives!I50 -> 180
M81: =inp_Incentives!B51 -> D2-60% w/ Networked Cont | N81: =inp_Incentives!D51 -> 300-399 | O81: =IF(OR(inp_Incentives!E51=0,inp_Incentives!E51=""),"N/A",CONCATENATE("≥",TEXT(inp_Incentives!E51,"0%"))) -> ≥60% | P81: =inp_Incentives!I51 -> 240
M82: =inp_Incentives!B52 -> D2-70% | N82: =inp_Incentives!D52 -> 300-399 | O82: =IF(OR(inp_Incentives!E52=0,inp_Incentives!E52=""),"N/A",CONCATENATE("≥",TEXT(inp_Incentives!E52,"0%"))) -> ≥70% | P82: =inp_Incentives!I52 -> 300
M83: =inp_Incentives!B53 -> D2-70% w/ Networked Cont | N83: =inp_Incentives!D53 -> 300-399 | O83: =IF(OR(inp_Incentives!E53=0,inp_Incentives!E53=""),"N/A",CONCATENATE("≥",TEXT(inp_Incentives!E53,"0%"))) -> ≥70% | P83: =inp_Incentives!I53 -> 360
M84: =inp_Incentives!B54 -> D3-40% | N84: =inp_Incentives!D54 -> 400-499 | O84: =IF(OR(inp_Incentives!E54=0,inp_Incentives!E54=""),"N/A",CONCATENATE("≥",TEXT(inp_Incentives!E54,"0%"))) -> ≥40% | P84: =inp_Incentives!I54 -> 140
M85: =inp_Incentives!B55 -> D3-40% w/ Networked Cont | N85: =inp_Incentives!D55 -> 400-499 | O85: =IF(OR(inp_Incentives!E55=0,inp_Incentives!E55=""),"N/A",CONCATENATE("≥",TEXT(inp_Incentives!E55,"0%"))) -> ≥40% | P85: =inp_Incentives!I55 -> 200
M86: =inp_Incentives!B56 -> D3-60% | N86: =inp_Incentives!D56 -> 400-499 | O86: =IF(OR(inp_Incentives!E56=0,inp_Incentives!E56=""),"N/A",CONCATENATE("≥",TEXT(inp_Incentives!E56,"0%"))) -> ≥60% | P86: =inp_Incentives!I56 -> 240
M87: =inp_Incentives!B57 -> D3-60% w/ Networked Cont | N87: =inp_Incentives!D57 -> 400-499 | O87: =IF(OR(inp_Incentives!E57=0,inp_Incentives!E57=""),"N/A",CONCATENATE("≥",TEXT(inp_Incentives!E57,"0%"))) -> ≥60% | P87: =inp_Incentives!I57 -> 300
M88: =inp_Incentives!B58 -> D3-70% | N88: =inp_Incentives!D58 -> 400-499 | O88: =IF(OR(inp_Incentives!E58=0,inp_Incentives!E58=""),"N/A",CONCATENATE("≥",TEXT(inp_Incentives!E58,"0%"))) -> ≥70% | P88: =inp_Incentives!I58 -> 360
M89: =inp_Incentives!B59 -> D3-70% w/ Networked Cont | N89: =inp_Incentives!D59 -> 400-499 | O89: =IF(OR(inp_Incentives!E59=0,inp_Incentives!E59=""),"N/A",CONCATENATE("≥",TEXT(inp_Incentives!E59,"0%"))) -> ≥70% | P89: =inp_Incentives!I59 -> 420
M90: =inp_Incentives!B60 -> D4-40% | N90: =inp_Incentives!D60 -> ≥500 | O90: =IF(OR(inp_Incentives!E60=0,inp_Incentives!E60=""),"N/A",CONCATENATE("≥",TEXT(inp_Incentives!E60,"0%"))) -> ≥40% | P90: =inp_Incentives!I60 -> 250
M91: =inp_Incentives!B61 -> D4-40% w/ Networked Cont | N91: =inp_Incentives!D61 -> ≥500 | O91: =IF(OR(inp_Incentives!E61=0,inp_Incentives!E61=""),"N/A",CONCATENATE("≥",TEXT(inp_Incentives!E61,"0%"))) -> ≥40% | P91: =inp_Incentives!I61 -> 350
M92: =inp_Incentives!B62 -> D4-60% | N92: =inp_Incentives!D62 -> ≥500 | O92: =IF(OR(inp_Incentives!E62=0,inp_Incentives!E62=""),"N/A",CONCATENATE("≥",TEXT(inp_Incentives!E62,"0%"))) -> ≥60% | P92: =inp_Incentives!I62 -> 400
M93: =inp_Incentives!B63 -> D4-60% w/ Networked Cont | N93: =inp_Incentives!D63 -> ≥500 | O93: =IF(OR(inp_Incentives!E63=0,inp_Incentives!E63=""),"N/A",CONCATENATE("≥",TEXT(inp_Incentives!E63,"0%"))) -> ≥60% | P93: =inp_Incentives!I63 -> 500
M94: =inp_Incentives!B64 -> D4-70% | N94: =inp_Incentives!D64 -> ≥500 | O94: =IF(OR(inp_Incentives!E64=0,inp_Incentives!E64=""),"N/A",CONCATENATE("≥",TEXT(inp_Incentives!E64,"0%"))) -> ≥70% | P94: =inp_Incentives!I64 -> 500
M95: =inp_Incentives!B65 -> D4-70% w/ Networked Cont | N95: =inp_Incentives!D65 -> ≥500 | O95: =IF(OR(inp_Incentives!E65=0,inp_Incentives!E65=""),"N/A",CONCATENATE("≥",TEXT(inp_Incentives!E65,"0%"))) -> ≥70% | P95: =inp_Incentives!I65 -> 600
L97: Notes: • LED Screw-in products replacing HID are not eligible for the High Bay category and must be entered in Measure Series F: HID Replacement Screw-in. • Standard Fixtures are not required to be listed on the DLC Qualified Products List • High Bay Fixtures with Networked Controls must be listed on the DLC’s Networked Lighting Controls qualified products list and the model / product number must be included in the Notes Section of the lighting calculator.
L100: Measure Series E: LED Exterior
L102: Measure Series E is intended for the following types of exterior LED applications: parking lot, parking garage, roadway, wall packs, bollards, floods, barn/yard, pole lamps, canopy, and high mast.
M106: Measure | N106: Watt Baseline | O106: Required Wattage Reduction | P106: Incentive per fixture
M107: =inp_Incentives!B68 -> E1-40% | N107: =inp_Incentives!D68 -> 30-99 | O107: =IF(OR(inp_Incentives!E68=0,inp_Incentives!E68=""),"N/A",CONCATENATE("≥",TEXT(inp_Incentives!E68,"0%"))) -> ≥40% | P107: =inp_Incentives!I68 -> 30
M108: =inp_Incentives!B69 -> E1-60% | N108: =inp_Incentives!D69 -> 30-99 | O108: =IF(OR(inp_Incentives!E69=0,inp_Incentives!E69=""),"N/A",CONCATENATE("≥",TEXT(inp_Incentives!E69,"0%"))) -> ≥60% | P108: =inp_Incentives!I69 -> 40
M109: =inp_Incentives!B70 -> E1-70% | N109: =inp_Incentives!D70 -> 30-99 | O109: =IF(OR(inp_Incentives!E70=0,inp_Incentives!E70=""),"N/A",CONCATENATE("≥",TEXT(inp_Incentives!E70,"0%"))) -> ≥70% | P109: =inp_Incentives!I70 -> 50
M110: =inp_Incentives!B71 -> E2-40% | N110: =inp_Incentives!D71 -> 100-199 | O110: =IF(OR(inp_Incentives!E71=0,inp_Incentives!E71=""),"N/A",CONCATENATE("≥",TEXT(inp_Incentives!E71,"0%"))) -> ≥40% | P110: =inp_Incentives!I71 -> 60
M111: =inp_Incentives!B72 -> E2-60% | N111: =inp_Incentives!D72 -> 100-199 | O111: =IF(OR(inp_Incentives!E72=0,inp_Incentives!E72=""),"N/A",CONCATENATE("≥",TEXT(inp_Incentives!E72,"0%"))) -> ≥60% | P111: =inp_Incentives!I72 -> 80
M112: =inp_Incentives!B73 -> E2-70% | N112: =inp_Incentives!D73 -> 100-199 | O112: =IF(OR(inp_Incentives!E73=0,inp_Incentives!E73=""),"N/A",CONCATENATE("≥",TEXT(inp_Incentives!E73,"0%"))) -> ≥70% | P112: =inp_Incentives!I73 -> 100
M113: =inp_Incentives!B74 -> E3-40% | N113: =inp_Incentives!D74 -> 200-299 | O113: =IF(OR(inp_Incentives!E74=0,inp_Incentives!E74=""),"N/A",CONCATENATE("≥",TEXT(inp_Incentives!E74,"0%"))) -> ≥40% | P113: =inp_Incentives!I74 -> 80
M114: =inp_Incentives!B75 -> E3-60% | N114: =inp_Incentives!D75 -> 200-299 | O114: =IF(OR(inp_Incentives!E75=0,inp_Incentives!E75=""),"N/A",CONCATENATE("≥",TEXT(inp_Incentives!E75,"0%"))) -> ≥60% | P114: =inp_Incentives!I75 -> 120
M115: =inp_Incentives!B76 -> E3-70% | N115: =inp_Incentives!D76 -> 200-299 | O115: =IF(OR(inp_Incentives!E76=0,inp_Incentives!E76=""),"N/A",CONCATENATE("≥",TEXT(inp_Incentives!E76,"0%"))) -> ≥70% | P115: =inp_Incentives!I76 -> 140
M116: =inp_Incentives!B77 -> E4-40% | N116: =inp_Incentives!D77 -> 300-399 | O116: =IF(OR(inp_Incentives!E77=0,inp_Incentives!E77=""),"N/A",CONCATENATE("≥",TEXT(inp_Incentives!E77,"0%"))) -> ≥40% | P116: =inp_Incentives!I77 -> 100
M117: =inp_Incentives!B78 -> E4-60% | N117: =inp_Incentives!D78 -> 300-399 | O117: =IF(OR(inp_Incentives!E78=0,inp_Incentives!E78=""),"N/A",CONCATENATE("≥",TEXT(inp_Incentives!E78,"0%"))) -> ≥60% | P117: =inp_Incentives!I78 -> 180
M118: =inp_Incentives!B79 -> E4-70% | N118: =inp_Incentives!D79 -> 300-399 | O118: =IF(OR(inp_Incentives!E79=0,inp_Incentives!E79=""),"N/A",CONCATENATE("≥",TEXT(inp_Incentives!E79,"0%"))) -> ≥70% | P118: =inp_Incentives!I79 -> 250
M119: =inp_Incentives!B80 -> E5-40% | N119: =inp_Incentives!D80 -> 400-499 | O119: =IF(OR(inp_Incentives!E80=0,inp_Incentives!E80=""),"N/A",CONCATENATE("≥",TEXT(inp_Incentives!E80,"0%"))) -> ≥40% | P119: =inp_Incentives!I80 -> 120
M120: =inp_Incentives!B81 -> E5-60% | N120: =inp_Incentives!D81 -> 400-499 | O120: =IF(OR(inp_Incentives!E81=0,inp_Incentives!E81=""),"N/A",CONCATENATE("≥",TEXT(inp_Incentives!E81,"0%"))) -> ≥60% | P120: =inp_Incentives!I81 -> 220
M121: =inp_Incentives!B82 -> E5-70% | N121: =inp_Incentives!D82 -> 400-499 | O121: =IF(OR(inp_Incentives!E82=0,inp_Incentives!E82=""),"N/A",CONCATENATE("≥",TEXT(inp_Incentives!E82,"0%"))) -> ≥70% | P121: =inp_Incentives!I82 -> 300
M122: =inp_Incentives!B83 -> E6-40% | N122: =inp_Incentives!D83 -> ≥500 | O122: =IF(OR(inp_Incentives!E83=0,inp_Incentives!E83=""),"N/A",CONCATENATE("≥",TEXT(inp_Incentives!E83,"0%"))) -> ≥40% | P122: =inp_Incentives!I83 -> 250
M123: =inp_Incentives!B84 -> E6-60% | N123: =inp_Incentives!D84 -> ≥500 | O123: =IF(OR(inp_Incentives!E84=0,inp_Incentives!E84=""),"N/A",CONCATENATE("≥",TEXT(inp_Incentives!E84,"0%"))) -> ≥60% | P123: =inp_Incentives!I84 -> 400
M124: =inp_Incentives!B85 -> E6-70% | N124: =inp_Incentives!D85 -> ≥500 | O124: =IF(OR(inp_Incentives!E85=0,inp_Incentives!E85=""),"N/A",CONCATENATE("≥",TEXT(inp_Incentives!E85,"0%"))) -> ≥70% | P124: =inp_Incentives!I85 -> 500
L126: Note: • Please refer to Measure Series F for screw-in LEDs replacing existing HID lamps. • General service fixtures such as vapor tights or surface mounted wraps installed in exterior applications should be entered using Measure Series C General Indoor / Outdoor.
L129: Measure Series F: HID Screw-in Replacement
L131: The HID Screw-in Replacement Measure Series covers all mogul and medium base LED products which are replacing existing HID lamps. This measure series shall be selected whenever a screw-in LED product is replacing an HID.
M133: Measure | N133: Watt Baseline | O133: Required Wattage Reduction | P133: Incentive per lamp
M134: =inp_Incentives!B88 -> F1-40% | N134: =inp_Incentives!D88 -> 40-200 | O134: =IF(OR(inp_Incentives!E88=0,inp_Incentives!E88=""),"N/A",CONCATENATE("≥",TEXT(inp_Incentives!E88,"0%"))) -> ≥40% | P134: =inp_Incentives!I88 -> 20
M135: =inp_Incentives!B89 -> F2-40% | N135: =inp_Incentives!D89 -> 201-300 | O135: =IF(OR(inp_Incentives!E89=0,inp_Incentives!E89=""),"N/A",CONCATENATE("≥",TEXT(inp_Incentives!E89,"0%"))) -> ≥40% | P135: =inp_Incentives!I89 -> 40
M136: =inp_Incentives!B90 -> F3-40% | N136: =inp_Incentives!D90 -> 301-400 | O136: =IF(OR(inp_Incentives!E90=0,inp_Incentives!E90=""),"N/A",CONCATENATE("≥",TEXT(inp_Incentives!E90,"0%"))) -> ≥40% | P136: =inp_Incentives!I90 -> 60
M137: =inp_Incentives!B91 -> F4-40% | N137: =inp_Incentives!D91 -> 401-999 | O137: =IF(OR(inp_Incentives!E91=0,inp_Incentives!E91=""),"N/A",CONCATENATE("≥",TEXT(inp_Incentives!E91,"0%"))) -> ≥40% | P137: =inp_Incentives!I91 -> 80
M138: =inp_Incentives!B92 -> F5-40% | N138: =inp_Incentives!D92 -> ≥1000 | O138: =IF(OR(inp_Incentives!E92=0,inp_Incentives!E92=""),"N/A",CONCATENATE("≥",TEXT(inp_Incentives!E92,"0%"))) -> ≥40% | P138: =inp_Incentives!I92 -> 150
L140: Note: • Measure Series F applies to both mogul and medium base screw-in products whenever they are replacing existing HID lamps.
L143: Measure Series G: LED Linear
L145: Measure Series G is intended for interior and exterior linear LED applications and includes refrigerator case lights and accent / cove lighting.
M147: Measure | N147: Watt Baseline | O147: Required Wattage Reduction | P147: Incentive per kWh saved
M148: =inp_Incentives!B95 -> G1 | N148: =inp_Incentives!D95 -> N/A | O148: =IF(OR(inp_Incentives!E95=0,inp_Incentives!E95="",inp_Incentives!E95="N/A"),"N/A",CONCATENATE("≥",TEXT(inp_Incentives!E95,"0%"))) -> N/A | P148: =inp_Incentives!I95 -> 0.17
L150: Notes: • Measure Series G is a calculated incentive and does not require pre-approval • Please refer to Measure Series J for sign applications
L153: Measure Series H: LED Exit Signs
L155: Measure Series H is intended for all LED exit signs.
M157: Measure | N157: Watt Baseline | O157: Required Wattage Reduction | P157: Incentive per installed fixture
M158: =inp_Incentives!B98 -> H-90% | N158: =inp_Incentives!D98 -> 10-100 | O158: =IF(OR(inp_Incentives!E98=0,inp_Incentives!E98=""),"N/A",CONCATENATE("≥",TEXT(inp_Incentives!E98,"0%"))) -> ≥90% | P158: =inp_Incentives!I98 -> 20
L160: Note: • When selecting LED exit signs the annual hours of operation are automatically set to 8,760
L181: Measure Series I: Signage
L183: Measure Series I is intended for all exterior sign applications.
M185: Measure | N185: Watt Baseline | O185: Required Wattage Reduction | P185: Incentive per kWh saved
M186: =inp_Incentives!B101 -> I1 | N186: =inp_Incentives!D101 -> N/A | O186: =IF(OR(inp_Incentives!E101=0,inp_Incentives!E101="",inp_Incentives!E101="N/A"),"N/A",CONCATENATE("≥",TEXT(inp_Incentives!E101,"0%"))) -> N/A | P186: =inp_Incentives!I101 -> 0.17
L188: Notes: • Measure Series I is a calculated incentive and does not require pre-approval
L190: Measure Series J: Decommissioning & Fixture Increase
L192: The lighting calculator automatically recognizes both decommissioning fixture increases and applies a calculated incentive. Decommissioning measures must achieve energy savings of at least 10% and merit an incentive of at least $5.00 to be eligible for an incentive payout. To qualify for a decommissioning, a fixture must be completely removed, not just disconnected. BPA does not require conduit leading up to the fixture to be removed.
M194: Measure | N194: Watt Baseline | O194: Required Wattage Reduction | P194: Incentive per kWh saved
M195: =inp_Incentives!B104 -> J1 | N195: =inp_Incentives!D104 -> N/A | O195: =IF(OR(inp_Incentives!E104=0,inp_Incentives!E104="",inp_Incentives!E104="N/A"),"N/A",CONCATENATE("≥",TEXT(inp_Incentives!E104,"0%"))) -> N/A | P195: =inp_Incentives!I104 -> 0.17
L197: Note: • Measure Series J is a calculated incentive and does not require pre-approval
L200: Measure Series K: Non-Standard Measures
L202: When lighting calculator users are not able to select the desired existing or proposed equipment from the available drop down options, or when otherwise prompted by the lighting calculator, users may enter the information as a non-standard measure to receive a calculated incentive. Non-standard measures must achieve a net energy savings of at least 10% and merit an incentive of at least $5.00 to be eligible for an incentive payout.
M204: Measure | N204: Watt Baseline | O204: Required Wattage Reduction | P204: Incentive per kWh saved
M205: =inp_Incentives!B107 -> K1 | N205: =inp_Incentives!D107 -> N/A | O205: =IF(OR(inp_Incentives!E107=0,inp_Incentives!E107="",inp_Incentives!E107="N/A"),"N/A",CONCATENATE("≥",TEXT(inp_Incentives!E107,"0%"))) -> N/A | P205: =inp_Incentives!I107 -> 0.17
L207: Required: Non-standard measures must be submitted to the utility for approval.
L209: Measure Series L: Controls
L211: Measure Series L covers Occupancy Sensors and Multi-Functional controls. Multi-Functional controls are defined as controls which can operate and are commissioned beyond a simple binary function.
M213: Measure | N213: Default Controls Savings Fraction (Can be manually adjusted) | P213: Wattage Range | Q213: Incentive per control
M214: =inp_Incentives!B110 & "-" & inp_Incentives!C110 -> L1-Occ. Sensor | N214: =inp_Incentives!E110 -> 0.25 | P214: =IF(OR(inp_Incentives!D110=0,inp_Incentives!D110="",inp_Incentives!D110="N/A"),"N/A",TEXT(inp_Incentives!D110,"0%")) -> 15-44 | Q214: =inp_Incentives!I110 -> 10
P215: =IF(OR(inp_Incentives!D111=0,inp_Incentives!D111="",inp_Incentives!D111="N/A"),"N/A",TEXT(inp_Incentives!D111,"0%")) -> 45-200 | Q215: =inp_Incentives!I111 -> 30
P216: =IF(OR(inp_Incentives!D112=0,inp_Incentives!D112="",inp_Incentives!D112="N/A"),"N/A",TEXT(inp_Incentives!D112,"0%")) -> ≥201 | Q216: =inp_Incentives!I112 -> 50
M217: =inp_Incentives!B113 & "-" & inp_Incentives!C113 -> L2-Multi Function | N217: =inp_Incentives!E113 -> 0.25 | P217: =IF(OR(inp_Incentives!D113=0,inp_Incentives!D113="",inp_Incentives!D113="N/A"),"N/A",TEXT(inp_Incentives!D113,"0%")) -> 15-44 | Q217: =inp_Incentives!I113 -> 15
P218: =IF(OR(inp_Incentives!D114=0,inp_Incentives!D114="",inp_Incentives!D114="N/A"),"N/A",TEXT(inp_Incentives!D114,"0%")) -> 45-200 | Q218: =inp_Incentives!I114 -> 40
P219: =IF(OR(inp_Incentives!D115=0,inp_Incentives!D115="",inp_Incentives!D115="N/A"),"N/A",TEXT(inp_Incentives!D115,"0%")) -> ≥201 | Q219: =inp_Incentives!I115 -> 50
M220: =inp_Incentives!B116 & "-" & inp_Incentives!C116 -> L3-Other | N220: =inp_Incentives!E116 -> 0.25 | P220: =IF(OR(inp_Incentives!D116=0,inp_Incentives!D116="",inp_Incentives!D116="N/A"),"N/A",TEXT(inp_Incentives!D116,"0%")) -> 15-44 | Q220: =inp_Incentives!I116 -> 10
P221: =IF(OR(inp_Incentives!D117=0,inp_Incentives!D117="",inp_Incentives!D117="N/A"),"N/A",TEXT(inp_Incentives!D117,"0%")) -> 45-200 | Q221: =inp_Incentives!I117 -> 30
P222: =IF(OR(inp_Incentives!D118=0,inp_Incentives!D118="",inp_Incentives!D118="N/A"),"N/A",TEXT(inp_Incentives!D118,"0%")) -> ≥201 | Q222: =inp_Incentives!I118 -> 40
L224: Note: • Controls in Measure Series L receive an automatic 25% reduction in operating hours. Users may adjust this number with utility consent.
L227: New Construction
M231: Measure | N231: Watt Baseline | O231: Required Wattage Reduction | P231: Incentive per kWh saved
M232: =inp_Incentives!B122 -> NC | N232: =inp_Incentives!D122 -> N/A | O232: =IF(OR(inp_Incentives!E122=0,inp_Incentives!E122="",inp_Incentives!E122="N/A"),"N/A",CONCATENATE("≥",TEXT(inp_Incentives!E122,"0%"))) -> N/A | P232: =inp_Incentives!I122 -> 0.13
L240: Required: New construction projects must achieve an energy savings of at least 20% to receive an incentive.

Sheet prntrdy_Form3

Sheet prntrdy_Form4
L4: =IF(inp_UtilityInfo!B3="","Utility Project Report*",CONCATENATE(inp_UtilityInfo!B3," Project Report")) -> Tacoma Power Project Report
L6: Customer / Mailing Information: | O6: Project / Site Information:
L8: Project Name: | M8: =IF(user_Project!Y3="","[Enter in data entry form]",user_Project!Y3) -> Project Name | O8: Project/Site Address: | P8: =IF(user_Project!AA3="","[Enter in data entry form]",CONCATENATE(user_Project!AA3)) -> Project Address
L10: Customer Contact: | M10: =IF(user_Project!N3="","[Enter in data entry form]",user_Project!N3) -> Person Signing Contract
L12: Mailing Address: | M12: =IF(user_Project!U3="","[Enter in data entry form]",CONCATENATE(user_Project!U3)) -> Company Address | O12: City/State/Zip Code: | P12: =IF(user_Project!AB3="","[Enter in data entry form]",CONCATENATE(user_Project!AB3,", ",user_Project!AC3," ",user_Project!AD3)) -> Project Address, WA 98402
L14: City/State/Zip Code: | M14: =IF(user_Project!V3="","[Enter in data entry form]",CONCATENATE(user_Project!V3,", ",user_Project!W3," ",user_Project!X3)) -> Tacoma, WA 98402 | O14: Trade Ally: | P14: =user_TradeAlly!L5 -> Person Submitting Project
L16: Phone: | M16: =IF(user_Project!P3="","[Enter in data entry form]",IF(user_Project!R3="",CONCATENATE(user_Project!O3,"-",user_Project!P3,"-",user_Project!Q3),CONCATENATE(user_Project!O3,"-",user_Project!P3,"-",user_Project!Q3," Ext. ",user_Project!R3))) -> 253-123-4567
L18: Utility Project Information: | N18: Invoice Summary
L20: Utility Contact: | M20: =IF(inp_UtilityInfo!G3="","[Enter in data entry form]",inp_UtilityInfo!G3) -> Kerry Cameron | N20: Willingness to Pay: | P20: 0
L22: Sector: | M22: =IF(inp_UtilityReview!B3="","[Enter in data entry form]",inp_UtilityReview!B3) -> [Enter in data entry form] | N22: Utility Willingness to Pay: | P22: 0
L24: Building Type: | M24: =IF(user_Project!AE3="","[Enter in data entry form]",user_Project!AE3) -> Assembly | N24: Customer Incentive: | P24: 0
L26: Unique Site ID: | M26: =IF(inp_UtilityReview!A3="","[Enter in data entry form]",inp_UtilityReview!A3) -> [Enter in data entry form] | N26: Incentive % of Project Cost: | P26: 0
L28: Completion Date: | M28: =IF(inp_UtilityReview!B3="","[Enter in data entry form]",CONCATENATE(inp_UtilityReview!C3," ",inp_UtilityReview!D3,", ",inp_UtilityReview!E3)) -> [Enter in data entry form] | N28: Benefit/Cost Ratio: | P28: 0.2515153182
L30: Total Project Cost*: | M30: =IF(inp_UtilityReview!O3<>"",inp_UtilityReview!O3,IF(user_Project!AJ3<>"",user_Project!AJ3,"[Enter in data entry form]")) -> 1 | N30: Project Level Incentive Cost per kWh | P30: 0
L32: Project Type: | M32: =IF(user_Project!AF3="","[Enter in data entry form]",user_Project!AF3) -> Retrofit
L33: Funding Source: | M33: =IF(fld_UtilityReview_FundingSource="","[Enter in data entry form]",fld_UtilityReview_FundingSource) -> [Enter in data entry form]
L34: * For Retrofit projects cost equal total project cost. For New Construction projects cost equal estimated incremental cost.
L36: Project Savings Information:
L38: Unadjusted Site Savings: | M38: 0 | N38: kWh | O38: Note: This is a kWh savings calculation without adjusting for HVAC, codes & standards, or busbar.
L40: Site Savings adjusted for HVAC interaction: | M40: 0 | N40: kWh | O40: Note: Adjusts kWh savings for Heating and Cooling interactions (This is the kWh savings figure provided on the customer proposal form.)
L44: Site Savings Adjusted for Federal Standards: | M44: 0 | N44: kWh | O44: Note: For more informations see Formulas and Adjustments form
L48: Busbar Savings: (Savings X 1.07478) | M48: 0 | N48: kWh | O48: Note: This is the final savings number.
L51: Project Measure Detail (Retrofit Projects Only):
L52: Measure | M52: Unadjusted Site Savings | O52: Savings Reported
L53: Decommissioning | M53: 0 | O53: 0
L55: Equipment | M55: 0 | O55: 0
L57: Controls | M57: 0 | O57: 0
L59: Total | M59: =IF(AND(M53="",M55="",M57=""),"",SUM(M53:N57)) -> 0 | O59: =IF(AND(O53="",O55="",O57=""),"",SUM(O53:O57)) -> 0
L62: User-Defined Fields
L63: =IF(fld1_Title="","",fld1_Title) -> 
L64: =IF(fld1_Content="","",fld1_Content) -> 
L66: =IF(fld2_Title="","",fld2_Title) -> 
L67: =IF(fld2_Content="","",fld2_Content) -> 

Sheet prntrdy_Form5
N3: Non-Residential Lighting LED Quick Reference Guide
L4: Trade Allies are encouraged to check with utilities for applicable LED requirements
L6: LEDs by Application | O6: Minimum Required Wattage Reduction for Deemed Measures | P6: Qualified Product List Recommended | Q6: Measure
L7: Screw-in/Small LED Fixtures Includes: Reflectors, PAR, BR, A-lamps, MR-16s and Small LED Fixtures including: recessed cans (retrofit included) and track fixtures | O7: >50% minimum Measure F1 requires a 20% wattage reduction | P7: Yes | Q7: F1 – F5
L8: LED Tubes & Troffers Includes all sizes of LED tubes and troffers | O8: >40% minimum | Q8: G1- G3
L9: Exterior General Area Includes: Parking Lot, Street, Wall Packs, Bollards, Floods, Barn/Yard, Pole Lamps, and Canopy. | O9: >40% minimum | Q9: H1- H6
L11: High Bay | O11: >40% minimum | Q11: I1 – I4
L13: Parking Garage | O13: >40% minimum | Q13: J1 – J5
L14: Loading Dock | O14: >70% minimum | Q14: K
L15: Linear LED Applications Includes: refrigerator case lights and accent / cove lighting. | O15: N/A | Q15: M
L16: Exit Signs | O16: N/A | P16: No | Q16: L
M18: A Qualified Product List (QPL) is a third-party-compiled list that validates a product’s lab test results (i.e. LM-79). Web links to these QPLs can be accessed on the "Links" tab of the lighting calculator input form.
M20: Medium base screw in lighting fixtures and lamps | P20: - Energy Star
M21: Lighting fixtures / luminares | P21: - DLC (Design Lights Consortium)
M22: Miscellaneous lighting fixtures and lamps | P22: - LDL (Lighting Design Lab)

Sheet prntrdy_Form6

Sheet prntrdy_Form7
L4: Lighting Calculator Methods, Formulas, & Adjustments
L5: This form outlines the methods and formulas used in the lighting calculator to determine cost effectiveness and realized energy savings values. The wording and equations are simplified in order to make them more understandable.
L6: B/C ratio: Equals the total benefits over the life of the project divided by the installation costs. Generally speaking, a project‘s benefits should exceed the costs. Since energy efficiency projects are cost shared between the end user and Northwest utilities, a B/C ratio less than 1.0 is reasonable. Lighting projects with B/C ratios above 0.5 are eligible for incentives.
L7: Background: The Northwest Power Planning and Conservation Act requires Northwest utilities to take B/C ratio into account when determining cost effectiveness. A basic version of the equation is shown below:
L8: TRC B/C ratio = PV_Benefits / PV_Costs , where
L9: • PV_Benefits = PresentValue_KWH_TRC + PresentValue_KW_TRC + PresentValue_OM_TRC - PresentValue_THERMS_TRC Where
L10: • PresentValue_KWH_TRC = present value avoided electricity cost of each annual kWh savings. These values are provided by the Northwest Power and Conservation Council as a function of measure life.
L11: • $1.05/kWh for retrofit (assumes 12 year measure life) • $1.45/kWh for new construction (assumes 15 year measure life)
L12: • PresentValue_KW_TRC = present value avoided capacity cost of each kW reduction.
L13: • These values are currently set to zero.
L14: • PresentValue_OM_TRC = present value benefit of avoided/reduced O&M costs.
L15: • For the TRC calculation, annual O&M savings are assumed to be 3% of the project cost (incremental project cost for new construction projects). This number can be manually overridden by the utility. • 12 year measure life for retrofit, 15 year measure life for new construction • 6% annual discount rate
L16: • PresentValue_THERMS_TRC = present value natural gas cost of each annual therm increase.
L17: • Annual value of $0.80/therm • 12 year measure life for retrofit, 15 year measure life for new construction • 6% annual discount rate
L18: • PV_Costs = the project capital cost (retrofit) or incremental cost (new construction).
L19: • When a project cost has been specified by the utility in the “Utility Review” userform, this cost is used, regardless of what the Trade Ally has entered as the project cost. • When a project cost has not been specified by the utility in the “Utility Review” userform and the Trade Ally has specified a project cost, the trade ally cost is used here. • When neither the Utility nor the Trade Ally has specified a project cost, the BC ratio is not computed and is set to zero.
L20: Non energy benefits per year include demand savings and maintenance savings. Demand savings assumes the savings accrue for each month of the year. Maintenance savings is a flat 3% of the installed cost per year. Demand savings = ( watts before – watts after ) x $/kW x 12 months 1000
L21: HVAC Interaction Adjustment: This adjustment adds or subtracts any changes in heating and cooling system electrical usage. When energy usage of a lighting system is removed from an interior space, the heating system typically has to work more and the cooling system works less. The resulting savings is considered to be the realized “site savings”. This is the savings value reported to the building owner.
L22: Background: The Northwest Regional Technical Forum (RTF) encourages utilities to adjust energy savings values for heating, ventilating, & air conditioning (HVAC) interaction. Adjusting for HVAC interactions with the lighting system produces more accurate reported savings. Also, a more accurate savings value provides more accurate payback and rate of return (RoR) estimates to the end user. A basic version of the equation is shown below:
L23: kWh savings adjusted for HVAC = simple kWh savings x HVAC interaction factor (see HVAC Interaction Factors table)
L24: Lighting Calculator Methods, Formulas, & Adjustments
L25: Busbar Savings Adjustment: This adjustment adds in the grid’s transmission and distribution (T&D) losses. BPA has a good idea of how much the overall T&D system energy losses are per year. So, these losses can be taken into account.
L26: Background: The energy saved at the site of the project is only part of what is saved. The busbar adjustment tries to take into account all of the savings to the grid up to the generation substation busbar. A basic version of the equation is shown below:
L27: Busbar savings adjustment = site kWh savings adjusted for HVAC x 1.07478
L31: Occupancy Sensor and Timer control savings: Savings from occupancy sensors and timers are calculated the same way. The unadjusted proposed kWh usage is multiplied by the percentage of time the lights are on. Then, as with all measures, the proposed kWh usage is subtracted from the existing usage to show energy savings.
L32: Background: Occupancy sensor controls turn lights off when nobody is in a space. Simple wall mounted timers turn lights on for a specified period of time. For exterior areas, photocells with timers are considered Occ. Sensor. A basic version of the equation is shown below:
L33: Proposed kWh = [existing kWh] x [(1 – ( % reduction in hours )] 100
L34: Occ. Sensor control savings: The unadjusted proposed kWh usage is adjusted for Occ. Sensor controls (see formula below). Then, as with all measures, the proposed kWh usage is subtracted from the existing usage to show energy savings.
L35: Background: Typically, Occ. Sensor controls reduce the fixture wattage for a specified percentage of time. For instance; a 100 watt fixture is dropped to 50 watts for 50% of the evening. A basic version of the equation is shown below:
L36: Proposed kWh = [existing kWh] x [1 – ( % Watt reduction x % hours reduction )] 100 100
L37: Baseline for affected Incandescent Lamps
L49: Table 2: EISA standard maximum allowable wattage baselines for incandescent lamps
M50: Today’s A-lamp | P50: After the Standard | T50: Effective Date
M51: 100 Watt | P51: < 72 Watts | T51: 2012-01-01
M52: 75 Watt | P52: < 53 Watts | T52: 2013-01-01
M53: 60 Watt | P53: < 43 Watts | T53: 2014-01-01
M54: 40 Watt | P54: < 29 Watts | T54: 2014-01-01
M83: Links to State Energy Code Webpages:
M84: State of Oregon Energy Code:
M85: http://www.bcd.oregon.gov/programs/energy.html
M86: State of Washington Energy Code:
M87: https://fortress.wa.gov/ga/apps/sbcc/default.aspx
M88: State of Montana Energy Code:
M89: http://www.deq.mt.gov/Energy/conservation/homes/NewHomes/BuildingCodes.mcpx
M90: State of Idaho Energy Code:
M91: http://www.energy.idaho.gov/

Sheet prntrdy_Form8
L3: BPA Lighting Calculator 5.X2 Rules & Requirements
L4: Area of Calculator | M4: Calculator Inputs / Outputs / Rules / Assumptions | N4: Collected by Lighting Calculator 5.X1 | O4: Required by Lighting Calculator 5.X2
L5: Project Input | M5: Utility Customize This is where the utility customizes unique functions and caps | N5: Utility Name / Utility ID | O5: Required
N6: Unique Utility Name | O6: Optional
N7: Utility Calculator Name
N8: Utility Logo
N9: Utility Website
N10: Utility Contact Information (name, phone, email)
N11: Utility Rates (kWh & kW)
M12: Utility Review Information input by utility representative – usually when a project has been completed and received utility oversight. | N12: Unique Site ID | O12: Required
N13: Project Sector
N14: Completion Date
N15: Funding Source
N16: Final project cost
N17: Pass through / Utility Pass through
N18: Federal Project Status?
N19: Project approval status | O19: Optional
N20: Manually add O&M
M21: Basic Project Data / Customer Information | N21: Baseline Eligibility Checklist | O21: Required
N22: Company Name
N23: Project Address / Site Address (street, state, zip)
N24: Utility Rate class
N25: Project Name
N26: Building Type
N27: Estimated Project Cost
N28: Customer / Mailing Address (name, phone)
N29: Customer Email | O29: Optional
M30: Trade Ally Information | N30: Trade Ally name and company | O30: Optional
M31: Spaces | N31: Primary Building Operating Schedule with heating and cooling type and weeks per year | O31: Required
N32: Unique Building Spaces Operating Schedule with heating and cooling type and weeks per year
M33: Measures | N33: Select relevant space (provides HOU) | O33: Required
N34: Existing equipment
N35: Proposed equipment
N36: Proposed controls
L38: Project Rules & Caps | M38: Project Level Rules & Caps | N38: New construction projects must achieve energy savings of at least 20% | O38: Required
N39: Retrofit projects must achieve energy savings of at least 25%
N40: Project BC ratio must be greater than 0.5
N41: Incentive cap max 70% (100% in Promotional mode)
N42: max $ / kWh = $0.50
M44: Measure Level Rules | N44: All calculated measures must save at least 10% and must generate an incentive of at least $5 to be eligible for an incentive
L45: Controls Assumptions | M45: Controls Assumptions For all control types in all space types (except high bay and general indoor/outdoor fixtures w/networked lighting controls) | N45: 25% default (but manually adjustable) Occ. Sensor, Multi-Functional, Other | O45: Optional
M51: High Bay and General Indoor/Outdoor w/Networked Lighting Controls | N51: Applies a default 40% reduction in hours that cannot be adjusted | O51: Required
L53: Baselines & Planning | M53: Preconditions Baseline: | N53: Applies to everything except medium-base incandescent A-lamps. | O53: Required
M54: Baselines other than Precondition Codes and Standards | N54: EISA - effects 100, 75, 60, & 40 watt standard incandescent lamps | O54: Required / See Formulas & Reference Tables PRF for specifics
N58: HVAC Interaction is applied to all projects as applicable and is determined by building type and selected HVAC method | O58: Required
N59: New construction projects follow local codes and standards as applicable | O59: Required

Sheet Sheet2
A1: THIS IS THE STRUCTURE OF SAVINGS REPORTING IN THE POWER COUNCIL LIGHTING PROTOCOL CALCULATOR
O2: * Note: lighting power allowances may be expressed in different units (e.g., watts per lineal feet) for exterior lighting | W2: Fixture Qtyee | AB2: Total kWbase | AC2: Total kWee | AG2: Total kWhbase | AH2: Total kWhee | AK2: Total kWh Svgs | AL2: Total kW Reduction
W3: 5 | AB3: 0.475 | AC3: 0.265 | AG3: 1368 | AH3: 526.608 | AK3: 841.392 | AL3: 0.21
H4: Baseline Determination | V4: As-Built (Efficient Condition) | AB4: Energy Use | AI4: Energy Savings | AM4: LPD Comparison
F5: Operating Hours | H5: Pre-Retrofit Lighting Fixtures | U5: Baseline LPD | V5: Fixture Description | Y5: Controls
A6: ID# | B6: Building Type (for op hrs, HVAC IE effects) | C6: Space Type (for controls) | D6: Area | E6: HVAC Type | F6: Input | G6: Default | H6: Lighting Fixture Category | I6: Lookup1 | J6: Lighting Fixture Sub-Category | K6: Lookup2 | L6: Lamp Wattage | M6: Concat#1 | N6: Lookup3 | O6: Lamp Quantity | P6: Concat#2 | Q6: Fixture Quantity | R6: Fixture Wattage | S6: LPD calc (W/Sq Ft) | T6: Code LPA* (W/ Sq Ft) | U6: LPD (W/Sq Ft) | V6: Fixture Lamp & Ballast Descriptionee | W6: Quantityee | X6: Wattageee | Y6: Control Typeee | Z6: Op Hr Reduction (OHR) | AA6: Operating Hours (OHc) | AB6: kW baseline | AC6: kW efficient | AD6: Op Hrs baseline | AE6: Op Hrs efficient | AF6: HVACf | AG6: kWh baseline | AH6: kWh efficient | AI6: Capacity Reduction Savings (kWh) | AJ6: Controls Savings (kWh) | AK6: Total Savings (kWh) | AL6: Total kW Reduction | AM6: LPA (W/sf) baseline | AN6: LPD (W/sf) ee
A7: 1 | B7: Warehouse | C7: Warehouses | D7: 500 | E7: Gas, Oil, or Biomass w/o Cooling | G7: 3000 | H7: T12 4ft | I7: 9 | J7: Slimline Lamp, w/Magnetic Ballast | K7: 152 | L7: 39 | M7: ExistingFixtures-T12 4ft -Slimline Lamp, w/Magnetic Ballast-39 | N7: 1234 | O7: 2 | P7: ExistingFixtures-T12 4ft -Slimline Lamp, w/Magnetic Ballast-39-2 | Q7: 5 | R7: 95 | S7: 0.95 | T7: 1 | U7: 0.95 | V7: 2L 4' HPT8 | W7: 5 | X7: 53 | Y7: Occupancy Sensor | Z7: 0.31 | AA7: 2070 | AB7: 0.475 | AC7: 0.265 | AD7: 3000 | AE7: 2070 | AF7: 0.96 | AG7: 1368 | AH7: 526.608 | AI7: 604.8 | AJ7: 236.592 | AK7: 841.392 | AL7: 0.21 | AM7: 0.95 | AN7: 0.53
A10: RecordNumber | B10: Status | C10: SpaceForTable | D10: AnnualHoursForTable | E10: RecordSpaceStatusForTable | F10: ExistingForTable | G10: ProposedForTable | H10: ControlsForTable | I10: SavingsHeadersForTable | J10: KWHForTable | K10: WattsPerFixtureForTable | L10: IncentivesForTable | M10: NotesForTable | N10: BLANK COLUMN | O10: KWForTable | P10: Space | Q10: ExistingQuantity | R10: ExistingClass | S10: ExistingType | T10: ExistingSubtype | U10: ExistingLampWattage | V10: ExistingLampsPerFixture | W10: ProposedMeasureType | X10: ProposedQuantity | Y10: ProposedClass | Z10: ProposedType | AA10: ProposedSubtype | AB10: ProposedLampWattage | AC10: ProposedLampsPerFixture | AD10: ProposedLampModelNumber | AE10: ProposedBallastModelNumber | AF10: NoControls | AG10: ControlsQuantity | AH10: ControlsClass | AI10: ControlsPercentReduction | AJ10: Notes | AK10: NumberOfErrors | AL10: ExistingMMLRow | AM10: ProposedMMLRow | AN10: ExistingBallastFactor | AO10: ProposedBallastFactor | AP10: ExistingFixtureWattage | AQ10: ProposedFixtureWattage | AR10: ArithFixtureWattage | AS10: ElectricInteraction | AT10: GasInteraction | AU10: ExistingFixtureKWHBase | AV10: ArithExistingFixtureKWHBase | AW10: ProposedFixtureKWHBase | AX10: DecommissionedFixtures | AY10: PrecondDecomKWHSavings | AZ10: ArithDecomKWHSavings | BA10: PrecondEquipKWHSavings | BB10: ArithEquipKWHSavings | BC10: PrecondControlsKWHSavings | BD10: ArithControlsKWHSavings | BE10: PrecondDecomAndEquipKWHSavings | BF10: ArithDecomAndEquipKWHSavings | BG10: PrecondTotalKWHSavings | BH10: ArithTotalKWHSavings | BI10: PrecondEquipAndControlsKWHSavings | BJ10: ArithEquipAndControlsKWHSavings | BK10: PrecondEquipAndControlsPercentSavings | BL10: ArithEquipAndControlsPercentSavings | BM10: PrecondMeasurePercentSavings | BN10: ArithMeasurePercentSavings | BO10: PrecondMeasureKW | BP10: ArithMeasureKW | BQ10: ProposedMeasureKW | BR10: PrecondKWSavings | BS10: ArithKWSavings | BT10: ExistingFixtureKWHwithHVAC | BU10: ArithExistingFixtureKWHwithHVAC | BV10: ProposedFixtureKWHwithHVAC | BW10: PrecondDecomKWHSavingswithHVAC | BX10: ArithDecomKWHSavingswithHVAC | BY10: PrecondEquipKWHSavingswithHVAC | BZ10: ArithEquipKWHSavingswithHVAC | CA10: PrecondEquipAndControlsKWHSavingswithHVAC | CB10: ArithEquipAndControlsKWHSavingswithHVAC | CC10: PrecondControlsKWHSavingswithHVAC | CD10: ArithControlsKWHSavingswithHVAC | CE10: PrecondDecomAndEquipKWHSavingswithHVAC | CF10: ArithDecomAndEquipKWHSavingswithHVAC | CG10: PrecondTotalKWHSavingswithHVAC | CH10: ArithTotalKWHSavingswithHVAC | CI10: ExistingFixtureKWHwithHVAC_Busbar | CJ10: ArithExistingFixtureKWHwithHVAC_Busbar | CK10: ProposedFixtureKWHwithHVAC_Busbar | CL10: PrecondDecomKWHSavingswithHVAC_Busbar | CM10: ArithDecomKWHSavingswithHVAC_Busbar | CN10: PrecondEquipKWHSavingswithHVAC_Busbar | CO10: ArithEquipKWHSavingswithHVAC_Busbar | CP10: PrecondEquipAndControlsKWHSavingswithHVAC_Busbar | CQ10: ArithEquipAndControlsKWHSavingswithHVAC_Busbar | CR10: PrecondControlsKWHSavingswithHVAC_Busbar | CS10: ArithControlsKWHSavingswithHVAC_Busbar | CT10: PrecondDecomAndEquipKWHSavingswithHVAC_Busbar | CU10: ArithDecomAndEquipKWHSavingswithHVAC_Busbar | CV10: PrecondTotalKWHSavingswithHVAC_Busbar | CW10: ArithTotalKWHSavingswithHVAC_Busbar | CX10: PrecondTotalMeasureKWHwithHVAC_Busbar | CY10: ArithTotalMeasureKWHwithHVAC_Busbar | CZ10: ProposedTotalMeasureKWHwithHVAC_Busbar | DA10: Therms_Increase_Precond | DB10: Therms_Increase_Arith | DC10: DecomIncentiveRates | DD10: UtilityDecomIncentiveRate | DE10: BPADecomIncentiveRate | DF10: NonstandardIncentiveRates | DG10: UtilityNonstandardIncentiveRate | DH10: BPANonstandardIncentiveRate | DI10: ControlsIncentiveQuantity | DJ10: ControlsIncentiveUtility | DK10: ControlsIncentiveBPA | DL10: ControlsText | DM10: ControlsIncentiveVector | DN10: ControlsIncentive | DO10: BPAControlsIncentiveRate | DP10: UtilityControlsIncentiveRate | DQ10: DecomIncentiveQuantity | DR10: DecomIncentiveUtility | DS10: DecomIncentiveBPA | DT10: EquipmentIncentiveQuantity | DU10: EquipmentIncentiveUtility | DV10: EquipmentIncentiveBPA | DW10: MeasureText | DX10: DecommissioningAndEquipmentResultsText | DY10: ControlsResultsText | DZ10: PrecondTotalMeasureKWH | EA10: ArithTotalMeasureKWH | EB10: ProposedTotalMeasureKWH | EC10: PrecondTotalMeasureKWHwithHVAC | ED10: ArithTotalMeasureKWHwithHVAC | EE10: ProposedTotalMeasureKWHwithHVAC | EF10: PrecondKWPercentSavings | EG10: ArithKWPercentSavings | EH10: TotalUtilityIncentive | EI10: TotalBPAIncentive | EJ10: NonStandardStatus | EK10: StatusNotes | EL10: ControlkWhSavings | EM10: UtilityEquipmentIncentiveRate | EN10: DecomAndEquipmentIncentiveName | EO10: DecomAndEquipmentIncentiveDescription | EP10: ControlsIncentiveName | EQ10: ControlsIncentiveDescription | ER10: ApprovedNonStandardUserFieldConcat | ES10: SpaceType | ET10: SIZE

Sheet ProjectLevelResults
A1: ProjectCost | B1: 89765
A2: KWH_Site_Decom_Precond_NoHVAC | B2: 0
A3: KWH_Site_Equipment_Precond_NoHVAC | B3: 30695.04
A4: KWH_Site_Controls_Precond_NoHVAC | B4: 1681.92
A5: KWH_Site_Total_Precond_NoHVAC | B5: 32376.96
A6: KWH_Site_Decom_Precond | B6: 0
A7: KWH_Site_Equipment_Precond | B7: 30695.04
A8: KWH_Site_Controls_Precond | B8: 1681.92
A9: KWH_Site_DecomAndEquipment_Precond | B9: 30695.04
A10: KWH_Site_Total_Precond | B10: 32376.96
A11: KWH_Busbar_Total_Precond | B11: 35309.0175
A12: KWH_Site_Baseline_Precond | B12: 37632.96
A13: PercentSavings_Precond | B13: 0.8603351955
A14: KW_Site_Baseline_Precond | B14: 8.592
A15: KW_Site_Baseline_Arith | B15: 8.388
A16: KW_Site_Reduction_Precond | B16: 7.008
A17: KW_Site_Reduction_Arith | B17: 6.804
A18: KW_Site_Total_Precond | B18: 7.008
A19: KW_Busbar_Total_Precond | B19: 7.64264448
A20: KWH_Site_Decom_Arith | B20: 0
A21: KWH_Site_Equipment_Arith | B21: 29801.52
A22: KWH_Site_Controls_Arith | B22: 1681.92
A23: KWH_Site_DecomAndEquipment_Arith | B23: 29801.52
A24: KWH_Site_Total_Arith | B24: 31483.44
A25: KWH_Busbar_Total_Arith | B25: 34334.58033
A26: KWH_Site_Baseline_Arith | B26: 36739.44
A27: PercentSavings_Arith | B27: 0.8569384835
A28: KW_Site_Total_Arith | B28: 6.804
A29: KW_Busbar_Total_Arith | B29: 7.42017024
A30: KW_PercentSavings_Precond | B30: 0.8156424581
A31: KW_PercentSavings_Arith | B31: 0.8111587983
A32: Incentive_DecomAndEquipment_Utility | B32: 1080
A33: Incentive_Controls_Utility | B33: 280
A34: Incentive_Total_Uncapped_Utility | B34: 1360
A35: Incentive_Total_Capped_Utility | B35: 1360
A36: Incentive_DecomAndEquipment_BPA | B36: 1080
A37: Incentive_Controls_BPA | B37: 280
A38: Incentive_Total_Uncapped_BPA | B38: 1360
A39: Incentive_Total_Capped_BPA | B39: 1360
A40: Incentive_DollarsPerKWH_Uncapped_BPA | B40: 0.03961021184
A41: Incentive_DollarsPerKWH_Uncapped_Utility | B41: 0.03961021184
A42: Incentive_DollarsPerKWH_Capped_BPA | B42: 0.03851707287
A43: Incentive_DollarsPerKWH_Capped_Utility | B43: 0.03851707287
A44: Incentive_Percentage_Uncapped_BPA | B44: 0.0151506712
A45: Incentive_Percentage_Uncapped_Utility | B45: 0.0151506712
A46: Incentive_Percentage_Capped_BPA | B46: 0.0151506712
A47: Incentive_Percentage_Capped_Utility | B47: 0.0151506712
A48: ProjectLevel_BCratio | B48: 0.6871466964
A49: Therms_Increase_Precond | B49: 0
A50: Therms_Increase_Arith | B50: 0
A51: AnnualValue_KWH_Customer | B51: 1942.6176
A52: AnnualValue_KW_Customer | B52: 504.576
A53: AnnualValue_THERMS_Customer | B53: 0
A54: AnnualValue_THERMS_Customer
A55: AnnualValue_OandM_Customer | B55: 2692.95
A56: AnnualBenefit_Customer | B56: 5140.1436
A57: LifetimeBenefit_Customer | B57: 61681.7232
A58: Flag_MissingActualCost | B58: TRUE
A59: Flag_MissingActualAndEstimatedCost | B59: FALSE
A60: Flag_ExceedsPercentageCap_Utility | B60: FALSE
A61: Flag_ExceedsPercentageCap_BPA | B61: FALSE
A62: Flag_ExceedsDollarPerKWHCap_Utility | B62: FALSE
A63: Flag_ExceedsDollarPerKWHCap_BPA | B63: FALSE
A64: Flag_BCRatioTooLow | B64: FALSE
A65: Flag_ProjectSavingsTooLow | B65: FALSE
A66: WarningMessage | B66: This project is pending utility approval. All figures should be considered estimates.
A67: TRC_BC | B67: 0.6531340933
A68: WarningMessageForItemized | B68: This project is pending utility approval. All figures should be considered estimates.
A69: UtilityIncentiveForItemizedForm | B69: 1360

Sheet IncentivesSummary
A1: Name | B1: Description | C1: Quantity | D1: Units | E1: Incentive per Unit | F1: Total Incentive
A2: B1-30% | B2: LED Tubes | C2: 28 | D2: lamp(s) | E2: $2 | F2: 56

Sheet zzChange_LogOld
A1: OLD CHANGE LOG. DO NOT USE
A2: Date | B2: Who | C2: Action
A3: 2017-04-17 | B3: gjo8227 | C3: Update Static_Parameters tab. Item 23. Cells B3, B6, A14
A4: 2017-04-17 | B4: gjo8227 | C4: Removed "Other 24 Hour Interior" option. Item 2. delete cell AN31 on Tab Static_Lists. Edit named range list_AllBuildingTypes to =static_Lists!$AN$5:$AN$30
A5: 2017-04-17 | B5: gjo8227 | C5: Update Static_Tables tab. Item 21.
A6: 2017-04-17 | B6: gjo8227 | C6: Made Misc text edits. Item 6. edited frm_Welcome2, update links on frm_UtilityCustom and corresponding field code, deleted text, command button for Fluorescent Check tool from forms frm_UtilityCustom, frm_UtilityReview, frm_BPAReview. Deleted tool (frm_LumensperWattTool.) Removed "% reduction in hours from frm_utilityReview and commented out references to the control from code. textbox_UtilityReview_kWhControlSavings
A7: 2017-04-17 | B7: gjo8227 | C7: Removed Measure Description Field. Item 7. Frm_UtilityCustom,frm_BPAReview, control textbox_UtilityCustom_Incentives_MeasDesc. Commented out references to the control.
A8: 2017-04-17 | B8: gjo8227 | C8: Updated Busbar Calculations (displayed). Item 8. Value changed on parameter tab. Updated text on forms prntrdy_Form7, prntrdy_Form4.
A9: 2017-04-18 | B9: gjo8227 | C9: Deleted Arithmetic Baseline rows. Item 10a. Deleted rows 2 to 17 on Arithmeticbaseline tab.
A10: 2017-04-18 | B10: gjo8227 | C10: Changed text on form prntrdy_Form4. Item 10c. From “Site Savings Adjusted for Market Average Baseline and Federal Standards” to “Site Savings Adjusted for Federal Standards:”.
A11: 2017-04-18 | B11: gjo8227 | C11: Updated MML tab. Item 9, 10b. Does not include code changes for special cases.
A12: 2017-04-18 | B12: gjo8227 | C12: Updated List_ControlClasses on Static_Lists tab. Item 9. Also resulted in change to named range List_ControlClasses
A13: 2017-04-19 | B13: gjo8227 | C13: Added code to ChangeParentFieldEvent() function to handle multiple default Control % reductions. | D13: NOTE: if time allows need to replace If statements with table lookup, reorder table so Control % Reductions are contiguous.
A14: 2017-04-19 | B14: gjo8227 | C14: Added code to AdjustMeasuresVectorToMeasureType() function to allow user entry for lampwattage if so defined in MML.
A15: 2017-04-19 | B15: gjo8227 | C15: Updated Static_List tab. Item 22. Updated named range list_MeasureSeries from static_Lists!$R$5:$R$21 to=static_Lists!$R$5:$R$18. Updated list_ProgramRequirementsDocs from static_Lists!$BL$5:$BL$7 to static_Lists!$BL$5:$BL$6.
A16: 2017-04-20 | B16: gjo8227 | C16: Updated code for fields fld_ExistingSubtypet and fld_ProposedSubtype to split text string from MML on \ character.
A17: 2017-04-20 | B17: gjo8227 | C17: Updated code fto functions GetLampWattageList() and GetLampsPerFixtureList() to modified the "Row Finder" loop to match selected subcat to any text in the MML column per version 4.0 requirements
A18: 2017-04-20 | B18: gjo8227 | C18: Updated inp_incentives tab. Updated named ranges to match new inp_incentives tab.
A19: 2017-04-20 | B19: gjo8227 | C19: updated user_ProgramOffering tables. Step 13
A20: 2017-04-21 | B20: gjo8227 | C20: UpdatedStatic tables tab. Refrigerated column for Exterior 24 hour operation, Parking Garage, and Street and Area Lighting updated to 130%
A21: 2017-04-21 | B21: gjo8227 | C21: Updated Static links so displayed text is also the link. frm_UtilityCustom,frm_Utilityreview and frm_BPAReview.
A22: 2017-04-21 | B22: gjo8227 | C22: Updated GetMMLRow() function to deal with Subcat now containing multiple items per cell.
A23: 2017-04-22 | B23: gjo8227 | C23: Updated User_ProgramOfferings tab to restore lookups on Inp_incentive tabs. Note Control section (M) uses Index/Match combination on multiple columns. After editing cell(s) use Shift-Control-Enter to enable functions to work properly.
A24: 2017-04-22 | B24: gjo8227 | C24: Updated prntrdy_Form2 tab (Item 120). To match tab in Supporting Docs.xls. Note Measure M has merged cells which may cause problems.
A25: 2017-04-25 | B25: gjo8227 | C25: Edited sub WriteProjectLevelInfoToItemizedSheet_Static(). Item 28. fixed typo in Phone4 assignment. Was Phone4 = phone1 = CustomerDataVector... This makes phone4 evaluate to true or false. Changed to Phone4 = CustomerDataVector...
A26: 2017-04-25 | B26: gjo8227 | C26: Edited function ConcatMeasureUserFields(). Item 1A. Concatenated user input used to identify changes in Non-Standard measures after approval. Commented out quantity fields as version 4.0 allows quantity to change without requiring re-approval.
A27: 4/252/2017 | B27: gjo8227 | C27: Edited function AdjustMeasuresVectorForApproval. Item 1B. Commented out "MeasuresVector(1, MVNumbers.ControlsPercentReduction) = 0",MeasuresVector(1, MVNumbers.ControlkWhSavings) = 0.
A28: 2017-04-25 | B28: gjo8227 | C28: Edited function ChangeParentFieldEvent. Item 1C. Changed "If NewValue <> OldValue And NewValue <> "Non-standard" Then" To "If NewValue <> OldValue And (OldValue = "Controls Only" or NewValue = "Controls Only") Then" so users can change from Deemed to Non-Standard and back again without losing measure data.
A29: 2017-04-25 | B29: gjo8227 | C29: Added * to Contact Name and Company Name fields in the Trade Ally tab. Item 25A. Required fields. Delted he Additional Trade Ally Information section (25C).
A30: 2017-04-26 | B30: gjo8227 | C30: Edited user_TradeAlly tab to remove additional TA info and add NWTan & Training. Item 25D
A31: 2017-04-26 | B31: gjo8227 | C31: Edited subs to remove additional TA info and add NWTan & Training. Item 25D. Function GetTAVN(), Function GetTradeAllyData_UserForm(), Sub SetTradeAllyData_UserForm(), Sub SetTradeAllyData_DataTable(), UserForm_Initialize(). Added UpdateNWTAradioButtions() which is called on button_click.
A32: 2017-04-26 | B32: gjo8227 | C32: Added required checks for Contact and Company names on TradeAlly tab of dataEntry form. Item 25A. Function ValidateForm(0 and Function ValidateFrame()
A33: 2017-04-27 | B33: gjo8227 | C33: Trimming the MML Existing and proposed row vectors to only hold the selected Watts. In Function ComputeSavingsAndIncentives(MeasuresVector). New large wattage Selection lists in the MML seem to be causing the Write to UserLightingDetails tab fail.
A34: 2017-04-27 | B34: gjo8227 | C34: Cleaned up trailing spaces on MML tab desriptions. This was causing failed matches on the Measures form.
A35: 2019-02-07 | B35: Dorian and Ryan | C35: 1. Incentives changed for): 1.1. LED Tubes ($4 change to $2) 1.2. LED Exit Sign ($40 change to $20) 1.3. Calculated Incentives ($.18 change to $.13) 2. Removed Linear Fluorescent (Measure Series "I") 3. Changed LC Version from 4.0 to 5.0
A36: 2020-03-03 | B36: Dorian and Ryan | C36: "Space Type" report created
A37: 2020-03-26 | B37: Dorian and Ryan | C37: "Space" Tab optimization: This functionality has been majorly redone from before by: 1. One click control to enter Primary Space or Unique Space editing; with locking out other control areas until end of editing 2. Ability to cancel Primary Space or Unique space editing 3. Changes are saved only at end of editing 4. Current displayed Unique Space values are updated to Save of Primary Space changes 5. Canceling edits reverts back to pre-editing state of Primary or Unique Space changes 6. When saving Primary Space, the Unique Spaces that are affected by the Primary time or control changes are changed including re-calculation of all the Measures affected by the Unique Space change. A list of only affected Measures is created before Method recalculation occurs 7. A Measure Progress Update Bar is inclueded for any Measure re-calculation do to Unique Space changes; includes display of total Measure count to recalculate, Measure count left to recalculate with each Progress Bar update, time estimate to end of Measure Updates, current Measure ID number being re-calculated. While progress bar is running all controls are inactivated. | D37: LC5.1.69.V00
A38: 2020-04-16 | B38: None | C38: DO NOT WRITE LOG ON THIS TAB. Go to "Change Log" tab

Sheet Holding
A1: Version 5.0.0.0
A16: Copy header row back to user_Lighting_Details worksheet
A17: Worksheets("Holding").Range("A21:IP21").Copy Worksheets("user_Lighting Details").Range("A21:IP21")
K20: 1 | L20: =K20+1 -> 2 | M20: =L20+1 -> 3 | N20: 4 | O20: 5 | P20: 6 | Q20: 7 | R20: 8 | S20: 9 | T20: 10 | U20: 11 | V20: 12 | W20: 13 | X20: 14 | Y20: 15 | Z20: 16 | AA20: 17 | AB20: 18 | AC20: 19 | AD20: 20 | AE20: 21 | AF20: 22 | AG20: 23 | AH20: 24 | AI20: 25 | AJ20: 26 | AK20: 27 | AL20: 28 | AM20: 29 | AN20: 30 | AO20: 31 | AP20: 32 | AQ20: 33 | AR20: 34 | AS20: 35 | AT20: 36 | AU20: 37 | AV20: 38 | AW20: 39 | AX20: 40 | AY20: 41 | AZ20: 42 | BA20: 43 | BB20: 44 | BC20: 45 | BD20: 46 | BE20: 47 | BF20: 48 | BG20: 49 | BH20: 50 | BI20: 51 | BJ20: 52 | BK20: 53 | BL20: 54 | BM20: 55 | BN20: 56 | BO20: 57 | BP20: 58 | BQ20: 59 | BR20: 60 | BS20: 61 | BT20: 62 | BU20: 63 | BV20: 64 | BW20: 65 | BX20: 66 | BY20: =BX20+1 -> 67 | BZ20: 68 | CA20: 69 | CB20: 70 | CC20: 71 | CD20: 72 | CE20: 73 | CF20: 74 | CG20: 75 | CH20: 76 | CI20: 77 | CJ20: 78 | CK20: 79 | CL20: 80 | CM20: 81 | CN20: 82 | CO20: 83 | CP20: 84 | CQ20: 85 | CR20: 86 | CS20: 87 | CT20: 88 | CU20: 89 | CV20: 90 | CW20: 91 | CX20: 92 | CY20: 93 | CZ20: 94 | DA20: 95 | DB20: 96 | DC20: 97 | DD20: 98 | DE20: 99 | DF20: 100 | DG20: 101 | DH20: 102 | DI20: 103 | DJ20: 104 | DK20: 105 | DL20: 106 | DM20: 107 | DN20: 108 | DO20: 109 | DP20: 110 | DQ20: 111 | DR20: 112 | DS20: 113 | DT20: 114 | DU20: 115 | DV20: 116 | DW20: 117 | DX20: 118 | DY20: 119 | DZ20: 120 | EA20: 121 | EB20: 122 | EC20: 123 | ED20: 124 | EE20: 125 | EF20: 126 | EG20: 127 | EH20: 128 | EI20: 129 | EJ20: 130 | EK20: =EJ20+1 -> 131 | EL20: 132 | EM20: 133 | EN20: 134 | EO20: 135 | EP20: 136 | EQ20: 137 | ER20: 138 | ES20: 139 | ET20: 140 | EU20: 141 | EV20: 142 | EW20: 143 | EX20: 144 | EY20: 145 | EZ20: 146 | FA20: 147 | FB20: 148 | FC20: 149 | FD20: 150 | FE20: 151 | FF20: 152 | FG20: 153 | FH20: 154 | FI20: 155 | FJ20: 156 | FK20: 157 | FL20: 158 | FM20: 159 | FN20: 160 | FO20: 161 | FP20: 162 | FQ20: 163 | FR20: 164 | FS20: 165 | FT20: 166 | FU20: 167 | FV20: 168 | FW20: 169 | FX20: 170 | FY20: 171 | FZ20: 172 | GA20: 173 | GB20: 174 | GC20: 175 | GD20: 176 | GE20: 177 | GF20: 178 | GG20: 179 | GH20: 180 | GI20: 181 | GJ20: 182 | GK20: 183 | GL20: 184 | GM20: 185 | GN20: 186 | GO20: 187 | GP20: 188 | GQ20: 189 | GR20: 190 | GS20: 191 | GT20: 192 | GU20: 193 | GV20: 194 | GW20: =GV20+1 -> 195 | GX20: 196 | GY20: 197 | GZ20: 198 | HA20: 199 | HB20: 200
K21: Measure # | L21: Status | M21: Space | N21: Annual Hours | O21: Measure # Space Status | P21: Existing | Q21: Proposed | R21: Controls | T21: kWh/year | U21: Watts per Fixture | V21: Incentives | W21: Notes | X21: Measure Details>> | Y21: KWForTable | Z21: Space | AA21: ExistingQuantity | AB21: ExistingClass | AC21: ExistingType | AD21: ExistingSubtype | AE21: ExistingLampWattage | AF21: ExistingLampsPerFixture | AG21: ProposedMeasureType | AH21: ProposedQuantity | AI21: ProposedClass | AJ21: ProposedType | AK21: ProposedSubtype | AL21: ProposedLampWattage | AM21: ProposedLampsPerFixture | AN21: ProposedLampModelNumber | AO21: ProposedBallastModelNumber | AP21: NoControls | AQ21: ControlsQuantity | AR21: ControlsClass | AS21: ControlsPercentReduction | AT21: Notes | AU21: NumberOfErrors | AV21: ExistingMMLRow | AW21: ProposedMMLRow | AX21: ExistingBallastFactor | AY21: ProposedBallastFactor | AZ21: ExistingFixtureWattage | BA21: ProposedFixtureWattage | BB21: ArithFixtureWattage | BC21: ElectricInteraction | BD21: GasInteraction | BE21: ExistingFixtureKWHBase | BF21: ArithExistingFixtureKWHBase | BG21: ProposedFixtureKWHBase | BH21: DecommissionedFixtures | BI21: PrecondDecomKWHSavings | BJ21: ArithDecomKWHSavings | BK21: PrecondEquipKWHSavings | BL21: ArithEquipKWHSavings | BM21: PrecondControlsKWHSavings | BN21: ArithControlsKWHSavings | BO21: PrecondDecomAndEquipKWHSavings | BP21: ArithDecomAndEquipKWHSavings | BQ21: PrecondTotalKWHSavings | BR21: ArithTotalKWHSavings | BS21: PrecondEquipAndControlsKWHSavings | BT21: ArithEquipAndControlsKWHSavings | BU21: PrecondEquipAndControlsPercentSavings | BV21: ArithEquipAndControlsPercentSavings | BW21: PrecondMeasurePercentSavings | BX21: ArithMeasurePercentSavings | BY21: PrecondMeasureKW | BZ21: ArithMeasureKW | CA21: ProposedMeasureKW | CB21: PrecondKWSavings | CC21: ArithKWSavings | CD21: ExistingFixtureKWHwithHVAC | CE21: ArithExistingFixtureKWHwithHVAC | CF21: ProposedFixtureKWHwithHVAC | CG21: PrecondDecomKWHSavingswithHVAC | CH21: ArithDecomKWHSavingswithHVAC | CI21: PrecondEquipKWHSavingswithHVAC | CJ21: ArithEquipKWHSavingswithHVAC | CK21: PrecondEquipAndControlsKWHSavingswithHVAC | CL21: ArithEquipAndControlsKWHSavingswithHVAC | CM21: PrecondControlsKWHSavingswithHVAC | CN21: ArithControlsKWHSavingswithHVAC | CO21: PrecondDecomAndEquipKWHSavingswithHVAC | CP21: ArithDecomAndEquipKWHSavingswithHVAC | CQ21: PrecondTotalKWHSavingswithHVAC | CR21: ArithTotalKWHSavingswithHVAC | CS21: ExistingFixtureKWHwithHVAC_Busbar | CT21: ArithExistingFixtureKWHwithHVAC_Busbar | CU21: ProposedFixtureKWHwithHVAC_Busbar | CV21: PrecondDecomKWHSavingswithHVAC_Busbar | CW21: ArithDecomKWHSavingswithHVAC_Busbar | CX21: PrecondEquipKWHSavingswithHVAC_Busbar | CY21: ArithEquipKWHSavingswithHVAC_Busbar | CZ21: PrecondEquipAndControlsKWHSavingswithHVAC_Busbar | DA21: ArithEquipAndControlsKWHSavingswithHVAC_Busbar | DB21: PrecondControlsKWHSavingswithHVAC_Busbar | DC21: ArithControlsKWHSavingswithHVAC_Busbar | DD21: PrecondDecomAndEquipKWHSavingswithHVAC_Busbar | DE21: ArithDecomAndEquipKWHSavingswithHVAC_Busbar | DF21: PrecondTotalKWHSavingswithHVAC_Busbar | DG21: ArithTotalKWHSavingswithHVAC_Busbar | DH21: PrecondTotalMeasureKWHwithHVAC_Busbar | DI21: ArithTotalMeasureKWHwithHVAC_Busbar | DJ21: ProposedTotalMeasureKWHwithHVAC_Busbar | DK21: Therms_Increase_Precond | DL21: Therms_Increase_Arith | DM21: DecomIncentiveRates | DN21: UtilityDecomIncentiveRate | DO21: BPADecomIncentiveRate | DP21: NonstandardIncentiveRates | DQ21: UtilityNonstandardIncentiveRate | DR21: BPANonstandardIncentiveRate | DS21: ControlsIncentiveQuantity | DT21: ControlsIncentiveUtility | DU21: ControlsIncentiveBPA | DV21: ControlsText | DW21: ControlsIncentiveVector | DX21: ControlsIncentive | DY21: BPAControlsIncentiveRate | DZ21: UtilityControlsIncentiveRate | EA21: DecomIncentiveQuantity | EB21: DecomIncentiveUtility | EC21: DecomIncentiveBPA | ED21: EquipmentIncentiveQuantity | EE21: EquipmentIncentiveUtility | EF21: EquipmentIncentiveBPA | EG21: MeasureText | EH21: DecommissioningAndEquipmentResultsText | EI21: ControlsResultsText | EJ21: PrecondTotalMeasureKWH | EK21: ArithTotalMeasureKWH | EL21: ProposedTotalMeasureKWH | EM21: PrecondTotalMeasureKWHwithHVAC | EN21: ArithTotalMeasureKWHwithHVAC | EO21: ProposedTotalMeasureKWHwithHVAC | EP21: PrecondKWPercentSavings | EQ21: ArithKWPercentSavings | ER21: TotalUtilityIncentive | ES21: TotalBPAIncentive | ET21: NonStandardStatus | EU21: StatusNotes | EV21: ControlkWhSavings | EW21: UtilityEquipmentIncentiveRate | EX21: DecomAndEquipmentIncentiveName | EY21: DecomAndEquipmentIncentiveDescription | EZ21: ControlsIncentiveName | FA21: ControlsIncentiveDescription | FB21: ApprovedNonStandardUserFieldConcat | FC21: SpaceType
A24: Worksheets("Holding").Range("A21:IP21").Copy Worksheets("user_Lighting Details").Range("A21:IP21")

Sheet Change Log
A1: # | B1: Bug/ Change # | C1: Version | D1: Date | E1: Modified By | F1: Location | G1: Action | H1: Comments
A2: 1 | C2: LC4.0.20180110_1.xls | D2: 2018-01-10 | E2: Ryan LeBaron/Dorian Salcz | F2: Report "Customer Proposal Letter" - Tab "prntrdy_Form1" / cell L243 | G2: Removed "and advanced lighting controls" from description in the fine print at button of report
A3: =A2+1+IF(LEN(C3)=0,"",A2-1) -> 2 | C3: LC4.0.20180110_1.xls | D3: 2018-01-10 | E3: Ryan LeBaron/Dorian Salcz | F3: Form Utility/Incentives/Customization Tab - % Pass Through text entry | G3: Capped max value to 100% - If value entered is greater than 100 then value is replaced with 100 | H3: Existing behavior of negative sign key press not entered
A4: =IF(LEN(C4)=0,"",A3+1) -> 3 | C4: LC4.0.20180112_1.xls | D4: 2018-01-12 | E4: Ryan LeBaron/Dorian Salcz | F4: Form Utility Customization/Save and Close - "Save and Close" button | G4: Save and close button should not ask user if they want to exit program without saving after the save operation occurs; this is because the workbook is loosing a boolean variable bAllowToClose set to true from the save and close button click. Solution is to also save a 1 to a cell, after the save occurs, and then in "Workbook_BeforeClose()" event handler to check "bAllowToClose = False" and then do a secondary check in it to see if the cell value was set for a close; this is a double check. Note that Form Utiliy Review/Save and Close works properly and has same exact code as the Form Utility Customization/Save and Close so there must be some hidden part event handler or property that reinitializes the workbook and forces us to do this patch. The offending method is "Sub cmd_UtilityCustom_SaveAndClose_Click()" that has the new added line of "ThisWorkbook.Sheets("Welcome").Range("AA1").Value = "1""
A5: =IF(LEN(C5)=0,"",A4+1) -> 4 | C5: LC4.0.20180112_2.xls | D5: 2018-01-12 | E5: Ryan LeBaron/Dorian Salcz | F5: 4 Forms in tab "Links" for ""frm_Utility Customization", ""frm_Utility Review", ""frm_BPARewiew", "frm_DataEntry" | G5: Changed the Lighting Calculator Tutorials link in four places to this: https://www.bpa.gov/EE/Sectors/Commercial/Pages/Lighting-Calculators.aspx
A6: 5 | C6: LC4.0.20180116_1.xls | D6: 2018-01-16 | E6: Ryan LeBaron/Dorian Salcz | F6: Form frm_DataEntry, tab "Spaces" and "Measures" | G6: Fix to: On "Spaces" tab the "Space Type" and "Unique Space Name" form a space name used in "Measures" tab. If a Measure has that name that is deleted or modified to a differing one, delete the name from that measure, thus causing the measure to show Incentive as "MEASURE IS NOT FULLY SPECIFIED. SEE HIGHLIGHTED FIELDS"
A7: 6 | C7: LC4.0.20180117_1.xls | D7: 2018-01-17 | E7: Ryan LeBaron/Dorian Salcz | F7: Form frm_DataEntry, tab "Spaces" and "Measures" | G7: Fix to: Yellow highlight each missing information on measure to cause highlighting yellow of measure record on tab. If a Measure has that space name that is deleted or modified to a differing one, delete the name from that measure, thus causing the measure to show Incentive as "MEASURE IS NOT FULLY SPECIFIED. SEE HIGHLIGHTED FIELDS" - Had to also erase space name from each measure on a secondary column.
A8: 7 | C8: LC4.0.20180117_1.xls | D8: 2018-01-17 | E8: Ryan LeBaron/Dorian Salcz | F8: Form frm_DataEntry, tab "Spaces" and "Measures" | G8: Fix to above #5. When the "Unique Space Name" is blank and the "Space Type" is deleted the space name to find in the indiviual measure cannot contain the separating space between the "Space Type" and "Unique Space Name"; Since the "Unique Space Name" is blank the separating space must also be removed from the end of the complete space name or a match will not occur to the individual meaures
A9: 8 | C9: LC4.0.20180118_2.xls | D9: 2018-01-18 | E9: Ryan LeBaron/Dorian Salcz | F9: Form frm_DataEntry and all other containing tab "Save And Close" | G9: Button "Save and Close" to save, exit, and not ask user if wants to exit. Button "Close Without Saving" to ask user if wants to exit without saving.
A10: 9 | C10: LC4.0.20180126_1.xls | D10: 2018-01-26 | E10: Ryan LeBaron/Dorian Salcz | F10: Form frm_DataEntry tabs "Customer" and "Trade Ally" | G10: Phone numbers and zip codes to allow a leading zero; save as text, not number in cells | H10: Note the physical address can't have a leading zero because the location has to be from the BPA allowed areas
A11: 10 | C11: LC4.0.20180126_1.xls | D11: 2018-01-26 | E11: Ryan LeBaron/Dorian Salcz | G11: Recompute project calculation in all cases; general savings and incentive. This was previously computed only on saving and not on change of individual space or individual measure change.
A12: 11 | C12: LC4.0.20180126_2.xls | D12: 2018-01-26 | E12: Ryan LeBaron/Dorian Salcz | F12: Form frm_DataEntry, "Spaces" tab; resulting in "Measures" tab data | G12: Changing a space name by rename or delete will cause "Measures" tab indiviual measures to clear out incentives and Enegy Savings from form data. Simple solution to just clear out most measure data for measure loosing space it is set to; because of a space deletion or space name change | H12: Form frm_DataEntry, tab "Spaces" and "Measures"
A13: 12 | C13: LC4.0.20180130_2.xls | D13: 2018-01-30 | E13: Dorian Salcz | F13: Form frm_BPAReview, "Save & Close" tab, buttons "COMPARE LC WORKBOOK" and "COMPARE LC DIRECTORY" | G13: Brings data in from external workbook and reruns calculations. Compares external workbook power saved and total incentive to new calculated values. Shows values and notifies if match or external error
A14: 13 | C14: LC4.0.20180131_3.xls | D14: 2018-01-31 | E14: Dorian Salcz | F14: Module MeasuresRoutines, method CaluclateMeauser, line "Call SetUploadData" containing code turning on menu. | G14: In method SetUploadData rem out line "Call BringExcelBackToNormal" that contains code "Application.DisplayFormulaBar = True"
A15: 14 | C15: LC4.0.20180131_3.xls | D15: 2018-01-31 | E15: Dorian Salcz | F15: Form frm_BPAReview, "Save & Close" tab, buttons "COMPARE LC WORKBOOK" and "COMPARE LC DIRECTORY" | G15: Add functionlity to handle LC 3.3 data import
A16: 15 | C16: LC4.0.20180131_4.xls | D16: 2018-01-31 | E16: Dorian Salcz | F16: Tab ProjectUpload does not get proper value from tab UploadData for cell L2 of colum "Unique Site ID" | G16: Tab ProjectUpload does not get proper value from tab UploadData for cell L2 of colum "Unique Site ID". Improper "0" returned on blank string; this error is called "Returning Zero when a Referenced Cell is Blank". Solution "=IF(ISBLANK(UploadData!L2),"",UploadData!L2)"
A17: 16 | C17: LC4.0.20180201_1.xls | D17: 2018-02-01 | E17: Dorian Salcz | F17: "Links" tab, link "BPA Lighting Calculator Trainings", on Forms "frm_BPAReview", "frm_DataEntry", "frm_UtilityCustom", "frm_UtilityReview" | G17: Modify link to: https://www.bpa.gov/EE/Sectors/Commercial/Pages/Commercial-Industrial-Lighting.aspx
A18: 17 | C18: LC4.0.20180201_2.xls | D18: 2018-02-01 | E18: Ryan LeBaron/Dorian Salcz | F18: Excel Options/save | G18: Uncheck save every 2 or more minutes
A19: 18 | C19: LC4.0.20180207_1.xls | D19: 2018-02-02 | E19: Ryan LeBaron/Dorian Salcz | F19: VBA Code | G19: Unlock VBA code - Remove password
A20: 19 | C20: LC4.0.20180207_1.xls | D20: 2018-02-02 | E20: Ryan LeBaron/Dorian Salcz | F20: Tab "user_Lighting Details" | G20: Remove extra cell bourndary lines below last current measure
A21: 20 | C21: LC4.0.20180221_2.xls | D21: 2018-02-21 | E21: Ryan LeBaron/Dorian Salcz | F21: Tab "ProjectUpload" | G21: Copy data from tab "UploadData". Show spaces and not substitue zero values; keep format on dates and % else just copy number or string
A22: 21 | C22: LC4.0.20180221_3.xls | D22: 2018-02-21 | E22: Ryan LeBaron/Dorian Salcz | F22: Tab "MeasureUpload" | G22: Fix inserting a measure above selected measure to create proper cell reference
A23: 22 | C23: LC4.0.20180222_1.xls | D23: 2018-02-22 | E23: Ryan LeBaron/Dorian Salcz | F23: Tab "UploadData", "user_LightingDetails" are modified with latest selected utilty sector | G23: Tab "UploadData", "user_LightingDetails" are modified with latest selected utilty sector selected on utility fomr "MeasureRoutines"; indirectly tab "MeasureUpload" updates its REFNO and measure descripton because of its fomulas referencing tab "user_LightingDetails"
A24: =IF(LEN(C24)=0,"",A23+1) -> 23 | C24: LC4.0.20180226_6.xls | D24: 2018-02-26 | E24: Ryan LeBaron/Dorian Salcz | F24: Tab "UploadData" are modified with latest selected utilty sector | G24: Prior logic to modify new REFNO was in error wher the vector was not provided and just the vector's column numbers.
A25: =IF(LEN(C25)=0,"",A24+1) -> 24 | C25: LC4.0.20180226_6.xls | D25: 2018-02-26 | E25: Ryan LeBaron/Dorian Salcz | F25: Form "user_LightingDetails" recaluculate button | G25: Make button not visible
A26: =IF(LEN(C26)=0,"",A25+1) -> 25 | C26: LC4.0.20180226_6.xls | D26: 2018-02-26 | E26: Ryan LeBaron/Dorian Salcz | F26: Form "user_LightingDetails" controls and % reductiuction not correct or non enambled lighting controls on various measures | G26: Vector data not being read and user form data read instead in engine location; solved. Added logic to module1 to reanable controls.
A27: 26 | C27: LC4.0.20180306_6.xls | D27: 2018-03-06 | E27: Ryan LeBaron/Dorian Salcz | F27: Forms "user_Space Types" changes not apply to "user_LightingDetails" (measures tab) not reflecting changes of optional unique name change. This includes includes HVAC or hour changes. This includes a measure based on primary mearure with primary measure hour or HVAC changes. | G27: Improper vector data reading and missing functionality
A28: 27 | C28: LC4.0.20180306_6.xls | D28: 2018-03-06 | E28: Ryan LeBaron/Dorian Salcz | F28: Table "ArithmeticBaseline" has workng 45 W incandescent wattage. | G28: Change to 40W
A29: 28 | C29: LC4.0.20180306_6.xls | D29: 2018-03-06 | E29: Ryan LeBaron/Dorian Salcz | F29: Forms "user_LightingDetails" (measures tab) not pasting exception. | G29: Method call with imporper parameter fix.
A30: 29 | C30: LC4.0.20180316_1.xls | D30: 2018-03-16 | E30: Ryan LeBaron/Dorian Salcz | F30: Form "frm_UtilityCustom", "Incentives tab". Modifying Incentive passthorugh % does not update meausre values | G30: Modify Incentive Passthorug % event event handler "textbox_UtilityCustom_Incentives_Passthru_Change()" to recaluculate all methods if a valid new passthrough % is provided
A31: =IF(LEN(C31)=0,"",A30+1) -> 30 | C31: LC4.0.xls Version 20180322_1 | D31: 2018-03-22 | E31: Dorian Salcz | F31: Teble Tab "ProjoectUpload" mdify version cell to accept decimal points | G31: Changed cell from "General" to "Number" with decimal
A32: 31 | C32: LC4.0V0.8.xls VALIDATOR | D32: 2018-04-19 | E32: Dorian Salcz | G32: VALIDATOR for LC 4 | H32: Initial Release
A33: 32 | C33: from LC4.0V0.27 to LC5.0.08 | D33: 2019-02-08 | E33: Dorian and Ryan | F33: 1. Incentives changed for): 1.1. LED Tubes ($4 change to $2) 1.2. LED Exit Sign ($40 change to $20) 1.3. Calculated Incentives ($.18 change to $.13) 2. Removed Linear Fluorescent (Measure Series "I") 3. Changed LC Version from 4.0 to 5.0
A34: 33 | C34: To LC 5.0.10 | D34: 2019-02-13 | E34: Dorian | F34: 1.1. Measures tab cells border on empty 5 last records cleaned up to no borders 1.2. Hide Measure tab columns not to be diplayed to user 2. Utility reset data on calculator
A35: 34 | C35: LC5.0.10.V4 | D35: 2019-02-15 | E35: Dorian | F35: Validation upgrade to V5 Non Deemed approved and non approved fix
A36: =IF(LEN(C36)=0,"",A35+1) -> 35 | C36: LC5.0.10.V6 | D36: 2019-02-15 | E36: Dorian | F36: Non Standard Measurs column to reflect row found (was on less than #) fix Decomission Measurs column to reflect row found (was on less than #) fix
A37: 36 | C37: LC5.0.14.V6 | D37: 2019-03-24 | E37: Dorian | F37: Report "Customer Proposal Letter" Fixed the controlls L1, L2, L3 to be found also by KW used
C38: LC5.1.46.V00 | D38: 2020-01-17 | E38: Dorian | F38: 1. All UI Forms 2. Measure Tab | G38: 1. The handling of 4K monitors and other monitors of other sizes. The functionality has been changed: A. On a 4K screen: When LC is started to quarter screen size what it starts and then the user can change it to full screen or any window size; this window size stays constant until the user exits the application. B. b. On any screens of QHD (2960 x 1440 pixel) or less like HD (1920 x 1080 pixel) : When LC is started is behaves the same way as before by maximizing to full screen size. If the user decides to change screen size then the Lighting Calculator maintains that screens size until app is exited. C. Note: When changing LC tabs, the form will follow the excel tab location and size 2. The number pad fix with the “Measures” tab number of control issue surpassing the new light fixture when the numbers from the number pad are pushed instead of the numbers above the letter keys.
A39: =IF(LEN(C39)=0,"",A37+1) -> 37 | C39: LC5.1.47.V0 | D39: 2020-02-03 | E39: Dorian | F39: 1. Workbook Importer (form frm_BPAReview, method ImportAndCompareFile) 2. "Trade Ally" tab: change link to : "Trade Ally NW Memger?"; Word "Trade Ally Network NW Memger?" 3. "Link" tabs: "BPA Lighting Calculator Information"; Word "Trainings" changed to "Information" 4. Validator "Bus Bar" value error | G39: 1. Step to CalculateMeasure() for all measures might fail to calculate if other prior errors are found; for example if mismatched table data fail. If the workbook is not recalculated the Busbar value remainds the same as previous workbook; this causes the user to think there is also a busbar error when there is not. Solution is to remove the "If (AllowMeasureRecalculation) Then" conditions not allowing to recalculate workbook. 4. Validator “Bus Bar” value error; old prior import value showing
A40: 38 | C40: LC5.1.49.V00 | D40: 2020-02-28 | F40: 1. Workbook Contractor Measures: Single (not more than one) measure containing control causes crash 2. Workbook Contractor Measure: Proposed measure containing Subcategory="[Enter total wattage below]" (for signage, refrigeration, any user hand entered wattage) that is switched back to Deemed crash | G40: 1. Fix: A Workbook containing only 1 measure causes error on controls because of the code path differing between 1 measure and many measures. In previous measure code was added to handle controls that has been fixed to differ in looking up controls values based on 1 measure or many measures 2. Fix: A Workbook containing only 1 measure causes error on controls because of the code path differing between 1 measure and many measures. In previous measure code was added to handle controls that has been fixed to differ in looking up controls values based on 1 measure or many measures
A41: 39 | C41: LC5.1.51.V00 | D41: 2020-03-03 | E41: Dorian | F41: "Space Types" report created | G41: frm_DataEntry | Reports Tab
A42: 40 | C42: LC5.1.53.V00 | D42: 2020-03-04 | E42: Dorian | F42: BPA Review "Save & Close" tab, button "Compare LC Workbook". Frm_DataEntry, Space tab | G42: BPA import workbook to clear format for any existing "Space Types" tab. At "Space Tab" fromat all space records; places border.
A43: 41 | C43: LC5.1.54.V00 | D43: 2020-03-04 | E43: Dorian | F43: Frm_DataEntry, Space tab | G43: Space tab scroll down does not clear previous row formatting
A44: 42 | C44: LC5.1.64.V00 | D44: 2020-03-20 | E44: Dorian | F44: Frm_DataEntry, Space tab | G44: Space Optimization including progress bar
A45: 43 | C45: LC5.1.69.V00 | D45: 2020-03-26 | E45: Dorian | F45: Frm_DataEntry, Space tab | G45: "Space" Tab optimization: This functionality has been majorly redone from before by: 1. One click control to enter Primary Space or Unique Space editing; with locking out other control areas until end of editing 2. Ability to cancel Primary Space or Unique space editing 3. Changes are saved only at end of editing 4. Current displayed Unique Space values are updated to Save of Primary Space changes 5. Canceling edits reverts back to pre-editing state of Primary or Unique Space changes 6. When saving Primary Space, the Unique Spaces that are affected by the Primary time or control changes are changed including re-calculation of all the Measures affected by the Unique Space change. A list of only affected Measures is created before Method recalculation occurs 7. A Measure Progress Update Bar is inclueded for any Measure re-calculation do to Unique Space changes; includes display of total Measure count to recalculate, Measure count left to recalculate with each Progress Bar update, time estimate to end of Measure Updates, current Measure ID number being re-calculated. While progress bar is running all controls are inactivated.
A46: =A45+1 -> 44 | C46: LC5.1.73.V00 | D46: 2020-04-16 | E46: Dorian | F46: Frm_DataEntry, Space tab | G46: Space record movement(boundary 2 to max record) and selected record highlighting. Fast continuous button movement of highlighted record jumping to several recods previous.
A47: 45 | C47: LC5.1.83.V00 | D47: 2020-04-20 | E47: Dorian | F47: Frm_DataEntry, Space tab | G47: Space tab to handle both large data mode and quick instant update; "Large Calculator?" functionality. Many different bugs solved because of the dule functionality. The following previous issues solved: 1. New space and then cancel 2. Delete a blank space; no need to check measure names 3. Do not allow a measure space selection of a blank space name 4. Message box when switching from space editing to other tabs
A48: 46 | C48: LC5.1.83.V01 | D48: 2020-04-20 | E48: Dorian | F48: Frm_DataEntry, Space tab, Measure tab | G48: Space tab changing Primary Space and then moving to other space record lockup solved. Measure tab list unique list of spaces for measure selection solved. Measure tab current measure tab clearing out when coming pack to tab issue solved.
A49: 47 | C49: LC5.1.85.V00 | D49: 2020-04-21 | E49: Dorian | F49: Frm_DataEntry, Space tab, Measure tab | G49: Space Tab Name change to remove and recalculate affected measures by removing the measure space name of affected measures
A50: 48 | C50: LC5.1.88.V00 | D50: 2020-04-29 | E50: Dorian | F50: Frm_DataEntry, Space tab, Measure tab | G50: 1. Color fix for Measure Tab when Space Tab Name change to remove and recalculate affected measures by removing the measure space name of affected measures. 2. Optimization of Measure tab measure changes and Measure tab enty. 3. Click Measure tab cell changes the selected measure to that record
A51: 49 | C51: LC5.1.92.V00 | D51: 2020-05-12 | E51: Dorian | F51: Frm_DataEntry, Space tab, Measure tab | G51: 1. [Space Tab] space value change other than Space Type and Space Name does not remove measure [Measure Tab] Space Name from measure. 2. Measure Tab delete measure deactivated and other controls deactivated when deleting - Deactivation of all other controls, including more delete press changed to occur at start of delete to end.
A52: 50 | C52: LC5.1.94.V00 | D52: 2020-06-01 | E52: Dorian | F52: frm_utilityCustom, frm_utilityReview | G52: Utility side validation crashes because changes from customer/user side fix.
A53: 51 | C53: LC5.1.95.V00 | D53: 2020-06-01 | E53: Dorian | F53: Frm_DataEntry, Space tab, Measure tab | G53: 1. Initial save of Primary Space record 2. Do not enter measures until primary space is complete
A54: =IF(LEN(C54)=0,"",A53+1) -> 52 | C54: LC5.1.96.V00 | D54: 2020-06-09 | E54: Dorian | F54: Frm_DataEntry, Space tab | G54: 1. Bug Fix: Contractor Space Tab left arrow decrease selected space should not be allowed to decrease past space number 2 fix; space 1 causes severe space issues.
A55: 53 | C55: LC5.1.97.V00 | D55: 2020-06-09 | E55: Dorian | F55: Frm_DataEntry, Space tab | G55: 1. Bug Fix: Contractor Space tab, Large Project NOT checked, adding new unique space with default time values causes eroneous Large Project editing buttons to appear. 2. New S[pace with same space name as existing space, changing the name to make unique enables day Sunday for editing when not not allowed to edit because use primary day values cheked. 3. Change "Large Calculator ?" Space chekbox to "Large Project?" display to user.
A56: 54 | C56: LC5.1.98.V00 | D56: 2020-06-22 | E56: Dorian | F56: Frm_DataEntry, Space tab | G56: 1. Bug Fix: Reduce Space Tab, Space Name change causing flickering; caused by excessive Do Eveints and frm_Progress enabling on no measures to modify. Bug Fix: Space Tab Large project Unique Schedule controlls enabling Primary Schedule Cancle and Modify buttons instead of Unique Space.
A57: 55 | C57: LC5.1.100.V00 | D57: 2020-07-08 | E57: Dorian | F57: Frm_DataEntry, Space tab, Measure tab | G57: 1. Bug Fix: Space Tab delete button code not same path as new code that deletes measure spaces that are match deleted sp. 2. Compile Error of "Dim MeasureToRecalculate() As Boolean" to delete. 3. Space Large Progject button name change. 4. Customer Tab, tab stop order fix. 5. Measure tab, first measure when one measure exists or multiple measures to highlight space name field yellow if missing
A58: 56 | C58: LC5.1.102.V00 | D58: 2020-07-09 | E58: Dorian | F58: Frm_DataEntry, Space tab, Measure tab | G58: 1. Bug Fix: Space Tab delete button for incomplete space shows validation error
A59: 57 | C59: LC5.1.105.V00 | D59: 2020-07-16 | E59: Dorian | F59: Frm_DataEntry, Space tab; functionality interacts with Measure tab | G59: 1. Bug Fix: Space delete error in not deleting measure space name. 2. Bug Fix: Space change name error in not deleting measure space name. 3. Space name character space trip in various places used for space name comparison. 4. Space addition or type/name change collision with other existing space type/name to only show error to user only when ready to save with no errors; error warns user to change space name or space is not saved
A60: =IF(LEN(C60)=0,"",A59+1) -> 58 | C60: LC5.1.108.V00 | D60: 2020-07-17 | E60: Dorian | F60: Frm_DataEntry, Space tab; functionality interacts with Measure tab | G60: 1. Large Scale Project setting to true causes delete and other unique space buttons to activate Space Type event first time set; setting copy button as selected control solve. in Large Project Space Name dropdown activates validation error. Space Tab Processing Measure form is shown when no measure to process on delete and space type or name selection . 2. More finds of space trim of [space Name] and trim of [Space Type] & " " & [Space Name] 3. Adding new space should not trigger measure calculation form for same measures space name. 4. In Large Scale Project, Unique Space Name triggers calculation and measure with same space name processing form. This should not happen until clicking "Save Space Inputs" button. to solve this modify Sub textbox_Spaces_SpaceName_KeyDown(), line "modifyUniqueOperatingSchedule = emableUniqueOperatingSchedule(modifyUniqueOperatingSchedule)" to "modifyUniqueOperatingSchedule = emableUniqueOperatingSchedule(True)" . 5. Project Offerings | Program Offerings: Change various text items. 6. Program Requirements: Project Requirements: Change various text items.
A61: 59 | C61: LC5.1.111.V00 | D61: 2020-07-22 | E61: Dorian | F61: Frm_DataEntry (Space tab and Measure tab), Summary Report, Preposal Report | G61: 1. Program Offering form language edited. 2. Customer Summary Report and Customer Proposal Report stop double clicking from causing Excel error "The cell or chart you're trying to change is on a protected sheet. To make …." and then causing a tab change to non user allowed tab. 3. Utility Summary Report, Total Project Cost to not have deimal cent; show only dollars. 4. space delete or space name change to zero out measures using those spaces.
A62: 60 | C62: LC5.1.112.V00 | D62: 2020-07-28 | E62: Dorian | F62: Frm_DataEntry (Measure tab) | G62: 1. Fix for: Measure Tab for new fixtures of Sinage, LED.Refrigerated, LED.Linear, when existing is count of 1 causes incentives of "Non-Standard" instead of "Sinage" or "LED Linear"; this error is in cases of only existing count of 1, otherwise this works. 2. Fix for: Measure Tab when adding a measure after or before measure currently on, the first measure shows on Measure Form for .5 seconds before data is cleared out in controls.
A63: 61 | C63: LC5.1.114.V00 | D63: 2020-07-30 | E63: Dorian | F63: Frm_DataEntry (Measure tab) | G63: A1. Rebuilt and optimization of loading Contractor Measure Tab: 1. Make tab validate each measure color on gird only once when user selects contractor data button (Project Input Button); this is not done anymore every time user switches from Measures Tab to other tab and back. 2. When entering the Measure tab, the first measure user is on is loaded to the form into controls showing data. Events have been turned off so measure is not recalculated every load of control on window form. The only code run is to highlight each control yellow if the data loaded is an error; calling the reaclculate measure on each of the control data load is supressed. A2. (Fix) Project Reports Tab: When a report is selected and then user clicks on back button, the tab does not change back to "user_PrintReadyTA" tab that the user is presented when they click on the Project Reports Tab
A64: 62 | C64: LC5.1.117.V00 | D64: 2020-08-03 | E64: Dorian | F64: Frm_DataEntry (Measure tab) | G64: 1. Fix: Measure Tab, if total measures count of 1, entering tab causes meaures controls to be yellow error with no measure control.
A65: 63 | C65: LC5.1.120.V00 | D65: 2020-08-05 | E65: Dorian | F65: Frm_DataEntry (Measure tab) | G65: 1. Fix: frm_BPAReview, Review Project Tab: Issues loading because tab code accidentaly invokes frm_dataEntry, form invocation and Measures tab code. Other issues invlove changing measure records and trying ot change approval status of non-standard measure. 2. Fix: frm_dataEntry, Measure Tab: when movign bacvk between Project Summary Report and Measure Tab and then changing Measure status from Deemed to Non-Standard there is a code error crash occuring because the array of status is not loaded properly and code to handle that is not dimentioned properly allowing to check values. 3. Fix: BPA side, Poject Review Report does not regenerate from Utility side and might be in error is contractor did not review the report before BPA views report. 4. Fix: frm_dataEntry, Customer Tab , Estimated Project Cost changes after measures have been entered is not updating all mesure calculations and total project costs/values. 5. Fix: frm_dataEntry, Customer Tab , Building Type changes after measures have been entered is not updating all mesure calculations and total project costs/values associated with differing heating and cooling rations of a new building type.
A66: =IF(LEN(C66)=0,"",A65+1) -> 64 | C66: LC5.1.125.V00 | D66: 2020-08-07 | E66: Dorian | F66: Frm_DataEntry (Measure tab) | G66: 1. Fix: frm_BPAReview, Review Project Tab: Selecting a measure (up, down, measure # text box) causes controlls to zero out and save data. 2. Fix: frm_dataEntry, Measure Tab: Selecting a measure (up, down, measure # text box, or click) causes controlls to zero out and save data. 3. Fix: frm_dataEntry, Measure Tab: Changing a measure to Non-Standard that has an existing fixture of T5, 4ft, NLO, 28W causes a crash. Technical reason is because the function method that returns the light fixutre array of data contains one dimension for the wattage instead of two. 4. Fix: frm_BPAReview, Review Project Tab: Selecting a measure by ckicking does not work. 5. Fix: frm_UtilityReview, Review Project Tab: Selecting a measure by ckicking does not work.
A67: 65 | C67: LC5.1.127.V00 | D67: 2020-08-10 | E67: Dorian | F67: Frm_DataEntry (Measure tab) | G67: 1. Fix: frm_BPAReview, Review Project Tab: Reduce tab movement up and down on load of tab and changing records 2. Fix: frm_dataEntry, Measure Tab: Reduce tab movement up and down on load of tab and changing records. 3. Fix: frm_dataEntry: Deletion of Rem code in menu tab change sub, reduction of menu tab change sub for Measure Tab code. 3. Fix: frm_dataEntry, Space Tab: Pasting existing space that has same name as another existing space causes message box error of existing space name to flash three times. fix so no message box error occurs, not even once, because user is copying space to create a new one. When paste occurs all pasted fields are yellow because of no save condition untill space name becomes unique.
A68: 66 | C68: LC5.1.128.V00 | D68: 2020-08-10 | E68: Dorian | F68: Frm_DataEntry (Measure tab) | G68: 1. Fix: frm_dataEntry, Measure Tab: When user enters measure tab the controls are error colored yellow even when No-Contols checked. 2. Fix: frm_dataEntry, frm_BPAReview, and frm_UtilityReview momentarly slightly shift up and down vertical position when each tab is entered; this is not noticable on some systems because they operate at a fast speed.
A69: 67 | C69: LC5.1.130.V | D69: 2020-08-10 | E69: Dorian | F69: Frm_DataEntry (Measure tab) | G69: 1. Fix: frm_dataEntry, Space Tab: Prior and after Progress bar call, code added diabling and re-enabling of primary and unique space hours and heating type areas so user is diabled from entering data while progress bar runs.
A70: 68 | C70: LC5.1.131.V | D70: 2020-08-13 | E70: Dorian | F70: Frm_DataEntry (Measure tab) | G70: 1. Fix: frm_dataEntry, Measure Tab: Control count blanks out and error color of control when proposed fixture count changes. This controls should only blank if they are more than proposed fixture count. 2. frm_dataEntry, Measure Tab/BPA (Measure) Review Project Tab: Meausers with "NS-N" not approved have shown wrong measure number while located in their correct. Only the string showning "Measure # Space Status" column shows the wrong measure #. User only noticed this on BPA side and the proper measure # was displayed in the cell when approved the Non-Standard measure. I suspect that the code erroed on the contractor side when the measure was copied because of a slow process that caused the measure number text box not to be updated; this error only would happen on very rare ocasions. I fixed this by adding a DoEvents on the method called by the copy event.
A71: 69 | C71: LC5.1.132.V | D71: 2020-08-13 | E71: Dorian | F71: Frm_DataEntry (Measure tab) | G71: 1. frm_dataEntry, Measure Tab/BPA (Measure) Review Project Tab: Meausers with "NS-N" not approved have shown wrong measure number while located in their correct. Only the string showning "Measure # Space Status" column shows the wrong measure #. User only noticed this on BPA side and the proper measure # was displayed in the cell when approved the Non-Standard measure. I suspect that the code erroed on the contractor side when the measure was copied because of a slow process that caused the measure number text box not to be updated; this error only would happen on very rare ocasions. I fixed this by adding a DoEvents on the method called by the copy event. Also disabling all contorols associated with copy, new record, paste, delete when those controlls are clicked and the row change methods are clicked.
A72: =IF(LEN(C72)=0,"",A71+1) -> 70 | C72: LC5.1.134.V | D72: 2020-08-20 | E72: Dorian | F72: Frm_DataEntry (Measure tab) | G72: 1. frm_dataEntry, Measure Tab: Do not clear out control count if proposed fixture count is blanked out; eliminates the user from retyping control count when user re-types count digit while still providing error condition in proposed fixture blancked out error state. Add message box telling user error 2. frm_dataEntry, Measure Tab: Allow more than equal control count to proposed fixture count in case where proposed fixture is a "Sinage", "Refrigerated Case", or "Linear Strip"; in all these cases the proposed fixture count is forced to 1 and the contractor can install multiple controls to control parts of the fixture.
A73: 71 | C73: LC5.1.135.V | D73: 2020-08-25 | E73: Dorian | F73: Frm_DataEntry (Space tab) | G73: 1. frm_dataEntry, Space Tab: Change Large Scale Project Checkmark to retain memory traveling anywhere in program and when program is closed. Large Project cell called "Large Project" (cell B37) added in static_Parameters tab to retain memory 2. frm_dataEntry, Space Tab Bug Fix: When in large project mode, modifying a unique space that is initially using primary hour value and primary heating values. Uncheck primay hour check mark. Modify Wendesay to 0 hours. Uncheck primary heating vlue. Modify space heat to no heat. Press the cancel button to cancel this change; while large scale project is chekced. The hours for Wednesday stay at zero; this is also true from other hours not changing back to the primary setting. Cancel button code modificaiton added to copy primary hour values if use primary hour values is checked. This bug has nothing to do with the actual values saved in the tab, so just updating the hours form primary is sufficient.
A74: 72 | C74: LC5.1.136.V | D74: 2020-08-26 | E74: Dorian | F74: Frm_DataEntry (Space Tab) | G74: 1. frm_dataEntry, Space Tab Bug Fix: Canceling a uniue Large Scale space change does not recalculate hours back to unedited hours state 2. frm_dataEntry, Space Tab Bug Fix: When changing records, unique spaace hours or HVAC VB controls are not disabled if using Primary Space.
A75: 73 | C75: LC5.1.139.V | D75: 2020-09-22 | E75: Dorian | F75: Frm_DataEntry (Space Tab) | G75: 1. Change Contractor Space Tab button naming. 2. Change passwords. 3. Program Offerings updated text for measure series "A" and "C"
A76: 74 | C76: LC5.1.140.V | D76: 2020-09-23 | E76: Dorian | F76: Frm_DataEntry (Space Tab) | G76: 1. Bug fix: Contactor "Space" tab "Large Scale Project" Unique space cancel setting not resetting properly.
A77: 75 | C77: LC5.1.142.V | D77: 2020-09-23 | E77: Dorian | F77: Frm_DataEntry (Space Tab) | G77: 1. Wording change: Contactor "Space" tab "Unique Space Name Error" Change wording to [Unique Space Name] and sentence to : Enter a different [Unique Space Name] to save this space. Space has NOT been saved.
A78: =IF(LEN(C78)=0,"",A77+1) -> 76 | C78: LC5.1.143.V | D78: 2020-09-29 | E78: Dorian | F78: Frm_DataEntry (Space Tab) | G78: 1. Wording change: Program Offerings, Measure C
A79: =IF(LEN(C79)=0,"",A78+1) -> 77 | C79: LC5.1.TACOMA2.V1 | D79: 2021-01-28 | E79: Dorian | F79: Frm_DataEntry (Measure tab) | G79: 1 frm_DataEntry | Measures Tab: Currently when "Measure Type" is "Non-standard" user is allowed to enter "Proposed Equipment" "Lamp Wattage" decimal fractional values. When user switches measure "Measure Type" from "Non-standard" to "Deemed" changes allows "Proposed Equipment" "Lamp Wattage" non-integer decimal fractional values to be maintained and not cleared out; this also implies that that values are not required to be cleared out if they do not match the table assigned given wattage values for that type of selected light fixture. If the user changed the "Proposed Equipment" "Lamp Wattage" while "Measure Type" is "Deemed", user is only allowed the table assigned given wattage values for that type of selected light fixture that are set integer values. To attain the non-integer user set value, user must change "Measure Type" to "Non-standard", modify value, then change back to "Deemed".
A80: =IF(LEN(C80)=0,"",A79+1) -> 
A134: =IF(LEN(C134)=0,"",A133+1) -> 
A198: =IF(LEN(C198)=0,"",A197+1) -> 
A262: =IF(LEN(C262)=0,"",A261+1) -> 
A326: =IF(LEN(C326)=0,"",A325+1) -> 
A390: =IF(LEN(C390)=0,"",A389+1) -> 
A454: =IF(LEN(C454)=0,"",A453+1) -> 

Sheet ValidatorResults
C1: 1 | D1: Evaluations | G1: Column: 5 | L1: Column: 10 | Q1: Column: 15 | V1: Column: 20 | AA1: Column: 25 | AF1: Column: 30 | AK1: Column: 35 | AP1: Column: 40 | AU1: Column: 45 | AZ1: Column: 50 | BE1: Column: 55 | BJ1: Column: 60 | BO1: Column: 65 | BT1: Column: 70 | BY1: Column: 75 | CD1: Column: 80 | CI1: Column: 85 | CN1: Column: 90 | CS1: Column: 95 | CX1: Column: 100 | DC1: Column: 105
D2: General Status ID | E2: Version | F2: General Test Results | G2: File Name | H2: Version | I2: Status | J2: Calculator Type | K2: File Path | L2: Utility Short Name | M2: Invoice Number | N2: Savings Comparison | O2: Total Incentives Comparison | P2: Row Count | Q2: Standard Measure Count | R2: Contains Non-Standard | S2: Non-Standard Measure Count | T2: Non-Standard Measures | U2: Contains Decommission | V2: Decommission Measure Count | W2: Decommission Measures | X2: Savings Error | Y2: Incentives Error | Z2: BPA Busbar KW | AA2: Contractor Busbar KW | AB2: Busbar KW BPA Minus Contractor | AC2: BPA Incentive | AD2: Contractor Incentive | AE2: Incentive BPA Minus Contractor | AF2: Utility ID | AG2: Is New Construction | AH2: Version | AI2: Is Version 5 | AJ2: Is Version 4 | AK2: Is Version Other | AL2: Payment Function ID | AM2: Payment Function Status | AN2: Utility Status ID | AO2: Utility Status | AP2: BPA Percent Proj Cost | AQ2: Contractor Percent Proj Cost | AR2: BPA Dollars Per KWh Project | AS2: Contractor Dollars Per KWh Project | AT2: BPA Utility Min B Per C | AU2: Contractor Utility Min B Per C | AV2: Utility Status Error | AW2: Utility Status Description | AX2: Decommissioning Incentive Rate Error | AY2: Non-Standard Measure Incentive Rate Error | AZ2: New Construction Incentive Rate Error | BA2: Decommissioning Incentive Rate Error Description | BB2: BPA Decommissioning BPA Incentive | BC2: Contractor Decommissioning BPA Incentive | BD2: BPA Decommissioning Percent Utility Pass-Through | BE2: Contractor Decommissioning Percent Utility Pass-Through | BF2: BPA Decommissioning Utility Incentive | BG2: Contractor Decommissioning Utility Incentive | BH2: Non-Standard Measure Incentive Rate Error Description | BI2: BPA Non-Standard Measure BPAIncentive | BJ2: Contractor Non-Standard Measure BPA Incentive | BK2: BPA Non-Standard Measure Percent Utility Pass-Through | BL2: Contractor Non-Standard Measure Percent Utility Pass-Through | BM2: BPA Non-Standard Measure Utility Incentive | BN2: Contractor Non-Standard Measure Utility Incentive | BO2: New Construction Incentive Rate Error Description | BP2: BPA New Construction BPA Incentive | BQ2: Contractor New Construction BPA Incentive | BR2: BPA New Construction Percent Utility Pass Through | BS2: Contractor New Construction Percent Utility Pass Through | BT2: BPA New Construction Utility Incentive | BU2: Contractor New Construction Utility Incentive | BV2: Max Dif BPA Incentive | BW2: Max util Percent Passthrough | BX2: Max Dif Utility Incentive | BY2: Error Incentives | BZ2: MML Table Differences Critical Data Error | CA2: MML Table Differences | CB2: MML Table Difference Summary Values | CC2: MML Table Difference Values | CD2: Static_Tables Table Differences Critical Data Error | CE2: Static_Tables Table Differences | CF2: Static_Tables Table Difference Values | CG2: Static_Tables Controls Table Differences Critical Data Error | CH2: Static_Tables Controls Table Differences | CI2: Static_Tables Controls Table Difference Values | CJ2: Static_Parameters Table Differences Critical Data Error | CK2: Static_Parameters Table Differences | CL2: Static_Parameters Table DifferencesValues | CM2: Primary Space Type | CN2: Primary Space Building Type Row Number Used | CO2: PrimarySpace Building Type Used Error Occured | CP2: Space Type Value Errors Occured | CQ2: space Type Value Errors | CR2: Existing Measure Possible Error | CS2: Existing Mesure Number Possible Error | CT2: Proposed Measure Possible Error | CU2: Proposed Mesure Number Possible Error | CV2: Exsiting And Proposed Measure Error Data Used | CW2: Existing Measure Value Errors Summary | CX2: Proposed Measure Value Errors Summary | CY2: Existing and Proposed Measure Value Errors | CZ2: Missing Selected Rate Added | DA2: Calculation Rate Non-Standard | DB2: Calculation Rate Non-Standard Warning | DC2: Calculation Rate Name Used | DD2: Calculation Rate $/KWh Used | DE2: Calculation Rate $/KW Used | DF2: Calculated Incentive | DG2: Time Comparison | DH2: Validator Version
